Workbook

Sheet Contents
A1: Click on 'Enable Content' in security warning above to activate hyperlinks
A2: Graduation out of Aid Research: Indicators Dataset
A3: Notes: | B3: The indicators collected are not arranged in any logical order. To see those falling into the same broad categories (as defined by the World Bank), use the filter in Column A.
B4: Click on the page numbers below to go directlyto the page in question. On the individual indicator pages, use the 'Back to Contents' button to return directly to this page.
A5: Broad category | B5: Indicator | C5: Page | D5: Source | E5: Description/definition | F5: Source for WB data
A7: Economic Policy & Debt | B7: GDP per capita (constant 2000 US$) | C7: 1 | D7: WB WDI | E7: GDP per capita is gross domestic product divided by midyear population. GDP is the sum of gross value added by all resident producers in the economy plus any product taxes and minus any subsidies not included in the value of the products. It is calculated without making deductions for depreciation of fabricated assets or for depletion and degradation of natural resources. Data are in constant 2000 U.S. dollars. | F7: World Bank national accounts data, and OECD National Accounts data files.
A8: Economic Policy & Debt | B8: GDP per capita (current US$) | C8: 1a | D8: WB WDI
A9: Environment | B9: Urban population (% of total) | C9: 2 | D9: WB WDI | E9: Urban population refers to people living in urban areas as defined by national statistical offices. It is calculated using World Bank population estimates and urban ratios from the United Nations World Urbanization Prospects. | F9: United Nations, World Urbanization Prospects.
A10: Environment | B10: Rural population (% of total population) | C10: 3 | D10: WB WDI | E10: Rural population refers to people living in rural areas as defined by national statistical offices. It is calculated as the difference between total population and urban population. | F10: World Bank Staff estimates based on United Nations, World Urbanization Prospects.
A11: Health | B11: Life expectancy at birth, total (years) | C11: 4 | D11: WB WDI | E11: Life expectancy at birth indicates the number of years a newborn infant would live if prevailing patterns of mortality at the time of its birth were to stay the same throughout its life. | F11: Derived from male and female life expectancy at birth from sources such as: (1) United Nations Population Division. World Population Prospects, (2) United Nations Statistical Division. Population and Vital Statistics Reprot (various years), (3) Census reports and other statistical publications from national statistical offices, (4) Eurostat: Demographic Statistics, (5) Secretariat of the Pacific Community: Statistics and Demography Programme, and (6) U.S. Census Bureau: International Database.
A12: Health | B12: Age dependency ratio (% of working-age population) | C12: 5 | D12: WB WDI | E12: Age dependency ratio is the ratio of dependents--people younger than 15 or older than 64--to the working-age population--those ages 15-64. Data are shown as the proportion of dependents per 100 working-age population. | F12: World Bank staff estimates from various sources including census reports, the United Nations Population Division's World Population Prospects, national statistical offices, household surveys conducted by national agencies, and ICF International.
A13: Environment | B13: Urban population growth (annual %) | C13: 6 | D13: WB WDI | E13: Urban population refers to people living in urban areas as defined by national statistical offices. It is calculated using World Bank population estimates and urban ratios from the United Nations World Urbanization Prospects. | F13: World Bank Staff estimates based on United Nations, World Urbanization Prospects.
A14: Health | B14: Maternal mortality ratio (modeled estimate, per 100,000 live births) | C14: 7 | D14: WB WDI | E14: Maternal mortality ratio is the number of women who die during pregnancy and childbirth, per 100,000 live births. The data are estimated with a regression model using information on fertility, birth attendants, and HIV prevalence. | F14: Trends in Maternal Mortality: 1990-2010. Estimates Developed by WHO, UNICEF, UNFPA and the World Bank.
A15: Health | B15: Maternal mortality ratio (national estimate, per 100,000 live births) | C15: 8 | D15: WB WDI | E15: Maternal mortality ratio is the number of women who die during pregnancy and childbirth, per 100,000 live births. | F15: UNICEF, State of the World's Children, Childinfo, and Demographic and Health Surveys by ICF International.
A16: Health | B16: Mortality rate, under-5 (per 1,000 live births) | C16: 9 | D16: WB WDI | E16: Under-five mortality rate is the probability per 1,000 that a newborn baby will die before reaching age five, if subject to current age-specific mortality rates. | F16: Level & Trends in Child Mortality. Estimates Developed by the UN Inter-agency Group for Child Mortality Estimation (UNICEF, WHO, World Bank, UN DESA, UNPD).
A17: Health | B17: Physicians (per 1,000 people) | C17: 10 | D17: WB WDI | E17: Physicians include generalist and specialist medical practitioners. | F17: World Health Organization, Global Atlas of the Health Workforce. For latest updates and metadata, see http://apps.who.int/globalatlas/.
A18: Health | B18: Nurses and midwives (per 1,000 people) | C18: 11 | D18: WB WDI | E18: Nurses and midwives include professional nurses, professional midwives, auxiliary nurses, auxiliary midwives, enrolled nurses, enrolled midwives and other associated personnel, such as dental nurses and primary care nurses. | F18: World Health Organization, Global Atlas of the Health Workforce. For latest updates and metadata, see http://apps.who.int/globalatlas/.
A19: ODA | B19: Net ODA % GDP | C19: 12 | D19: WB WDI | E19: Own calculations using WB WDI GDP and net official development assistance received data (both in current US$) | F19: GDP: World Bank national accounts data, and OECD National Accounts data files. Net ODA: Development Assistance Committee of the Organisation for Economic Co-operation and Development, Geographical Distribution of Financial Flows to Developing Countries, Development Co-operation Report, and International Development Statistics database. Data are available online at: www.oecd.org/dac/stats/idsonline.
A20: Poverty | B20: Poverty headcount ratio at $1.25 a day (PPP) (% of population) | C20: 13 | D20: WB WDI | E20: Population below $1.25 a day is the percentage of the population living on less than $1.25 a day at 2005 international prices. As a result of revisions in PPP exchange rates, poverty rates for individual countries cannot be compared with poverty rates reported in earlier editions. | F20: World Bank, Development Research Group. Data are based on primary household survey data obtained from government statistical agencies and World Bank country departments. Data for high-income economies are from the Luxembourg Income Study database. For more information and methodology, please see PovcalNet (http://iresearch.worldbank.org/PovcalNet/index.htm).
A21: Poverty | B21: GINI index | C21: 14 | D21: WB WDI | E21: Gini index measures the extent to which the distribution of income (or, in some cases, consumption expenditure) among individuals or households within an economy deviates from a perfectly equal distribution. A Lorenz curve plots the cumulative percentages of total income received against the cumulative number of recipients, starting with the poorest individual or household. The Gini index measures the area between the Lorenz curve and a hypothetical line of absolute equality, expressed as a percentage of the maximum area under the line. Thus a Gini index of 0 represents perfect equality, while an index of 100 implies perfect inequality. | F21: World Bank, Development Research Group. Data are based on primary household survey data obtained from government statistical agencies and World Bank country departments. Data for high-income economies are from the Luxembourg Income Study database. For more information and methodology, please see PovcalNet (http://iresearch.worldbank.org/PovcalNet/index.htm).
A22: Health | B22: Malnutrition prevalence, weight for age (% of children under 5) | C22: 15 | D22: WB WDI | E22: Prevalence of child malnutrition is the percentage of children under age 5 whose weight for age is more than two standard deviations below the median for the international reference population ages 0-59 months. The data are based on the WHO's new child growth standards released in 2006. | F22: World Health Organization, Global Database on Child Growth and Malnutrition. Aggregation is based on UNICEF/WHO Joint Global Malnutrition Analysis Date Set 2011, and additional analysis by UNICEF.
A23: Education | B23: School enrollment, primary (% gross) | C23: 16 | D23: WB WDI | E23: Gross enrollment ratio is the ratio of total enrollment, regardless of age, to the population of the age group that officially corresponds to the level of education shown. Primary education provides children with basic reading, writing, and mathematics skills along with an elementary understanding of such subjects as history, geography, natural science, social science, art, and music. | F23: United Nations Educational, Scientific, and Cultural Organization (UNESCO) Institute for Statistics.
A24: Education | B24: Trained teachers in primary education (% of total teachers) | C24: 17 | D24: WB WDI | E24: Trained teachers in primary education are the percentage of primary school teachers who have received the minimum organized teacher training (pre-service or in-service) required for teaching in their country. | F24: United Nations Educational, Scientific, and Cultural Organization, special data collection for the Education for All Initiative.
A25: Education | B25: Literacy rate, adult total (% of people ages 15 and above) | C25: 18 | D25: WB WDI | E25: Adult literacy rate is the percentage of people ages 15 and above who can, with understanding, read and write a short, simple statement on their everyday life. | F25: United Nations Educational, Scientific, and Cultural Organization (UNESCO) Institute for Statistics.
A26: Private Sector & Trade | B26: Agricultural raw materials exports (% of merchandise exports) | C26: 19 | D26: WB WDI | E26: Agricultural raw materials comprise SITC section 2 (crude materials except fuels) excluding divisions 22, 27 (crude fertilizers and minerals excluding coal, petroleum, and precious stones), and 28 (metalliferous ores and scrap). | F26: World Bank staff estimates from the Comtrade database maintained by the United Nations Statistics Division.
A27: Private Sector & Trade | B27: Food exports (% of merchandise exports) | C27: 20 | D27: WB WDI | E27: Food comprises the commodities in SITC sections 0 (food and live animals), 1 (beverages and tobacco), and 4 (animal and vegetable oils and fats) and SITC division 22 (oil seeds, oil nuts, and oil kernels). | F27: World Bank staff estimates from the Comtrade database maintained by the United Nations Statistics Division.
A28: Private Sector & Trade | B28: Fuel exports (% of merchandise exports) | C28: 21 | D28: WB WDI | E28: Fuels comprise SITC section 3 (mineral fuels). | F28: World Bank staff estimates from the Comtrade database maintained by the United Nations Statistics Division.
A29: Private Sector & Trade | B29: Manufactures exports (% of merchandise exports) | C29: 22 | D29: WB WDI | E29: Manufactures comprise commodities in SITC sections 5 (chemicals), 6 (basic manufactures), 7 (machinery and transport equipment), and 8 (miscellaneous manufactured goods), excluding division 68 (non-ferrous metals). | F29: World Bank staff estimates from the Comtrade database maintained by the United Nations Statistics Division.
A30: Private Sector & Trade | B30: Ores and metals exports (% of merchandise exports) | C30: 23 | D30: WB WDI | E30: Ores and metals comprise the commodities in SITC sections 27 (crude fertilizer, minerals nes); 28 (metalliferous ores, scrap); and 68 (non-ferrous metals). | F30: World Bank staff estimates from the Comtrade database maintained by the United Nations Statistics Division.
A31: Infrastructure | B31: ICT goods exports (% of total goods exports) | C31: 24 | D31: WB WDI | E31: Information and communication technology goods exports include telecommunications, audio and video, computer and related equipment; electronic components; and other information and communication technology goods. Software is excluded. | F31: United Nations Conference on Trade and Development's UNCTADstat database at http://unctadstat.unctad.org/ReportFolders/reportFolders.aspx.
A32: Infrastructure | B32: High-technology exports (% of manufactured exports) | C32: 25 | D32: WB WDI | E32: High-technology exports are products with high R&D intensity, such as in aerospace, computers, pharmaceuticals, scientific instruments, and electrical machinery. | F32: United Nations, Comtrade database.
A33: Private Sector & Trade | B33: Merchandise exports to developing economies outside region (% of total merchandise exports) | C33: 26 | D33: WB WDI | E33: Merchandise exports to developing economies outside region are the sum of merchandise exports from the reporting economy to other developing economies in other World Bank regions according to the World Bank classification of economies. Data are expressed as a percentage of total merchandise exports by the economy. Data are computed only if at least half of the economies in the partner country group had non-missing data. | F33: World Bank staff estimates based data from International Monetary Fund's Direction of Trade database.
A34: Private Sector & Trade | B34: Merchandise exports to developing economies within region (% of total merchandise exports) | C34: 27 | D34: WB WDI | E34: Merchandise exports to developing economies within region are the sum of merchandise exports from the reporting economy to other developing economies in the same World Bank region as a percentage of total merchandise exports by the economy. Data are computed only if at least half of the economies in the partner country group had non-missing data. No figures are shown for high-income economies, because they are a separate category in the World Bank classification of economies. | F34: World Bank staff estimates based data from International Monetary Fund's Direction of Trade database.
A35: Private Sector & Trade | B35: Merchandise exports to developing economies in East Asia & Pacific (% of total merchandise exports) | C35: 28 | D35: WB WDI | E35: Merchandise exports to developing economies in East Asia and Pacific are the sum of merchandise exports from the reporting economy to developing economies in the East Asia and Pacific region according to World Bank classification of economies. Data are as a percentage of total merchandise exports by the economy. Data are computed only if at least half of the economies in the partner country group had non-missing data. | F35: World Bank staff estimates based data from International Monetary Fund's Direction of Trade database.
A36: Private Sector & Trade | B36: Merchandise exports to developing economies in Europe & Central Asia (% of total merchandise exports) | C36: 29 | D36: WB WDI | E36: Merchandise exports to developing economies in Europe and Central Asia are the sum of merchandise exports from the reporting economy to developing economies in the Europe and Central Asia region according to World Bank classification of economies. Data are as a percentage of total merchandise exports by the economy. Data are computed only if at least half of the economies in the partner country group had non-missing data. | F36: World Bank staff estimates based data from International Monetary Fund's Direction of Trade database.
A37: Private Sector & Trade | B37: Merchandise exports to developing economies in Latin America & the Caribbean (% of total merchandise exports) | C37: 30 | D37: WB WDI | E37: Merchandise exports to developing economies in Latin America and the Caribbean are the sum of merchandise exports from the reporting economy to developing economies in the Latin America and the Caribbean region according to World Bank classification of economies. Data are as a percentage of total merchandise exports by the economy. Data are computed only if at least half of the economies in the partner country group had non-missing data. | F37: World Bank staff estimates based data from International Monetary Fund's Direction of Trade database.
A38: Private Sector & Trade | B38: Merchandise exports to developing economies in Middle East & North Africa (% of total merchandise exports) | C38: 31 | D38: WB WDI | E38: Merchandise exports to developing economies in Middle East and North Africa are the sum of merchandise exports from the reporting economy to developing economies in the Middle East and North Africa region according to World Bank classification of economies. Data are as a percentage of total merchandise exports by the economy. Data are computed only if at least half of the economies in the partner country group had non-missing data. | F38: World Bank staff estimates based data from International Monetary Fund's Direction of Trade database.
A39: Private Sector & Trade | B39: Merchandise exports to developing economies in South Asia (% of total merchandise exports) | C39: 32 | D39: WB WDI | E39: Merchandise exports to developing economies in South Asia are the sum of merchandise exports from the reporting economy to developing economies in the South Asia region according to World Bank classification of economies. Data are as a percentage of total merchandise exports by the economy. Data are computed only if at least half of the economies in the partner country group had non-missing data. | F39: World Bank staff estimates based data from International Monetary Fund's Direction of Trade database.
A40: Private Sector & Trade | B40: Merchandise exports to developing economies in Sub-Saharan Africa (% of total merchandise exports) | C40: 33 | D40: WB WDI | E40: Merchandise exports to developing economies in Sub-Saharan Africa are the sum of merchandise exports from the reporting economy to developing economies in the Sub-Saharan Africa region according to World Bank classification of economies. Data are as a percentage of total merchandise exports by the economy. Data are computed only if at least half of the economies in the partner country group had non-missing data. | F40: World Bank staff estimates based data from International Monetary Fund's Direction of Trade database.
A41: Private Sector & Trade | B41: Merchandise exports to economies in the Arab World (% of total merchandise exports) | C41: 34 | D41: WB WDI | E41: Merchandise exports to economies in the Arab World are the sum of merchandise exports by the reporting economy to economies in the Arab World. Data are expressed as a percentage of total merchandise exports by the economy. Data are computed only if at least half of the economies in the partner country group had non-missing data. | F41: World Bank staff estimates based data from International Monetary Fund's Direction of Trade database.
A42: Private Sector & Trade | B42: Merchandise exports to high-income economies (% of total merchandise exports) | C42: 35 | D42: WB WDI | E42: Merchandise exports to high-income economies are the sum of merchandise exports from the reporting economy to high-income economies according to the World Bank classification of economies. Data are expressed as a percentage of total merchandise exports by the economy. Data are computed only if at least half of the economies in the partner country group had non-missing data. | F42: World Bank staff estimates based data from International Monetary Fund's Direction of Trade database.
A43: Doing Business | B43: Doing Business Rankings | C43: 36 | D43: http://doingbusiness.org/rankings | E43: Economies are ranked on their ease of doing business, from 1 – 185. A high ranking on the ease of doing business index means the regulatory environment is more conducive to the starting and operation of a local firm. This index averages the country's percentile rankings on 10 topics, made up of a variety of indicators, giving equal weight to each topic. The rankings for all economies are benchmarked to June 2012.
A44: Public Sector | B44: CPIA building human resources rating (1=low to 6=high) | C44: 37 | D44: WB WDI | E44: Building human resources assesses the national policies and public and private sector service delivery that affect the access to and quality of health and education services, including prevention and treatment of HIV/AIDS, tuberculosis, and malaria. | F44: World Bank Group, CPIA database (http://www.worldbank.org/ida).
A45: Public Sector | B45: CPIA business regulatory environment rating (1=low to 6=high) | C45: 38 | D45: WB WDI | E45: Business regulatory environment assesses the extent to which the legal, regulatory, and policy environments help or hinder private businesses in investing, creating jobs, and becoming more productive. | F45: World Bank Group, CPIA database (http://www.worldbank.org/ida).
A46: Public Sector | B46: CPIA debt policy rating (1=low to 6=high) | C46: 39 | D46: WB WDI | E46: Debt policy assesses whether the debt management strategy is conducive to minimizing budgetary risks and ensuring long-term debt sustainability. | F46: World Bank Group, CPIA database (http://www.worldbank.org/ida).
A47: Public Sector | B47: CPIA economic management cluster average (1=low to 6=high) | C47: 40 | D47: WB WDI | E47: The economic management cluster includes macroeconomic management, fiscal policy, and debt policy. | F47: World Bank Group, CPIA database (http://www.worldbank.org/ida).
A48: Public Sector | B48: CPIA efficiency of revenue mobilization rating (1=low to 6=high) | C48: 41 | D48: WB WDI | E48: Efficiency of revenue mobilization assesses the overall pattern of revenue mobilization--not only the de facto tax structure, but also revenue from all sources as actually collected. | F48: World Bank Group, CPIA database (http://www.worldbank.org/ida).
A49: Public Sector | B49: CPIA equity of public resource use rating (1=low to 6=high) | C49: 42 | D49: WB WDI | E49: Equity of public resource use assesses the extent to which the pattern of public expenditures and revenue collection affects the poor and is consistent with national poverty reduction priorities. | F49: World Bank Group, CPIA database (http://www.worldbank.org/ida).
A50: Public Sector | B50: CPIA financial sector rating (1=low to 6=high) | C50: 43 | D50: WB WDI | E50: Financial sector assesses the structure of the financial sector and the policies and regulations that affect it. | F50: World Bank Group, CPIA database (http://www.worldbank.org/ida).
A51: Public Sector | B51: CPIA fiscal policy rating (1=low to 6=high) | C51: 44 | D51: WB WDI | E51: Fiscal policy assesses the short- and medium-term sustainability of fiscal policy (taking into account monetary and exchange rate policy and the sustainability of the public debt) and its impact on growth. | F51: World Bank Group, CPIA database (http://www.worldbank.org/ida).
A52: Public Sector | B52: CPIA gender equality rating (1=low to 6=high) | C52: 45 | D52: WB WDI | E52: Gender equality assesses the extent to which the country has installed institutions and programs to enforce laws and policies that promote equal access for men and women in education, health, the economy, and protection under law. | F52: World Bank Group, CPIA database (http://www.worldbank.org/ida).
A53: Public Sector | B53: CPIA macroeconomic management rating (1=low to 6=high) | C53: 46 | D53: WB WDI | E53: Macroeconomic management assesses the monetary, exchange rate, and aggregate demand policy framework. | F53: World Bank Group, CPIA database (http://www.worldbank.org/ida).
A54: Public Sector | B54: CPIA policies for social inclusion/equity cluster average (1=low to 6=high) | C54: 47 | D54: WB WDI | E54: The policies for social inclusion and equity cluster includes gender equality, equity of public resource use, building human resources, social protection and labor, and policies and institutions for environmental sustainability. | F54: World Bank Group, CPIA database (http://www.worldbank.org/ida).
A55: Public Sector | B55: CPIA policy and institutions for environmental sustainability rating (1=low to 6=high) | C55: 48 | D55: WB WDI | E55: Policy and institutions for environmental sustainability assess the extent to which environmental policies foster the protection and sustainable use of natural resources and the management of pollution. | F55: World Bank Group, CPIA database (http://www.worldbank.org/ida).
A56: Public Sector | B56: CPIA property rights and rule-based governance rating (1=low to 6=high) | C56: 49 | D56: WB WDI | E56: Property rights and rule-based governance assess the extent to which private economic activity is facilitated by an effective legal system and rule-based governance structure in which property and contract rights are reliably respected and enforced. | F56: World Bank Group, CPIA database (http://www.worldbank.org/ida).
A57: Public Sector | B57: CPIA public sector management and institutions cluster average (1=low to 6=high) | C57: 50 | D57: WB WDI | E57: The public sector management and institutions cluster includes property rights and rule-based governance, quality of budgetary and financial management, efficiency of revenue mobilization, quality of public administration, and transparency, accountability, and corruption in the public sector. | F57: World Bank Group, CPIA database (http://www.worldbank.org/ida).
A58: Public Sector | B58: CPIA quality of budgetary and financial management rating (1=low to 6=high) | C58: 51 | D58: WB WDI | E58: Quality of budgetary and financial management assesses the extent to which there is a comprehensive and credible budget linked to policy priorities, effective financial management systems, and timely and accurate accounting and fiscal reporting, including timely and audited public accounts. | F58: World Bank Group, CPIA database (http://www.worldbank.org/ida).
A59: Public Sector | B59: CPIA quality of public administration rating (1=low to 6=high) | C59: 52 | D59: WB WDI | E59: Quality of public administration assesses the extent to which civilian central government staff is structured to design and implement government policy and deliver services effectively. | F59: World Bank Group, CPIA database (http://www.worldbank.org/ida).
A60: Public Sector | B60: CPIA social protection rating (1=low to 6=high) | C60: 53 | D60: WB WDI | E60: Social protection and labor assess government policies in social protection and labor market regulations that reduce the risk of becoming poor, assist those who are poor to better manage further risks, and ensure a minimal level of welfare to all people. | F60: World Bank Group, CPIA database (http://www.worldbank.org/ida).
A61: Public Sector | B61: CPIA structural policies cluster average (1=low to 6=high) | C61: 54 | D61: WB WDI | E61: The structural policies cluster includes trade, financial sector, and business regulatory environment. | F61: World Bank Group, CPIA database (http://www.worldbank.org/ida).
A62: Public Sector | B62: CPIA trade rating (1=low to 6=high) | C62: 55 | D62: WB WDI | E62: Trade assesses how the policy framework fosters trade in goods. | F62: World Bank Group, CPIA database (http://www.worldbank.org/ida).
A63: Public Sector | B63: CPIA transparency, accountability, and corruption in the public sector rating (1=low to 6=high) | C63: 56 | D63: WB WDI | E63: Transparency, accountability, and corruption in the public sector assess the extent to which the executive can be held accountable for its use of funds and for the results of its actions by the electorate and by the legislature and judiciary, and the extent to which public employees within the executive are required to account for administrative decisions, use of resources, and results obtained. The three main dimensions assessed here are the accountability of the executive to oversight institutions and of public employees for their performance, access of civil society to information on public affairs, and state capture by narrow vested interests. | F63: World Bank Group, CPIA database (http://www.worldbank.org/ida).
A64: Corruption | B64: Corruption Perception Index Score 2012 (0=highly corrupt, 100=very clean) | C64: 57 | D64: http://www.transparency.org/cpi2012/results#myAnchor1 | E64: The Corruption Perceptions Index ranks countries and territories based on how corrupt their public sector is perceived to be. A country or territory’s score indicates the perceived level of public sector corruption on a scale of 0 - 100, where 0 means that a country is perceived as highly corrupt and 100 means it is perceived as very clean. A country's rank indicates its position relative to the other countries and territories included in the index. This year's index includes 176 countries and territories
A65: Economic Policy & Debt | B65: Foreign direct investment, net inflows (% of GDP) | C65: 58 | D65: WB WDI | E65: Foreign direct investment are the net inflows of investment to acquire a lasting management interest (10 percent or more of voting stock) in an enterprise operating in an economy other than that of the investor. It is the sum of equity capital, reinvestment of earnings, other long-term capital, and short-term capital as shown in the balance of payments. This series shows net inflows (new investment inflows less disinvestment) in the reporting economy from foreign investors, and is divided by GDP. | F65: International Monetary Fund, International Financial Statistics and Balance of Payments databases, World Bank, International Debt Statistics, and World Bank and OECD GDP estimates.
A66: Economic Policy & Debt | B66: Portfolio equity, net inflows (BoP, current US$) | C66: 59 | D66: WB WDI | E66: Portfolio equity includes net inflows from equity securities other than those recorded as direct investment and including shares, stocks, depository receipts (American or global), and direct purchases of shares in local stock markets by foreign investors. Data are in current U.S. dollars. | F66: International Monetary Fund, Balance of Payments database, and World Bank, International Debt Statistics.
A67: Economic Policy & Debt | B67: External debt stocks (% of GNI) | C67: 60 | D67: WB WDI | E67: Total external debt stocks to gross national income. Total external debt is debt owed to nonresidents repayable in foreign currency, goods, or services. Total external debt is the sum of public, publicly guaranteed, and private nonguaranteed long-term debt, use of IMF credit, and short-term debt. Short-term debt includes all debt having an original maturity of one year or less and interest in arrears on long-term debt. GNI (formerly GNP) is the sum of value added by all resident producers plus any product taxes (less subsidies) not included in the valuation of output plus net receipts of primary income (compensation of employees and property income) from abroad. | F67: World Bank, International Debt Statistics.
A68: Public Sector | B68: Revenue, excluding grants (% of GDP) | C68: 61 | D68: WB WDI | E68: Revenue is cash receipts from taxes, social contributions, and other revenues such as fines, fees, rent, and income from property or sales. Grants are also considered as revenue but are excluded here. | F68: International Monetary Fund, Government Finance Statistics Yearbook and data files, and World Bank and OECD GDP estimates.
A69: Public Sector | B69: Tax revenue (% of GDP) | C69: 62 | D69: WB WDI | E69: Tax revenue refers to compulsory transfers to the central government for public purposes. Certain compulsory transfers such as fines, penalties, and most social security contributions are excluded. Refunds and corrections of erroneously collected tax revenue are treated as negative revenue. | F69: International Monetary Fund, Government Finance Statistics Yearbook and data files, and World Bank and OECD GDP estimates.
A70: Environment | B70: Access to electricity (% of population) | C70: 63 | D70: WB WDI | E70: Access to electricity is the percentage of population with access to electricity. Electrification data are collected from industry, national surveys and international sources. | F70: International Energy Agency, World Energy Outlook 2010.
A71: Health | B71: Improved sanitation facilities (% of population with access) | C71: 64 | D71: WB WDI | E71: Access to improved sanitation facilities refers to the percentage of the population with at least adequate access to excreta disposal facilities that can effectively prevent human, animal, and insect contact with excreta. Improved facilities range from simple but protected pit latrines to flush toilets with a sewerage connection. To be effective, facilities must be correctly constructed and properly maintained. | F71: World Health Organization and United Nations Children's Fund, Joint Measurement Programme (JMP) (http://www.wssinfo.org/).
A72: Health | B72: Improved water source (% of population with access) | C72: 65 | D72: WB WDI | E72: Access to an improved water source refers to the percentage of the population with reasonable access to an adequate amount of water from an improved source, such as a household connection, public standpipe, borehole, protected well or spring, and rainwater collection. Unimproved sources include vendors, tanker trucks, and unprotected wells and springs. Reasonable access is defined as the availability of at least 20 liters a person a day from a source within one kilometer of the dwelling. | F72: World Health Organization and United Nations Children's Fund, Joint Measurement Programme (JMP) (http://www.wssinfo.org/).
A73: Infrastructure | B73: Rail lines (total route-km) | C73: 66 | D73: WB WDI | E73: Rail lines are the length of railway route available for train service, irrespective of the number of parallel tracks. | F73: World Bank, Transportation, Water, and Information and Communications Technologies Department, Transport Division.
A74: Environment | B74: Renewable internal freshwater resources per capita (cubic meters) | C74: 67 | D74: WB WDI | E74: Renewable internal freshwater resources flows refer to internal renewable resources (internal river flows and groundwater from rainfall) in the country. Renewable internal freshwater resources per capita are calculated using the World Bank's population estimates. | F74: Food and Agriculture Organization, AQUASTAT data.
A75: Infrastructure | B75: Roads, paved (% of total roads) | C75: 68 | D75: WB WDI | E75: Paved roads are those surfaced with crushed stone (macadam) and hydrocarbon binder or bituminized agents, with concrete, or with cobblestones, as a percentage of all the country's roads, measured in length. | F75: International Road Federation, World Road Statistics and electronic files, except where noted.
A76: Financial Sector: Access | B76: Borrowers from commercial banks (per 1,000 adults) | C76: 69 | D76: WB WDI | E76: Borrowers from commercial banks are the reported number of resident customers that are nonfinancial corporations (public and private) and households who obtained loans from commercial banks and other banks functioning as commercial banks. For many countries data cover the total number of loan accounts due to lack of information on loan account holders. | F76: International Monetary Fund, Financial Access Survey.
A77: Financial Sector: Access | B77: Depositors with commercial banks (per 1,000 adults) | C77: 70 | D77: WB WDI | E77: Depositors with commercial banks are the reported number of deposit account holders at commercial banks and other resident banks functioning as commercial banks that are resident nonfinancial corporations (public and private) and households. For many countries data cover the total number of deposit accounts due to lack of information on account holders. The major types of deposits are checking accounts, savings accounts, and time deposits. | F77: International Monetary Fund, Financial Access Survey.
A78: Financial Sector: Access | B78: Commercial bank branches (per 100,000 adults) | C78: 71 | D78: WB WDI | E78: Commercial bank branches are retail locations of resident commercial banks and other resident banks that function as commercial banks that provide financial services to customers and are physically separated from the main office but not organized as legally separated subsidiaries. | F78: International Monetary Fund, Financial Access Survey.
A79: Infrastructure | B79: Mobile cellular subscriptions (per 100 people) | C79: 72 | D79: WB WDI | E79: Mobile cellular telephone subscriptions are subscriptions to a public mobile telephone service using cellular technology, which provide access to the public switched telephone network. Post-paid and prepaid subscriptions are included. | F79: International Telecommunication Union, World Telecommunication/ICT Development Report and database, and World Bank estimates.
A80: Infrastructure | B80: Telephone lines (per 100 people) | C80: 73 | D80: WB WDI | E80: Telephone lines are fixed telephone lines that connect a subscriber's terminal equipment to the public switched telephone network and that have a port on a telephone exchange. Integrated services digital network channels ands fixed wireless subscribers are included. | F80: International Telecommunication Union, World Telecommunication/ICT Development Report and database, and World Bank estimates.
A81: Infrastructure | B81: Internet users (per 100 people) | C81: 74 | D81: WB WDI | E81: Internet users are people with access to the worldwide network. | F81: International Telecommunication Union, World Telecommunication/ICT Development Report and database, and World Bank estimates.
A82: Infrastructure | B82: Fixed broadband Internet subscribers (per 100 people) | C82: 75 | D82: WB WDI | E82: Fixed broadband Internet subscribers are the number of broadband subscribers with a digital subscriber line, cable modem, or other high-speed technology. | F82: International Telecommunication Union, World Telecommunication/ICT Development Report and database, and World Bank estimates.
A83: Economic Policy & Debt | B83: GNI per capita (constant 2000 US$) | C83: 76 | D83: WB WDI | E83: GNI per capita is gross national income divided by midyear population. GNI (formerly GNP) is the sum of value added by all resident producers plus any product taxes (less subsidies) not included in the valuation of output plus net receipts of primary income (compensation of employees and property income) from abroad. Data are in constant 2000 U.S. dollars. | F83: World Bank national accounts data, and OECD National Accounts data files.
A84: Economic Policy & Debt | B84: GNI per capita, Atlas method (current US$) | C84: 76a | D84: WB WDI
A85: Poverty | B85: Poverty gap at national poverty line (%) | C85: 77 | D85: WB WDI | E85: Poverty gap at national poverty line is the mean shortfall from the poverty line (counting the nonpoor as having zero shortfall) as a percentage of the poverty line. This measure reflects the depth of poverty as well as its incidence. | F85: World Bank, Global Poverty Working Group. Data are based on World Bank's country poverty assessments and country Poverty Reduction Strategies.
A86: Economic Policy & Debt | B86: Gross fixed capital formation (% of GDP) | C86: 78 | D86: WB WDI | E86: Gross fixed capital formation (formerly gross domestic fixed investment) includes land improvements (fences, ditches, drains, and so on); plant, machinery, and equipment purchases; and the construction of roads, railways, and the like, including schools, offices, hospitals, private residential dwellings, and commercial and industrial buildings. According to the 1993 SNA, net acquisitions of valuables are also considered capital formation. | F86: World Bank national accounts data, and OECD National Accounts data files.
A87: Economic Policy & Debt | B87: General government final consumption expenditure (% of GDP) | C87: 79 | D87: WB WDI | E87: General government final consumption expenditure (formerly general government consumption) includes all government current expenditures for purchases of goods and services (including compensation of employees). It also includes most expenditures on national defense and security, but excludes government military expenditures that are part of government capital formation. | F87: World Bank national accounts data, and OECD National Accounts data files.
A88: Education | B88: Public spending on education, total (% of GDP) | C88: 80 | D88: WB WDI | E88: Public expenditure on education consists of current and capital public expenditure on education includes government spending on educational institutions (both public and private), education administration as well as subsidies for private entities (students/households and other privates entities). | F88: United Nations Educational, Scientific, and Cultural Organization (UNESCO) Institute for Statistics.
A89: Economic Policy & Debt | B89: Total debt service (% of GNI) | C89: 81 | D89: WB WDI | E89: Total debt service is the sum of principal repayments and interest actually paid in foreign currency, goods, or services on long-term debt, interest paid on short-term debt, and repayments (repurchases and charges) to the IMF. | F89: World Bank, International Debt Statistics.
A90: Labor & Social Protection | B90: Labor force with secondary education (% of total) | C90: 82 | D90: WB WDI | E90: Labor force with secondary education is the proportion of the labor force that has a secondary education, as a percentage of the total labor force. | F90: International Labour Organization, Key Indicators of the Labour Market database.
A91: Labor & Social Protection | B91: Unemployment with secondary education (% of total unemployment) | C91: 83 | D91: WB WDI | E91: Unemployment by level of educational attainment shows the unemployed by level of educational attainment, as a percentage of the unemployed. The levels of educational attainment accord with the International Standard Classification of Education 1997 of the United Nations Educational, Cultural, and Scientific Organization (UNESCO). | F91: International Labour Organization, Key Indicators of the Labour Market database.
A92: Private Sector & Trade | B92: Merchandise exports (current US$) | C92: 84 | D92: WB WDI | E92: Merchandise exports show the f.o.b. value of goods provided to the rest of the world valued in current U.S. dollars. | F92: World Trade Organization.
A93: Private Sector & Trade | B93: Merchandise imports (current US$) | C93: 85 | D93: WB WDI | E93: Merchandise imports show the c.i.f. value of goods received from the rest of the world valued in current U.S. dollars. | F93: World Trade Organization.
A94: Private Sector & Trade | B94: Merchandise trade (% of GDP) | C94: 86 | D94: WB WDI | E94: Merchandise trade as a share of GDP is the sum of merchandise exports and imports divided by the value of GDP, all in current U.S. dollars. | F94: World Trade Organization, and World Bank GDP estimates.
A95: Economic Policy & Debt | B95: Service exports (BoP, current US$) | C95: 87 | D95: WB WDI | E95: Services refer to economic output of intangible commodities that may be produced, transferred, and consumed at the same time. Data are in current U.S. dollars. | F95: International Monetary Fund, Balance of Payments Statistics Yearbook and data files.
A96: Economic Policy & Debt | B96: Service imports (BoP, current US$) | C96: 88 | D96: WB WDI | E96: Services refer to economic output of intangible commodities that may be produced, transferred, and consumed at the same time. Data are in current U.S. dollars. | F96: International Monetary Fund, Balance of Payments Statistics Yearbook and data files.
A97: Economic Policy & Debt | B97: Trade in services (% of GDP) | C97: 89 | D97: WB WDI | E97: Trade in services is the sum of service exports and imports divided by the value of GDP, all in current U.S. dollars. | F97: International Monetary Fund, Balance of Payments Statistics Yearbook and data files, and World Bank and OECD GDP estimates.

Sheet Summary
A1: Summary of Ghanaian data and averages for comparator groups
A2: Note:
A3: Comparable LMIC (8) | B3: Côte d'Ivoire, Honduras, India, Nigeria, Paraguay, Senegal, Vietnam, Zambia
A4: Aspirational MIC (8) | B4: Botswana, Brazil, China, Indonesia, Malaysia, Namibia, South Africa, Thailand
A5: Upper LIC (24) | B5: Angola, Bangladesh, Benin, Burkina Faso, Burundi, Cambodia, Chad, Ethiopia, Georgia, Kenya, Kyrgyz Rep., Lao PDR, Liberia, Malawi, Mozambique, Rwanda, Sierra Leone, Sri Lanka, Tajikistan, Tanzania, Togo, Uganda, Uzbekistan, Zimbabwe
A6: NB: The number of observations included in the comparator averages below may vary widely from indicator to indicator and year to year. Refer to the indicator page for details.
A7: Broad category | B7: Indicator | C7: Link | D7: Ghana & avg. for comparator groups | E7: # years data avail. | F7: 1980 | G7: 1981 | H7: 1982 | I7: 1983 | J7: 1984 | K7: 1985 | L7: 1986 | M7: 1987 | N7: 1988 | O7: 1989 | P7: 1990 | Q7: 1991 | R7: 1992 | S7: 1993 | T7: 1994 | U7: 1995 | V7: 1996 | W7: 1997 | X7: 1998 | Y7: 1999 | Z7: 2000 | AA7: 2001 | AB7: 2002 | AC7: 2003 | AD7: 2004 | AE7: 2005 | AF7: 2006 | AG7: 2007 | AH7: 2008 | AI7: 2009 | AJ7: 2010 | AK7: 2011 | AL7: 2012
A9: Economic Policy & Debt | B9: GDP per capita (constant 2000 US$) | C9: 1 | D9: Ghana | E9: 32 | F9: 241.9462395 | G9: 226.7589089 | H9: 204.1828801 | I9: 188.1486653 | J9: 197.4867748 | K9: 200.9364455 | L9: 205.1677706 | M9: 209.0656817 | N9: 214.965181 | O9: 219.9076008 | P9: 221.0716696 | Q9: 226.2823318 | R9: 228.4587968 | S9: 232.8512761 | T9: 234.0064503 | U9: 237.2935875 | V9: 242.0582959 | W9: 246.197848 | X9: 251.7652913 | Y9: 256.7399526 | Z9: 259.9906944 | AA9: 263.9615458 | AB9: 269.2285553 | AC9: 276.4051992 | AD9: 284.8491549 | AE9: 294.4080169 | AF9: 305.7511071 | AG9: 317.7363633 | AH9: 336.3518402 | AI9: 341.5522907 | AJ9: 360.3240584 | AK9: 402.6953275
A10: Economic Policy & Debt | B10: GDP per capita (constant 2000 US$) | D10: Comparable LMIC | E10: =COUNT(F10:AL10) -> 32 | F10: 721.7225679 | G10: 726.0189403 | H10: 698.4280037 | I10: 659.6868006 | J10: 593.3931958 | K10: 600.1705739 | L10: 591.805212 | M10: 595.4861606 | N10: 606.3800356 | O10: 615.8343445 | P10: 609.7703417 | Q10: 607.5934456 | R10: 610.5194478 | S10: 618.9953209 | T10: 610.792147 | U10: 625.7531765 | V10: 635.2347552 | W10: 647.0877514 | X10: 650.7692208 | Y10: 644.4375052 | Z10: 641.1704679 | AA10: 647.6234831 | AB10: 640.7571233 | AC10: 656.3456052 | AD10: 680.0587454 | AE10: 708.6446783 | AF10: 731.6819692 | AG10: 767.6508351 | AH10: 786.1820644 | AI10: 783.9284164 | AJ10: 827.5835384 | AK10: 848.7795407
A11: Economic Policy & Debt | B11: GDP per capita (constant 2000 US$) | D11: Aspirational MIC | E11: =COUNT(F11:AL11) -> 32 | F11: 1710.975509 | G11: 1715.77575 | H11: 1714.408977 | I11: 1695.675839 | J11: 1741.878418 | K11: 1745.382444 | L11: 1774.788515 | M11: 1816.245682 | N11: 1880.346841 | O11: 1944.146823 | P11: 1954.816112 | Q11: 2008.393142 | R11: 2038.596117 | S11: 2086.365513 | T11: 2174.930316 | U11: 2261.555883 | V11: 2339.853358 | W11: 2403.793846 | X11: 2332.571653 | Y11: 2369.982436 | Z11: 2456.645484 | AA11: 2468.873961 | AB11: 2560.22038 | AC11: 2643.468324 | AD11: 2783.175315 | AE11: 2864.152175 | AF11: 2990.696881 | AG11: 3137.057289 | AH11: 3235.608937 | AI11: 3172.163586 | AJ11: 3348.813261 | AK11: 3456.876498
A12: Economic Policy & Debt | B12: GDP per capita (constant 2000 US$) | D12: Upper LIC | E12: =COUNT(F12:AL12) -> 32 | F12: 413.0023506 | G12: 403.9225479 | H12: 387.7060345 | I12: 386.3545763 | J12: 377.5273961 | K12: 387.7609684 | L12: 378.3079766 | M12: 390.1479301 | N12: 398.501193 | O12: 384.9107817 | P12: 366.4082965 | Q12: 346.7532439 | R12: 299.7354679 | S12: 275.5176968 | T12: 265.6482697 | U12: 270.7818965 | V12: 281.2435212 | W12: 294.0599734 | X12: 300.9075064 | Y12: 307.6126393 | Z12: 313.482302 | AA12: 322.2696444 | AB12: 333.9689582 | AC12: 339.1380251 | AD12: 354.6241064 | AE12: 372.7714388 | AF12: 390.4502672 | AG12: 416.4266992 | AH12: 433.5790879 | AI12: 441.3151243 | AJ12: 461.3174443 | AK12: 482.4487646
A13: Economic Policy & Debt | B13: GDP per capita (current US$) | C13: 1a | D13: Ghana | E13: 32 | F13: 406.9712411 | G13: 375.461433 | H13: 347.1905094 | I13: 336.9924097 | J13: 354.0508032 | K13: 349.9343024 | L13: 431.8830776 | M13: 372.090237 | N13: 370.9841654 | O13: 364.8928937 | P13: 398.0944156 | Q13: 433.9559398 | R13: 409.8200233 | S13: 370.6128303 | T13: 328.9892974 | U13: 380.3275465 | V13: 397.7796488 | W13: 385.961207 | X13: 409.2788213 | Y13: 412.387497 | Z13: 259.9906944 | AA13: 270.7212685 | AB13: 306.5569516 | AC13: 370.3245269 | AD13: 420.5235215 | AE13: 495.9325024 | AF13: 920.6019752 | AG13: 1090.049444 | AH13: 1226.265053 | AI13: 1090.417181 | AJ13: 1319.083027 | AK13: 1570.133179
A14: Economic Policy & Debt | B14: GDP per capita (current US$) | D14: Comparable LMIC | E14: =COUNT(F14:AL14) -> 32 | F14: 825.4204171 | G14: 821.560618 | H14: 749.1978737 | I14: 686.262303 | J14: 598.4326143 | K14: 507.5691128 | L14: 564.9237798 | M14: 630.9897506 | N14: 620.0100803 | O14: 566.6152537 | P14: 587.2528178 | Q14: 593.9553644 | R14: 611.3375173 | S14: 595.11115 | T14: 544.8332498 | U14: 628.6814093 | V14: 662.2494634 | W14: 671.1084137 | X14: 645.9047947 | Y14: 628.634649 | Z14: 641.1704679 | AA14: 637.7210505 | AB14: 629.9548439 | AC14: 704.0386442 | AD14: 809.8479628 | AE14: 898.8072469 | AF14: 1044.639786 | AG14: 1218.812038 | AH14: 1453.678734 | AI14: 1344.168327 | AJ14: 1546.414326 | AK14: 1754.111956
A15: Economic Policy & Debt | B15: GDP per capita (current US$) | D15: Aspirational MIC | E15: =COUNT(F15:AL15) -> 32 | F15: 1406.537643 | G15: 1427.918637 | H15: 1380.816208 | I15: 1362.090684 | J15: 1344.119566 | K15: 1183.69399 | L15: 1264.530342 | M15: 1485.221717 | N15: 1661.811306 | O15: 1844.177022 | P15: 1940.086386 | Q15: 1979.47737 | R15: 2109.701956 | S15: 2197.207022 | T15: 2466.498016 | U15: 2808.422133 | V15: 2913.089823 | W15: 2869.157961 | X15: 2432.55479 | Y15: 2336.904284 | Z15: 2456.645484 | AA15: 2305.551399 | AB15: 2303.708288 | AC15: 2809.373959 | AD15: 3364.313807 | AE15: 3758.552579 | AF15: 4225.185265 | AG15: 4867.400658 | AH15: 5388.589249 | AI15: 5124.997591 | AJ15: 6404.28364 | AK15: 7308.610724
A16: Economic Policy & Debt | B16: GDP per capita (current US$) | D16: Upper LIC | E16: =COUNT(F16:AL16) -> 32 | F16: 334.3112289 | G16: 322.9778879 | H16: 320.8622673 | I16: 294.8228083 | J16: 300.2989296 | K16: 330.3875035 | L16: 332.3644258 | M16: 340.6171683 | N16: 347.2940669 | O16: 337.9417474 | P16: 433.1378404 | Q16: 422.5726029 | R16: 335.2897398 | S16: 305.9632683 | T16: 278.4311827 | U16: 312.3743378 | V16: 347.9737686 | W16: 347.4360042 | X16: 327.1184203 | Y16: 315.9367146 | Z16: 313.482302 | AA16: 317.0213492 | AB16: 332.4597628 | AC16: 376.2826602 | AD16: 442.2651173 | AE16: 521.5224772 | AF16: 604.2610967 | AG16: 735.3439995 | AH16: 896.0869023 | AI16: 850.3490977 | AJ16: 940.7253929 | AK16: 1100.214499
A17: Environment | B17: Urban population (% of total) | C17: 2 | D17: Ghana | E17: 32 | F17: 31.167 | G17: 31.5128 | H17: 31.8586 | I17: 32.2044 | J17: 32.5502 | K17: 32.896 | L17: 33.605 | M17: 34.314 | N17: 35.023 | O17: 35.732 | P17: 36.441 | Q17: 37.1806 | R17: 37.9202 | S17: 38.6598 | T17: 39.3994 | U17: 40.139 | V17: 40.902 | W17: 41.665 | X17: 42.428 | Y17: 43.191 | Z17: 43.954 | AA17: 44.702 | AB17: 45.45 | AC17: 46.198 | AD17: 46.946 | AE17: 47.694 | AF17: 48.3982 | AG17: 49.1024 | AH17: 49.8066 | AI17: 50.5108 | AJ17: 51.215 | AK17: 51.8684
A18: Environment | B18: Urban population (% of total) | D18: Comparable LMIC | E18: =COUNT(F18:AL18) -> 32 | F18: 32.48725 | G18: 32.82925 | H18: 33.17125 | I18: 33.51325 | J18: 33.85525 | K18: 34.19725 | L18: 34.55505 | M18: 34.91285 | N18: 35.27065 | O18: 35.62845 | P18: 35.98625 | Q18: 36.305075 | R18: 36.6239 | S18: 36.942725 | T18: 37.26155 | U18: 37.580375 | V18: 37.911025 | W18: 38.241675 | X18: 38.572325 | Y18: 38.902975 | Z18: 39.233625 | AA18: 39.735625 | AB18: 40.237625 | AC18: 40.739625 | AD18: 41.241625 | AE18: 41.743625 | AF18: 42.265125 | AG18: 42.786625 | AH18: 43.308125 | AI18: 43.829625 | AJ18: 44.351125 | AK18: 44.875825
A19: Environment | B19: Urban population (% of total) | D19: Aspirational MIC | E19: =COUNT(F19:AL19) -> 32 | F19: 33.216875 | G19: 33.955375 | H19: 34.693875 | I19: 35.432375 | J19: 36.170875 | K19: 36.909375 | L19: 37.8223 | M19: 38.735225 | N19: 39.64815 | O19: 40.561075 | P19: 41.474 | Q19: 42.263425 | R19: 43.05285 | S19: 43.842275 | T19: 44.6317 | U19: 45.421125 | V19: 46.20375 | W19: 46.986375 | X19: 47.769 | Y19: 48.551625 | Z19: 49.33425 | AA19: 50.0356 | AB19: 50.73695 | AC19: 51.4383 | AD19: 52.13965 | AE19: 52.841 | AF19: 53.51185 | AG19: 54.1827 | AH19: 54.85355 | AI19: 55.5244 | AJ19: 56.19525 | AK19: 56.822075
A20: Environment | B20: Urban population (% of total) | D20: Upper LIC | E20: =COUNT(F20:AL20) -> 32 | F20: 20.45883333 | G20: 20.8374 | H20: 21.21596667 | I20: 21.59453333 | J20: 21.9731 | K20: 22.35166667 | L20: 22.665575 | M20: 22.97948333 | N20: 23.29339167 | O20: 23.6073 | P20: 23.92120833 | Q20: 24.190375 | R20: 24.45954167 | S20: 24.72870833 | T20: 24.997875 | U20: 25.26704167 | V20: 25.546825 | W20: 25.82660833 | X20: 26.10639167 | Y20: 26.386175 | Z20: 26.66595833 | AA20: 26.97809167 | AB20: 27.290225 | AC20: 27.60235833 | AD20: 27.91449167 | AE20: 28.226625 | AF20: 28.553975 | AG20: 28.881325 | AH20: 29.208675 | AI20: 29.536025 | AJ20: 29.863375 | AK20: 30.23104167
A21: Environment | B21: Rural population (% of total population) | C21: 3 | D21: Ghana | E21: 32 | F21: 68.833 | G21: 68.4872 | H21: 68.1414 | I21: 67.7956 | J21: 67.4498 | K21: 67.104 | L21: 66.395 | M21: 65.686 | N21: 64.977 | O21: 64.268 | P21: 63.559 | Q21: 62.8194 | R21: 62.0798 | S21: 61.3402 | T21: 60.6006 | U21: 59.861 | V21: 59.098 | W21: 58.335 | X21: 57.572 | Y21: 56.809 | Z21: 56.046 | AA21: 55.298 | AB21: 54.55 | AC21: 53.802 | AD21: 53.054 | AE21: 52.306 | AF21: 51.6018 | AG21: 50.8976 | AH21: 50.1934 | AI21: 49.4892 | AJ21: 48.785 | AK21: 48.1316
A22: Environment | B22: Rural population (% of total population) | D22: Comparable LMIC | E22: =COUNT(F22:AL22) -> 32 | F22: 67.51275 | G22: 67.17075 | H22: 66.82875 | I22: 66.48675 | J22: 66.14475 | K22: 65.80275 | L22: 65.44495 | M22: 65.08715 | N22: 64.72935 | O22: 64.37155 | P22: 64.01375 | Q22: 63.694925 | R22: 63.3761 | S22: 63.057275 | T22: 62.73845 | U22: 62.419625 | V22: 62.088975 | W22: 61.758325 | X22: 61.427675 | Y22: 61.097025 | Z22: 60.766375 | AA22: 60.264375 | AB22: 59.762375 | AC22: 59.260375 | AD22: 58.758375 | AE22: 58.256375 | AF22: 57.734875 | AG22: 57.213375 | AH22: 56.691875 | AI22: 56.170375 | AJ22: 55.648875 | AK22: 55.124175
A23: Environment | B23: Rural population (% of total population) | D23: Aspirational MIC | E23: =COUNT(F23:AL23) -> 32 | F23: 66.783125 | G23: 66.044625 | H23: 65.306125 | I23: 64.567625 | J23: 63.829125 | K23: 63.090625 | L23: 62.1777 | M23: 61.264775 | N23: 60.35185 | O23: 59.438925 | P23: 58.526 | Q23: 57.736575 | R23: 56.94715 | S23: 56.157725 | T23: 55.3683 | U23: 54.578875 | V23: 53.79625 | W23: 53.013625 | X23: 52.231 | Y23: 51.448375 | Z23: 50.66575 | AA23: 49.9644 | AB23: 49.26305 | AC23: 48.5617 | AD23: 47.86035 | AE23: 47.159 | AF23: 46.48815 | AG23: 45.8173 | AH23: 45.14645 | AI23: 44.4756 | AJ23: 43.80475 | AK23: 43.177925
A24: Environment | B24: Rural population (% of total population) | D24: Upper LIC | E24: =COUNT(F24:AL24) -> 32 | F24: 79.54116667 | G24: 79.1626 | H24: 78.78403333 | I24: 78.40546667 | J24: 78.0269 | K24: 77.64833333 | L24: 77.334425 | M24: 77.02051667 | N24: 76.70660833 | O24: 76.3927 | P24: 76.07879167 | Q24: 75.809625 | R24: 75.54045833 | S24: 75.27129167 | T24: 75.002125 | U24: 74.73295833 | V24: 74.453175 | W24: 74.17339167 | X24: 73.89360833 | Y24: 73.613825 | Z24: 73.33404167 | AA24: 73.02190833 | AB24: 72.709775 | AC24: 72.39764167 | AD24: 72.08550833 | AE24: 71.773375 | AF24: 71.446025 | AG24: 71.118675 | AH24: 70.791325 | AI24: 70.463975 | AJ24: 70.136625 | AK24: 69.76895833
A25: Health | B25: Life expectancy at birth, total (years) | C25: 4 | D25: Ghana | E25: 32 | F25: 53.11043902 | G25: 53.40907317 | H25: 53.68946341 | I25: 53.96465854 | J25: 54.24553659 | K25: 54.55541463 | L25: 54.92056098 | M25: 55.34585366 | N25: 55.82468293 | O25: 56.33804878 | P25: 56.84302439 | Q25: 57.28629268 | R25: 57.63004878 | S25: 57.85595122 | T25: 57.96907317 | U25: 57.99292683 | V25: 57.9684878 | W25: 57.95512195 | X25: 58.0012439 | Y25: 58.13480488 | Z25: 58.3822439 | AA25: 58.75553659 | AB25: 59.23219512 | AC25: 59.78573171 | AD25: 60.39660976 | AE25: 61.03831707 | AF25: 61.68136585 | AG25: 62.3002439 | AH25: 62.8735122 | AI25: 63.38817073 | AJ25: 63.83726829 | AK25: 64.22431707
A26: Health | B26: Life expectancy at birth, total (years) | D26: Comparable LMIC | E26: =COUNT(F26:AL26) -> 32 | F26: 54.17579573 | G26: 54.68072561 | H26: 55.14419512 | I26: 55.56172561 | J26: 55.9291128 | K26: 56.24209451 | L26: 56.50042073 | M26: 56.71129878 | N26: 56.88386585 | O26: 57.02627134 | P26: 57.14421037 | Q26: 57.24240549 | R26: 57.3279878 | S26: 57.40926524 | T26: 57.49666463 | U26: 57.59948476 | V26: 57.72452134 | W26: 57.87479878 | X26: 58.05290549 | Y26: 58.26343598 | Z26: 58.51111585 | AA26: 58.79896341 | AB26: 59.12334756 | AC26: 59.47816159 | AD26: 59.85872866 | AE26: 60.25905793 | AF26: 60.67374695 | AG26: 61.09520732 | AH26: 61.51629268 | AI26: 61.92957927 | AJ26: 62.32795732 | AK26: 62.706625
A27: Health | B27: Life expectancy at birth, total (years) | D27: Aspirational MIC | E27: =COUNT(F27:AL27) -> 32 | F27: 61.90178659 | G27: 62.39071037 | H27: 62.88117988 | I27: 63.36451524 | J27: 63.8319878 | K27: 64.27546037 | L27: 64.68702744 | M27: 65.05914634 | N27: 65.3833628 | O27: 65.65037805 | P27: 65.84810061 | Q27: 65.96569207 | R27: 66.00420732 | S27: 65.96906098 | T27: 65.86789634 | U27: 65.70170427 | V27: 65.4723872 | W27: 65.19629878 | X27: 64.89850915 | Y27: 64.60646341 | Z27: 64.36044817 | AA27: 64.1996128 | AB27: 64.14276829 | AC27: 64.19758232 | AD27: 64.36327439 | AE27: 64.62520732 | AF27: 64.95721951 | AG27: 65.3191189 | AH27: 65.67652744 | AI27: 66.01094512 | AJ27: 66.30945122 | AK27: 66.56972866
A28: Health | B28: Life expectancy at birth, total (years) | D28: Upper LIC | E28: =COUNT(F28:AL28) -> 32 | F28: 51.26227846 | G28: 51.69477541 | H28: 52.08937398 | I28: 52.43333638 | J28: 52.71403963 | K28: 52.91012907 | L28: 53.00263618 | M28: 52.9963374 | N28: 52.9073689 | O28: 52.83689126 | P28: 52.66857215 | Q28: 52.50431098 | R28: 52.35372866 | S28: 52.25372256 | T28: 52.22933537 | U28: 52.33394919 | V28: 52.56422256 | W28: 52.83689126 | X28: 53.1400437 | Y28: 53.46520224 | Z28: 53.88511382 | AA28: 54.27588313 | AB28: 54.66733435 | AC28: 55.12003455 | AD28: 55.58583435 | AE28: 56.06437703 | AF28: 56.55027541 | AG28: 57.05652541 | AH28: 57.57740142 | AI28: 58.08864126 | AJ28: 58.5629878 | AK28: 58.38947296
A29: Health | B29: Age dependency ratio (% of working-age population) | C29: 5 | D29: Ghana | E29: 32 | F29: 94.59394553 | G29: 94.188122 | H29: 93.71976337 | I29: 93.20462074 | J29: 92.65436275 | K29: 92.07395822 | L29: 91.46307061 | M29: 90.82080569 | N29: 90.14793755 | O29: 89.44728586 | P29: 88.72240189 | Q29: 87.98408623 | R29: 87.23302347 | S29: 86.45390934 | T29: 85.62622682 | U29: 84.73984756 | V29: 83.79469865 | W29: 82.80846209 | X29: 81.81065415 | Y29: 80.83793512 | Z29: 79.9165843 | AA29: 79.05179709 | AB29: 78.2396629 | AC29: 77.48358542 | AD29: 76.78450759 | AE29: 76.14122876 | AF29: 75.54698104 | AG29: 74.99691804 | AH29: 74.49115066 | AI29: 74.03040542 | AJ29: 73.60967831 | AK29: 73.22942129
A30: Health | B30: Age dependency ratio (% of working-age population) | D30: Comparable LMIC | E30: =COUNT(F30:AL30) -> 32 | F30: 90.87336477 | G30: 90.7118027 | H30: 90.51408859 | I30: 90.28397507 | J30: 90.02620821 | K30: 89.74070225 | L30: 89.42713837 | M30: 89.07888634 | N30: 88.68282565 | O30: 88.2243304 | P30: 87.69574691 | Q30: 87.10320824 | R30: 86.45517408 | S30: 85.75142134 | T30: 84.99022909 | U30: 84.17374099 | V30: 83.30049822 | W30: 82.38316321 | X30: 81.452425 | Y30: 80.54498768 | Z30: 79.68463713 | AA30: 78.88305046 | AB30: 78.133191 | AC30: 77.41690867 | AD30: 76.70744838 | AE30: 75.98773723 | AF30: 75.25342963 | AG30: 74.51643912 | AH30: 73.79452278 | AI30: 73.1103931 | AJ30: 72.47811613 | AK30: 71.89700354
A31: Health | B31: Age dependency ratio (% of working-age population) | D31: Aspirational MIC | E31: =COUNT(F31:AL31) -> 32 | F31: 81.04006414 | G31: 80.18134014 | H31: 79.33836626 | I31: 78.45792182 | J31: 77.4720304 | K31: 76.34610091 | L31: 75.07945488 | M31: 73.72137869 | N31: 72.34049316 | O31: 71.00347519 | P31: 69.74174099 | Q31: 68.56532912 | R31: 67.45547255 | S31: 66.37633757 | T31: 65.28042066 | U31: 64.14065577 | V31: 62.94673059 | W31: 61.72511957 | X31: 60.52596708 | Y31: 59.40911547 | Z31: 58.40796594 | AA31: 57.53118849 | AB31: 56.75479082 | AC31: 56.03935054 | AD31: 55.33417662 | AE31: 54.60796001 | AF31: 53.85543921 | AG31: 53.09571421 | AH31: 52.35235233 | AI31: 51.65582215 | AJ31: 51.02656539 | AK31: 50.46610958
A32: Health | B32: Age dependency ratio (% of working-age population) | D32: Upper LIC | E32: =COUNT(F32:AL32) -> 32 | F32: 90.37140227 | G32: 90.36113599 | H32: 90.41095167 | I32: 90.49302106 | J32: 90.57168112 | K32: 90.6240191 | L32: 90.64250471 | M32: 90.63412025 | N32: 90.60461811 | O32: 90.55361814 | P32: 90.47147534 | Q32: 90.36164884 | R32: 90.21802093 | S32: 90.00407843 | T32: 89.66009202 | U32: 89.1449125 | V32: 88.46009091 | W32: 87.65088545 | X32: 86.76578939 | Y32: 85.845226 | Z32: 84.90786365 | AA32: 83.95368739 | AB32: 82.98294004 | AC32: 82.00816595 | AD32: 81.04451804 | AE32: 80.10510636 | AF32: 79.19468919 | AG32: 78.31710632 | AH32: 77.48000983 | AI32: 76.68885234 | AJ32: 75.94480543 | AK32: 75.24711668
A33: Environment | B33: Urban population growth (annual %) | C33: 6 | D33: Ghana | E33: 32 | F33: 31.167 | G33: 31.5128 | H33: 31.8586 | I33: 32.2044 | J33: 32.5502 | K33: 32.896 | L33: 33.605 | M33: 34.314 | N33: 35.023 | O33: 35.732 | P33: 36.441 | Q33: 37.1806 | R33: 37.9202 | S33: 38.6598 | T33: 39.3994 | U33: 40.139 | V33: 40.902 | W33: 41.665 | X33: 42.428 | Y33: 43.191 | Z33: 43.954 | AA33: 44.702 | AB33: 45.45 | AC33: 46.198 | AD33: 46.946 | AE33: 47.694 | AF33: 48.3982 | AG33: 49.1024 | AH33: 49.8066 | AI33: 50.5108 | AJ33: 51.215 | AK33: 51.8684
A34: Environment | B34: Urban population growth (annual %) | D34: Comparable LMIC | E34: =COUNT(F34:AL34) -> 32 | F34: 32.48725 | G34: 32.82925 | H34: 33.17125 | I34: 33.51325 | J34: 33.85525 | K34: 34.19725 | L34: 34.55505 | M34: 34.91285 | N34: 35.27065 | O34: 35.62845 | P34: 35.98625 | Q34: 36.305075 | R34: 36.6239 | S34: 36.942725 | T34: 37.26155 | U34: 37.580375 | V34: 37.911025 | W34: 38.241675 | X34: 38.572325 | Y34: 38.902975 | Z34: 39.233625 | AA34: 39.735625 | AB34: 40.237625 | AC34: 40.739625 | AD34: 41.241625 | AE34: 41.743625 | AF34: 42.265125 | AG34: 42.786625 | AH34: 43.308125 | AI34: 43.829625 | AJ34: 44.351125 | AK34: 44.875825
A35: Environment | B35: Urban population growth (annual %) | D35: Aspirational MIC | E35: =COUNT(F35:AL35) -> 32 | F35: 33.216875 | G35: 33.955375 | H35: 34.693875 | I35: 35.432375 | J35: 36.170875 | K35: 36.909375 | L35: 37.8223 | M35: 38.735225 | N35: 39.64815 | O35: 40.561075 | P35: 41.474 | Q35: 42.263425 | R35: 43.05285 | S35: 43.842275 | T35: 44.6317 | U35: 45.421125 | V35: 46.20375 | W35: 46.986375 | X35: 47.769 | Y35: 48.551625 | Z35: 49.33425 | AA35: 50.0356 | AB35: 50.73695 | AC35: 51.4383 | AD35: 52.13965 | AE35: 52.841 | AF35: 53.51185 | AG35: 54.1827 | AH35: 54.85355 | AI35: 55.5244 | AJ35: 56.19525 | AK35: 56.822075
A36: Environment | B36: Urban population growth (annual %) | D36: Upper LIC | E36: =COUNT(F36:AL36) -> 32 | F36: 20.45883333 | G36: 20.8374 | H36: 21.21596667 | I36: 21.59453333 | J36: 21.9731 | K36: 22.35166667 | L36: 22.665575 | M36: 22.97948333 | N36: 23.29339167 | O36: 23.6073 | P36: 23.92120833 | Q36: 24.190375 | R36: 24.45954167 | S36: 24.72870833 | T36: 24.997875 | U36: 25.26704167 | V36: 25.546825 | W36: 25.82660833 | X36: 26.10639167 | Y36: 26.386175 | Z36: 26.66595833 | AA36: 26.97809167 | AB36: 27.290225 | AC36: 27.60235833 | AD36: 27.91449167 | AE36: 28.226625 | AF36: 28.553975 | AG36: 28.881325 | AH36: 29.208675 | AI36: 29.536025 | AJ36: 29.863375 | AK36: 30.23104167
A37: Health | B37: Maternal mortality ratio (modeled estimate, per 100,000 live births) | C37: 7 | D37: Ghana | E37: 5 | P37: 580 | U37: 590 | Z37: 550 | AE37: 440 | AJ37: 350
A38: Health | B38: Maternal mortality ratio (modeled estimate, per 100,000 live births) | D38: Comparable LMIC | E38: =COUNT(F38:AL38) -> 5 | P38: 516.25 | U38: 465 | Z38: 420 | AE38: 356.75 | AJ38: 287.25
A39: Health | B39: Maternal mortality ratio (modeled estimate, per 100,000 live births) | D39: Aspirational MIC | E39: =COUNT(F39:AL39) -> 5 | P39: 192.125 | U39: 171 | Z39: 193.375 | AE39: 183.75 | AJ39: 131.25
A40: Health | B40: Maternal mortality ratio (modeled estimate, per 100,000 live births) | D40: Upper LIC | E40: =COUNT(F40:AL40) -> 5 | P40: 733.5 | U40: 721.7916667 | Z40: 609.2083333 | AE40: 501.375 | AJ40: 396.9166667
A41: Health | B41: Maternal mortality ratio (national estimate, per 100,000 live births) | C41: 8 | D41: Ghana | E41: 2 | F41: 210 | AG41: 450
A42: Health | B42: Maternal mortality ratio (national estimate, per 100,000 live births) | D42: Comparable LMIC | E42: =COUNT(F42:AL42) -> 14 | R42: 560 | T42: 600 | W42: 108 | X42: 540 | AA42: 449.5 | AB42: 180 | AC42: 237.55 | AE42: 470 | AF42: 177.8 | AG42: 590 | AH42: 247.5333333 | AI42: 136.3333333 | AJ42: 100 | AK42: 390
A43: Health | B43: Maternal mortality ratio (national estimate, per 100,000 live births) | D43: Aspirational MIC | E43: =COUNT(F43:AL43) -> 15 | I43: 217 | Q43: 326 | X43: 150 | Z43: 162 | AA43: 43.9 | AB43: 307 | AC43: 79.625 | AD43: 75.9 | AE43: 108.28 | AF43: 35.55 | AG43: 164.12 | AH43: 87.73333333 | AI43: 31 | AJ43: 95 | AK43: 26.1
A44: Health | B44: Maternal mortality ratio (national estimate, per 100,000 live births) | D44: Upper LIC | E44: =COUNT(F44:AL44) -> 17 | N44: 578 | V44: 295 | W44: 830 | X44: 481 | Y44: 700 | Z44: 1062 | AA44: 226.55 | AB44: 925 | AC44: 147.5714286 | AD44: 944.6666667 | AE44: 364.3 | AF44: 301.0333333 | AG44: 690.3333333 | AH44: 309.6555556 | AI44: 201.1666667 | AJ44: 327.1555556 | AK44: 693.3333333
A45: Health | B45: Mortality rate, under-5 (per 1,000 live births) | C45: 9 | D45: Ghana | E45: 32 | F45: 155.1 | G45: 153.4 | H45: 151.9 | I45: 150.5 | J45: 148.3 | K45: 144.9 | L45: 140.7 | M45: 135.2 | N45: 129.8 | O45: 124.8 | P45: 120.9 | Q45: 117.9 | R45: 114.8 | S45: 112.7 | T45: 111.1 | U45: 109.2 | V45: 107.5 | W45: 105.5 | X45: 103.3 | Y45: 101.1 | Z45: 98.7 | AA45: 96.8 | AB45: 94.6 | AC45: 92.4 | AD45: 90.8 | AE45: 88.4 | AF45: 86.5 | AG45: 84.6 | AH45: 83 | AI45: 81 | AJ45: 79.6 | AK45: 77.6
A46: Health | B46: Mortality rate, under-5 (per 1,000 live births) | D46: Comparable LMIC | E46: =COUNT(F46:AL46) -> 32 | F46: 140.8375 | G46: 138.05 | H46: 135.625 | I46: 133.475 | J46: 131.25 | K46: 129.0375 | L46: 127.0375 | M46: 125.1875 | N46: 123.55 | O46: 122.05 | P46: 120.675 | Q46: 119.5125 | R46: 118.3875 | S46: 117.2375 | T46: 115.725 | U46: 114.1125 | V46: 111.8875 | W46: 109.3625 | X46: 106.7625 | Y46: 103.675 | Z46: 100.325 | AA46: 96.9875 | AB46: 93.5375 | AC46: 90.1 | AD46: 86.8375 | AE46: 83.35 | AF46: 80.05 | AG46: 76.7375 | AH46: 73.4 | AI46: 70.2 | AJ46: 67.125 | AK46: 64.1875
A47: Health | B47: Mortality rate, under-5 (per 1,000 live births) | D47: Aspirational MIC | E47: =COUNT(F47:AL47) -> 32 | F47: 78.6875 | G47: 75.225 | H47: 71.9125 | I47: 69 | J47: 66.525 | K47: 63.975 | L47: 61.6875 | M47: 59.4 | N47: 57.275 | O47: 55.3375 | P47: 53.575 | Q47: 52.1125 | R47: 51.0125 | S47: 50.0375 | T47: 49.3 | U47: 48.7125 | V47: 48.3375 | W47: 48.075 | X47: 47.925 | Y47: 47.775 | Z47: 47.625 | AA47: 47.05 | AB47: 46.05 | AC47: 44.4125 | AD47: 41.6625 | AE47: 38.525 | AF47: 35.61249875 | AG47: 33.2125 | AH47: 31.225 | AI47: 29.025 | AJ47: 26.45 | AK47: 24.3625
A48: Health | B48: Mortality rate, under-5 (per 1,000 live births) | D48: Upper LIC | E48: =COUNT(F48:AL48) -> 32 | F48: 187.6043478 | G48: 183.1652174 | H48: 178.9391304 | I48: 175.2 | J48: 171.773913 | K48: 164.3583333 | L48: 162.1166667 | M48: 160.2708333 | N48: 158.4625 | O48: 156.7708333 | P48: 155.575 | Q48: 154.45 | R48: 153.2791667 | S48: 152.3333333 | T48: 153.5875 | U48: 149.6041667 | V48: 144.3583333 | W48: 141.1958333 | X48: 137.8625 | Y48: 132.6416667 | Z48: 127.975 | AA48: 123.3291667 | AB48: 118.775 | AC48: 114.4125 | AD48: 110.15 | AE48: 105.9083333 | AF48: 101.975 | AG48: 97.82083333 | AH48: 94.00416667 | AI48: 90.4625 | AJ48: 87.075 | AK48: 83.81666667
A49: Health | B49: Physicians (per 1,000 people) | C49: 10 | D49: Ghana | E49: 9 | J49: 0.0671999976 | M49: 0.04870000109 | O49: 0.04300000146 | V49: 0.062 | AB49: 0.09 | AD49: 0.15 | AH49: 0.11 | AI49: 0.085 | AJ49: 0.085
A50: Health | B50: Physicians (per 1,000 people) | D50: Comparable LMIC | E50: =COUNT(F50:AL50) -> 29 | F50: 0.2001749966 | G50: 0.2721999971 | H50: 0.1128000021 | I50: 0.139500007 | J50: 0.5958999991 | K50: 0.2697250023 | L50: 0.6213499978 | N50: 0.6251333356 | O50: 0.2914499938 | P50: 0.3313499944 | Q50: 0.5433333218 | R50: 0.2924499996 | S50: 0.2993499935 | T50: 0.1878499948 | U50: 0.381 | V50: 0.0915 | W50: 0.648 | X50: 0.3626666667 | Y50: 0.515 | Z50: 0.6696666667 | AA50: 0.534 | AB50: 0.8335 | AC50: 0.28 | AD50: 0.225 | AE50: 0.4855 | AF50: 0.055 | AH50: 0.4555 | AI50: 0.649 | AJ50: 0.4228333333
A51: Health | B51: Physicians (per 1,000 people) | D51: Aspirational MIC | E51: =COUNT(F51:AL51) -> 32 | F51: 0.4261999838 | G51: 0.4387166649 | H51: 1.299999952 | I51: 0.4324250147 | J51: 0.8055666784 | K51: 0.8227500059 | L51: 0.622266675 | M51: 0.6281000078 | N51: 0.6864200056 | O51: 0.4965999961 | P51: 0.7342799932 | Q51: 0.5096999913 | R51: 0.5335333248 | S51: 0.5139599889 | T51: 0.5330400098 | U51: 0.904 | V51: 0.844 | W51: 0.8286 | X51: 0.9505 | Y51: 0.8656 | Z51: 0.7878 | AA51: 0.6803333333 | AB51: 0.8743333333 | AC51: 0.609 | AD51: 0.442 | AE51: 0.9015 | AF51: 0.61825 | AG51: 0.679 | AH51: 1.007 | AJ51: 0.8192857143 | AK51: 1.289 | AL51: 0.204
A52: Health | B52: Physicians (per 1,000 people) | D52: Upper LIC | E52: =COUNT(F52:AL52) -> 32 | F52: 0.7749076991 | G52: 0.5393466617 | H52: 1.235749954 | I52: 1.097128609 | J52: 0.7881300055 | K52: 1.108369239 | L52: 1.411140007 | M52: 2.355450002 | N52: 2.856660011 | O52: 1.234175021 | P52: 1.154952235 | Q52: 1.81641251 | R52: 2.303916709 | S52: 1.187108368 | T52: 1.281827292 | U52: 1.175916667 | V52: 1.71575 | W52: 1.527666667 | X52: 2.256833333 | Y52: 1.771571429 | Z52: 1.479444444 | AA52: 1.38 | AB52: 0.852375 | AC52: 1.918 | AD52: 0.2485555556 | AE52: 0.6726 | AF52: 1.373828571 | AG52: 1.9546 | AH52: 0.05975 | AI52: 0.0918 | AJ52: 0.7071052632 | AK52: 1.8296
A53: Health | B53: Nurses and midwives (per 1,000 people) | C53: 11 | D53: Ghana | E53: 4 | AD53: 0.92 | AH53: 0.975 | AI53: 1.046 | AJ53: 1.046
A54: Health | B54: Nurses and midwives (per 1,000 people) | D54: Comparable LMIC | E54: =COUNT(F54:AL54) -> 8 | Z54: 1.32 | AB54: 1.279 | AC54: 1.7 | AD54: 0.9726 | AE54: 1.191 | AF54: 0.706 | AH54: 0.902 | AJ54: 0.8823333333
A55: Health | B55: Nurses and midwives (per 1,000 people) | D55: Aspirational MIC | E55: =COUNT(F55:AL55) -> 10 | Z55: 3.335 | AB55: 1.586 | AC55: 0.89 | AD55: 2.8285 | AF55: 2.8765 | AG55: 3.772 | AH55: 4.575 | AJ55: 3.1445 | AK55: 1.66 | AL55: 1.383
A56: Health | B56: Nurses and midwives (per 1,000 people) | D56: Upper LIC | E56: =COUNT(F56:AL56) -> 11 | Z56: 0.85 | AB56: 0.775 | AC56: 0.22 | AD56: 0.7044 | AE56: 2.782 | AF56: 2.598333333 | AG56: 3.8 | AH56: 0.45325 | AI56: 0.866 | AJ56: 1.792578947 | AK56: 2.2922
A57: ODA | B57: Net ODA % GDP | C57: 12 | D57: Ghana | E57: 32 | F57: 4.292468208 | G57: 3.413190833 | H57: 3.437318821 | I57: 2.671497465 | J57: 4.830155959 | K57: 4.314281553 | L57: 6.265797719 | M57: 8.059777225 | N57: 11.07363623 | O57: 13.62456398 | P57: 9.504216034 | Q57: 13.30626275 | R57: 9.550692009 | S57: 10.48466894 | T57: 10.03016667 | U57: 10.03080004 | V57: 9.373019474 | W57: 7.162660361 | X57: 9.376412902 | Y57: 7.874725011 | Z57: 12.00457797 | AA57: 12.05334838 | AB57: 11.12841479 | AC57: 12.88465858 | AD57: 15.97368556 | AE57: 10.72216297 | AF57: 6.091250888 | AG57: 4.706465938 | AH57: 4.581211063 | AI57: 6.088949439 | AJ57: 5.260445787 | AK57: 4.631392678
A58: ODA | B58: Net ODA % GDP | D58: Comparable LMIC | E58: =COUNT(F58:AL58) -> 32 | F58: 3.36383424 | G58: 3.645499771 | H58: 3.853590228 | I58: 4.079372768 | J58: 4.925104337 | K58: 4.564991456 | L58: 6.734032372 | M58: 5.463515707 | N58: 5.090463652 | O58: 5.11887005 | P58: 6.863335128 | Q58: 7.454929615 | R58: 8.747509551 | S58: 7.171857117 | T58: 9.23206775 | U58: 12.50546204 | V58: 6.56325297 | W58: 5.085606413 | X58: 5.082323866 | Y58: 6.980806127 | Z58: 6.315783872 | AA58: 5.122518494 | AB58: 6.310743317 | AC58: 4.638116278 | AD58: 5.963634834 | AE58: 5.279944735 | AF58: 5.1834677 | AG58: 3.345054411 | AH58: 3.343150634 | AI58: 4.693155812 | AJ58: 3.086706029 | AK58: 3.331177852
A59: ODA | B59: Net ODA % GDP | D59: Aspirational MIC | E59: =COUNT(F59:AL59) -> 32 | F59: 1.628903573 | G59: 1.511050028 | H59: 1.599442319 | I59: 1.455226542 | J59: 1.425885546 | K59: 1.488283542 | L59: 1.406564955 | M59: 1.628462537 | N59: 1.29666864 | O59: 1.447787199 | P59: 1.627320706 | Q59: 1.731520739 | R59: 1.345445361 | S59: 1.41148358 | T59: 1.045035138 | U59: 1.167668716 | V59: 0.9927317973 | W59: 1.00161562 | X59: 1.279966596 | Y59: 1.18542887 | Z59: 0.8254611273 | AA59: 0.6686484321 | AB59: 0.8044972567 | AC59: 0.5008948981 | AD59: 0.4805643055 | AE59: 0.4234964669 | AF59: 0.4058629192 | AG59: 0.4840097794 | AH59: 1.036298989 | AI59: 0.8440534903 | AJ59: 0.4850892611 | AK59: 0.4194658777
A60: ODA | B60: Net ODA % GDP | D60: Upper LIC | E60: =COUNT(F60:AL60) -> 32 | F60: 8.598938043 | G60: 8.150788509 | H60: 8.350166804 | I60: 9.018422104 | J60: 9.092594746 | K60: 8.565173623 | L60: 10.15614826 | M60: 10.81619234 | N60: 13.52247504 | O60: 14.12098875 | P60: 13.54806097 | Q60: 14.04522592 | R60: 18.04525206 | S60: 17.67458672 | T60: 21.91227178 | U60: 20.49608722 | V60: 17.16200552 | W60: 10.89198002 | X60: 12.6487235 | Y60: 11.90573638 | Z60: 11.37520972 | AA60: 12.08020599 | AB60: 13.29704282 | AC60: 12.74801888 | AD60: 14.17886632 | AE60: 12.51377952 | AF60: 12.64779808 | AG60: 14.80430443 | AH60: 16.28869939 | AI60: 12.19704956 | AJ60: 14.63856672 | AK60: 10.79372475
A61: Poverty | B61: Poverty headcount ratio at $1.25 a day (PPP) (% of population) | C61: 13 | D61: Ghana | E61: 5 | N61: 50.59 | O61: 49.37 | R61: 51.07 | X61: 39.12 | AF61: 28.59
A62: Poverty | B62: Poverty headcount ratio at $1.25 a day (PPP) (% of population) | D62: Comparable LMIC | E62: =COUNT(F62:AL62) -> 27 | I62: 55.51 | K62: 9.53 | L62: 24.21333333 | M62: 8.68 | N62: 33.675 | O62: 41.06 | P62: 23.975 | Q62: 53.3 | R62: 44.615 | S62: 42.575 | T62: 46.31 | U62: 19.97666667 | V62: 54 | W62: 20.61 | X62: 33.588 | Y62: 19.815 | AA62: 24.41666667 | AB62: 26.83 | AC62: 33.82666667 | AD62: 37.802 | AE62: 27.195 | AF62: 30.925 | AG62: 12.515 | AH62: 16.8875 | AI62: 12.74 | AJ62: 45.5675 | AK62: 41.99
A63: Poverty | B63: Poverty headcount ratio at $1.25 a day (PPP) (% of population) | D63: Aspirational MIC | E63: =COUNT(F63:AL63) -> 29 | G63: 39.86 | H63: 13.66 | I63: 16.65 | J63: 37.7475 | K63: 13.52 | L63: 22.655 | M63: 34.555 | N63: 15.94 | O63: 7.815 | P63: 35.8075 | R63: 22.985 | S63: 39.714 | T63: 31.70666667 | U63: 22.205 | V63: 23.655 | W63: 20.23333333 | X63: 20.35666667 | Y63: 24.47 | Z63: 14.62 | AA63: 11.82 | AB63: 17.4675 | AC63: 11.21 | AD63: 14.07333333 | AE63: 15.40333333 | AF63: 13.6575 | AG63: 10.44333333 | AH63: 10.52 | AI63: 8.75 | AJ63: 9.22
A64: Poverty | B64: Poverty headcount ratio at $1.25 a day (PPP) (% of population) | D64: Upper LIC | E64: =COUNT(F64:AL64) -> 28 | H64: 66.22 | J64: 60.57 | K64: 41.645 | L64: 55.27 | N64: 0 | O64: 67.67 | P64: 62.79 | Q64: 15.01 | R64: 65.19333333 | S64: 18.61 | T64: 48.05666667 | U64: 60.52 | V64: 45.384 | W64: 28.21 | X64: 55.844 | Y64: 42.6 | Z64: 57.81666667 | AA64: 19.53 | AB64: 33.008 | AC64: 49.56428571 | AD64: 36.635 | AE64: 34.344 | AF64: 44.19166667 | AG64: 31.80714286 | AH64: 27.574 | AI64: 26.22833333 | AJ64: 26.738 | AK64: 35.756
A65: Poverty | B65: GINI index | C65: 14 | D65: Ghana | E65: 5 | N65: 35.35 | O65: 35.99 | R65: 38.13 | X65: 40.75 | AF65: 42.76
A66: Poverty | B66: GINI index | D66: Comparable LMIC | E66: =COUNT(F66:AL66) -> 27 | I66: 31.11 | K66: 41.21 | L66: 44.13 | M66: 40.43 | N66: 34.385 | O66: 59.49 | P66: 49.1 | Q66: 52.995 | R66: 48.39 | S66: 44.6675 | T66: 42.42333333 | U66: 50.11333333 | V66: 50.67 | W66: 52.73 | X66: 49.364 | Y66: 56.155 | AA66: 50.59333333 | AB66: 50.375 | AC66: 52.55666667 | AD66: 48.594 | AE66: 46.1675 | AF66: 50.6975 | AG66: 54.735 | AH66: 47.6125 | AI66: 53.995 | AJ66: 48.16 | AK66: 40.02
A67: Poverty | B67: GINI index | D67: Aspirational MIC | E67: =COUNT(F67:AL67) -> 29 | G67: 44.08666667 | H67: 58.42 | I67: 58.99 | J67: 41.2925 | K67: 55.59 | L67: 56.335 | M67: 41.4625 | N67: 52.635 | O67: 54.735 | P67: 41.9825 | R67: 49.83333333 | S67: 51.854 | T67: 52.215 | U67: 55.11666667 | V67: 42.62 | W67: 54.84 | X67: 50.905 | Y67: 42.7725 | Z67: 50.305 | AA67: 60.13 | AB67: 43.4325 | AC67: 58.78 | AD67: 53.16333333 | AE67: 44.63666667 | AF67: 55.50666667 | AG67: 50.945 | AH67: 47.79 | AI67: 49.224 | AJ67: 37.47
A68: Poverty | B68: GINI index | D68: Upper LIC | E68: =COUNT(F68:AL68) -> 27 | H68: 32.42 | J68: 25.88 | K68: 30.685 | L68: 26.92 | N68: 25.48 | O68: 36.605 | Q68: 32.48 | R68: 37.545 | S68: 53.7 | T68: 43.68666667 | U68: 45.03 | V68: 37.524 | W68: 39.76666667 | X68: 43.01166667 | Y68: 37.71333333 | Z68: 41.55333333 | AA68: 41.04 | AB68: 37.665 | AC68: 39.6675 | AD68: 37.315 | AE68: 38.254 | AF68: 40.53166667 | AG68: 37.96 | AH68: 39.776 | AI68: 38.3 | AJ68: 38.208 | AK68: 38.488
A69: Health | B69: Malnutrition prevalence, weight for age (% of children under 5) | C69: 15 | D69: Ghana | E69: 6 | N69: 24 | S69: 25.1 | Y69: 20.3 | AC69: 18.8 | AF69: 13.9 | AH69: 14.3
A70: Health | B70: Malnutrition prevalence, weight for age (% of children under 5) | D70: Comparable LMIC | E70: =COUNT(F70:AL70) -> 22 | J70: 47 | L70: 14.05 | M70: 18.1 | O70: 40.7 | P70: 32.46666667 | R70: 26.675 | S70: 31.3 | T70: 25.86666667 | V70: 19.46666667 | W70: 41.1 | X70: 27 | Y70: 31.025 | Z70: 25.2 | AA70: 12.5 | AB70: 23.35 | AC70: 25.9 | AD70: 23.8 | AE70: 13.53333333 | AF70: 22.725 | AG70: 23.15 | AH70: 23.45 | AK70: 19.2
A71: Health | B71: Malnutrition prevalence, weight for age (% of children under 5) | D71: Aspirational MIC | E71: =COUNT(F71:AL71) -> 23 | L71: 9.7 | M71: 24 | O71: 18.15 | P71: 17.35 | Q71: 23.1 | R71: 22.025 | S71: 18.4 | T71: 13.85 | U71: 17.8 | V71: 9.8 | X71: 16.35 | Y71: 16.53333333 | Z71: 15.8 | AA71: 23.4 | AB71: 11.16666667 | AC71: 15.65 | AD71: 10.3 | AE71: 13.5 | AF71: 9.95 | AG71: 12.625 | AH71: 6.9 | AI71: 4.6 | AJ71: 11
A72: Health | B72: Malnutrition prevalence, weight for age (% of children under 5) | D72: Upper LIC | E72: =COUNT(F72:AL72) -> 28 | G72: 21.1 | I72: 63.8 | L72: 66.8 | M72: 23.33333333 | N72: 16.46666667 | O72: 23.7 | P72: 43.45 | Q72: 44.7 | R72: 37.46666667 | S72: 36.46 | T72: 32.1 | U72: 31.84 | V72: 30.775 | W72: 30.775 | X72: 30.1 | Y72: 25.04 | Z72: 27.51428571 | AA72: 29.35 | AB72: 25.1 | AC72: 28.45 | AD72: 27.325 | AE72: 23.87777778 | AF72: 20.89 | AG72: 22.68 | AH72: 22.225 | AI72: 15.44 | AJ72: 16.16 | AK72: 29.2
A73: Education | B73: School enrollment, primary (% gross) | C73: 16 | D73: Ghana | E73: 31 | F73: 74.84815 | G73: 77.2033 | H73: 78.25705 | I73: 75.79387 | J73: 72.17829 | K73: 73.2374 | L73: 69.19386 | M73: 69.92421 | N73: 68.7987 | O73: 72.32982 | P73: 70.49497 | Q73: 78.73879 | R73: 79.40093 | S73: 78.80844 | T73: 80.36072 | U73: 79.17144 | V73: 79.12972 | W73: 82.27198 | Y73: 80.53023 | Z73: 85.19041 | AA73: 81.12121 | AB73: 83.14201 | AC73: 79.68506 | AD73: 83.56071 | AE73: 90.30353 | AF73: 95.49522 | AG73: 101.35445 | AH73: 107.34923 | AI73: 106.29565 | AK73: 107.27834 | AL73: 110.27192
A74: Education | B74: School enrollment, primary (% gross) | D74: Comparable LMIC | E74: =COUNT(F74:AL74) -> 32 | F74: 86.75986375 | G74: 88.33576 | H74: 88.34198286 | I74: 91.73415875 | J74: 92.2336075 | K74: 91.72228875 | L74: 90.592235 | M74: 86.99063143 | N74: 89.8385725 | O74: 86.59879286 | P74: 89.14857125 | Q74: 89.220105 | R74: 89.14649429 | S74: 90.87007571 | T74: 91.59678625 | U74: 91.21956125 | V74: 91.35791714 | W74: 94.78278167 | X74: 91.93334333 | Y74: 91.47591429 | Z74: 94.4875175 | AA74: 92.44673571 | AB74: 92.85512714 | AC74: 93.280602 | AD74: 103.6736829 | AE74: 105.5182914 | AF74: 102.2771362 | AG74: 102.1268362 | AH74: 101.5729075 | AI74: 97.64173429 | AJ74: 100.8176517 | AK74: 102.390198
A75: Education | B75: School enrollment, primary (% gross) | D75: Aspirational MIC | E75: =COUNT(F75:AL75) -> 32 | F75: 105.241416 | G75: 102.6902443 | H75: 103.7545557 | I75: 107.8930383 | J75: 109.499535 | K75: 110.3310783 | L75: 106.584555 | M75: 109.2345175 | N75: 110.31149 | O75: 112.2654737 | P75: 113.2908038 | Q75: 112.7465475 | R75: 112.5022514 | S75: 111.7914014 | T75: 112.8374812 | U75: 108.4943057 | V75: 106.06944 | W75: 114.4603314 | X75: 106.5709267 | Y75: 112.9792083 | Z75: 111.0026029 | AA75: 111.2480287 | AB75: 111.255625 | AC75: 112.7822157 | AD75: 110.1842757 | AE75: 109.2233186 | AF75: 106.496305 | AG75: 107.2145 | AH75: 106.606145 | AI75: 106.3396633 | AJ75: 112.0697067 | AK75: 113.06421
A76: Education | B76: School enrollment, primary (% gross) | D76: Upper LIC | E76: =COUNT(F76:AL76) -> 33 | F76: 74.48850176 | G76: 87.89235571 | H76: 86.89823944 | I76: 86.82063611 | J76: 83.21946211 | K76: 81.70103 | L76: 86.37837682 | M76: 79.21338706 | N76: 78.94286842 | O76: 79.3373065 | P76: 78.12969905 | Q76: 77.79812095 | R76: 80.0200165 | S76: 79.04518412 | T76: 80.88300235 | U76: 86.82924556 | V76: 86.37442538 | W76: 88.00223091 | X76: 87.13679875 | Y76: 89.48906 | Z76: 91.555396 | AA76: 94.422046 | AB76: 97.42450789 | AC76: 98.81232176 | AD76: 101.7450053 | AE76: 103.3358426 | AF76: 105.651917 | AG76: 108.7492079 | AH76: 111.2901971 | AI76: 113.3487271 | AJ76: 115.3845821 | AK76: 117.0731 | AL76: 93.6399
A77: Education | B77: Trained teachers in primary education (% of total teachers) | C77: 17 | D77: Ghana | E77: 13 | Y77: 71.79637 | Z77: 69.09326 | AA77: 68.61241 | AB77: 64.94438 | AC77: 62.88047 | AD77: 60.71373 | AE77: 57.8754 | AF77: 56.30391 | AG77: 53.0112 | AH77: 49.07108 | AI77: 47.56669 | AK77: 50.60028 | AL77: 52.26588
A78: Education | B78: Trained teachers in primary education (% of total teachers) | D78: Comparable LMIC | E78: =COUNT(F78:AL78) -> 14 | X78: 88.77047 | Y78: 85.91817 | Z78: 93.16394 | AA78: 92.00339 | AB78: 93.50622 | AC78: 77.68953 | AD78: 62.43028333 | AE78: 63.01147667 | AF78: 65.51994667 | AG78: 81.27734 | AH78: 70.3118975 | AI78: 80.7335 | AJ78: 70.77874 | AK78: 99.65129
A79: Education | B79: Trained teachers in primary education (% of total teachers) | D79: Aspirational MIC | E79: =COUNT(F79:AL79) -> 13 | X79: 60.446085 | Y79: 76.751205 | Z79: 78.54842 | AA79: 71.623 | AB79: 83.498335 | AC79: 86.14382667 | AD79: 92.111325 | AE79: 92.507535 | AF79: 93.594165 | AG79: 96.09907 | AH79: 96.92398 | AI79: 94.21022667 | AJ79: 96.38881
A80: Education | B80: Trained teachers in primary education (% of total teachers) | D80: Upper LIC | E80: =COUNT(F80:AL80) -> 14 | Y80: 52.40826833 | Z80: 67.064248 | AA80: 79.99761125 | AB80: 80.66747571 | AC80: 83.59349667 | AD80: 83.72912 | AE80: 82.60464 | AF80: 82.19599692 | AG80: 86.47386571 | AH80: 83.39166533 | AI80: 81.15467765 | AJ80: 80.19309154 | AK80: 77.74944688 | AL80: 96.60031
A81: Education | B81: Literacy rate, adult total (% of people ages 15 and above) | C81: 18 | D81: Ghana | E81: 2 | Z81: 57.89747287 | AJ81: 67.27296
A82: Education | B82: Literacy rate, adult total (% of people ages 15 and above) | D82: Comparable LMIC | E82: =COUNT(F82:AL82) -> 18 | G82: 40.76359022 | H82: 78.45861285 | N82: 30.50406604 | O82: 87.59645062 | P82: 64.99826421 | Q82: 51.83441487 | R82: 90.27182487 | X82: 36.35024201 | Y82: 79.14004535 | Z82: 69.44844568 | AA82: 70.51279406 | AB82: 54.21223216 | AC82: 54.77317856 | AF82: 52.3228131 | AG82: 89.07360612 | AH82: 93.29208399 | AI82: 71.7246822 | AJ82: 76.75415782
A83: Education | B83: Literacy rate, adult total (% of people ages 15 and above) | D83: Aspirational MIC | E83: =COUNT(F83:AL83) -> 15 | F83: 75.11959679 | H83: 65.50508573 | P83: 79.65245554 | Q83: 75.77095443 | V83: 82.40210237 | Z83: 89.65559785 | AA83: 85.04128186 | AC83: 81.18870975 | AD83: 89.50051594 | AE83: 93.50647575 | AF83: 90.79874914 | AG83: 89.36331011 | AH83: 91.11446032 | AI83: 91.43995248 | AJ83: 90.1530489
A84: Education | B84: Literacy rate, adult total (% of people ages 15 and above) | D84: Upper LIC | E84: =COUNT(F84:AL84) -> 28 | F84: 27.1017784 | G84: 58.00257734 | H84: 77.79416632 | J84: 32.10676616 | M84: 48.53665373 | N84: 59.11380352 | O84: 97.69402291 | P84: 37.38472344 | Q84: 40.71234929 | R84: 55.37891505 | S84: 10.89465314 | T84: 35.23610765 | U84: 60.2513332 | V84: 12.84816893 | W84: 38.70787656 | X84: 65.73464035 | Y84: 98.70161259 | Z84: 69.11625708 | AA84: 68.57701635 | AB84: 67.9709016 | AC84: 34.99087808 | AD84: 45.49926172 | AE84: 42.02543843 | AF84: 73.02344609 | AG84: 49.85504839 | AH84: 84.07224662 | AI84: 76.74493656 | AJ84: 71.76413663
A85: Private Sector & Trade | B85: Agricultural raw materials exports (% of merchandise exports) | C85: 19 | D85: Ghana | E85: 20 | F85: 3.574647348 | G85: 5.882175297 | H85: 2.453431883 | I85: 3.493439746 | J85: 2.878077305 | R85: 14.6975636 | V85: 14.8130742 | W85: 11.78852985 | X85: 10.55038937 | Y85: 10.91716443 | Z85: 10.24603203 | AA85: 11.05161075 | AC85: 9.949363021 | AE85: 7.212400819 | AF85: 4.01794761 | AG85: 9.887285448 | AH85: 8.960649701 | AI85: 5.67449175 | AJ85: 6.947088081 | AK85: 4.860087747
A86: Private Sector & Trade | B86: Agricultural raw materials exports (% of merchandise exports) | D86: Comparable LMIC | E86: =COUNT(F86:AL86) -> 32 | F86: 15.97598352 | G86: 13.81845367 | H86: 18.51781826 | I86: 13.6482509 | J86: 13.60732071 | K86: 14.05885929 | L86: 10.66396924 | M86: 9.227671731 | N86: 16.96630646 | O86: 10.59176642 | P86: 12.05673932 | Q86: 11.5318662 | R86: 11.67949177 | S86: 8.14021145 | T86: 9.207294712 | U86: 12.29172046 | V86: 7.778853194 | W86: 5.486807722 | X86: 5.182423426 | Y86: 5.442335736 | Z86: 5.482197897 | AA86: 5.39312364 | AB86: 4.494598249 | AC86: 4.213726636 | AD86: 5.721753523 | AE86: 4.568478846 | AF86: 3.987503601 | AG86: 3.361351652 | AH86: 2.891713922 | AI86: 2.278789003 | AJ86: 3.154272459 | AK86: 4.537770562
A87: Private Sector & Trade | B87: Agricultural raw materials exports (% of merchandise exports) | D87: Aspirational MIC | E87: =COUNT(F87:AL87) -> 32 | F87: 12.55928133 | G87: 10.20285307 | H87: 9.166345269 | I87: 9.648676513 | J87: 8.221743812 | K87: 8.262758862 | L87: 8.916198275 | M87: 9.927586576 | N87: 10.26010973 | O87: 8.417771643 | P87: 6.167085019 | Q87: 5.442680834 | R87: 4.778924999 | S87: 4.12275374 | T87: 4.223544669 | U87: 4.85072989 | V87: 4.218228913 | W87: 3.644604655 | X87: 3.261139871 | Y87: 3.10522261 | Z87: 2.507417128 | AA87: 2.219402123 | AB87: 2.405309341 | AC87: 2.67159928 | AD87: 2.744692791 | AE87: 2.64481717 | AF87: 2.645767709 | AG87: 2.512137549 | AH87: 2.502518977 | AI87: 2.150244686 | AJ87: 2.710878571 | AK87: 3.102870224
A88: Private Sector & Trade | B88: Agricultural raw materials exports (% of merchandise exports) | D88: Upper LIC | E88: =COUNT(F88:AL88) -> 32 | F88: 16.93313664 | G88: 15.31197855 | H88: 16.08513397 | I88: 15.83191114 | J88: 9.968209082 | K88: 8.887774709 | L88: 9.170959333 | M88: 10.41491577 | N88: 8.621773137 | O88: 10.36560721 | P88: 6.980353538 | Q88: 8.289498883 | R88: 15.1748017 | S88: 18.64061763 | T88: 13.75887996 | U88: 21.26024184 | V88: 20.51263664 | W88: 19.89258445 | X88: 18.4655818 | Y88: 18.11907569 | Z88: 15.61179484 | AA88: 14.21149847 | AB88: 13.45497398 | AC88: 16.72343103 | AD88: 16.10138632 | AE88: 14.40827839 | AF88: 9.585743262 | AG88: 12.97738824 | AH88: 11.87152725 | AI88: 11.56049989 | AJ88: 9.801010158 | AK88: 10.02277358
A89: Private Sector & Trade | B89: Food exports (% of merchandise exports) | C89: 20 | D89: Ghana | E89: 20 | F89: 78.4229931 | G89: 51.33155906 | H89: 61.61771276 | I89: 63.23851657 | J89: 89.59822403 | R89: 50.9415622 | V89: 58.43520096 | W89: 56.17057026 | X89: 63.14349897 | Y89: 55.40205776 | Z89: 48.42004172 | AA89: 44.88674708 | AC89: 71.57131259 | AE89: 51.74004349 | AF89: 61.03700082 | AG89: 62.53388939 | AH89: 63.46100905 | AI89: 61.03646791 | AJ89: 60.66828138 | AK89: 27.02743365
A90: Private Sector & Trade | B90: Food exports (% of merchandise exports) | D90: Comparable LMIC | E90: =COUNT(F90:AL90) -> 32 | F90: 46.03477477 | G90: 39.27458802 | H90: 52.49439887 | I90: 43.43804263 | J90: 38.95013571 | K90: 45.05405269 | L90: 41.87060609 | M90: 42.35431062 | N90: 49.68292817 | O90: 51.78792721 | P90: 50.72472143 | Q90: 38.39321607 | R90: 46.25670523 | S90: 38.64991846 | T90: 45.22908983 | U90: 43.10620124 | V90: 32.37773557 | W90: 31.79420105 | X90: 34.43880061 | Y90: 31.59317908 | Z90: 35.85267633 | AA90: 35.96319841 | AB90: 32.74234189 | AC90: 34.853645 | AD90: 38.17822319 | AE90: 35.94175755 | AF90: 30.98308117 | AG90: 31.08257254 | AH90: 26.3948123 | AI90: 32.21522589 | AJ90: 28.62252472 | AK90: 31.23480644
A91: Private Sector & Trade | B91: Food exports (% of merchandise exports) | D91: Aspirational MIC | E91: =COUNT(F91:AL91) -> 32 | F91: 24.94351399 | G91: 25.72748234 | H91: 25.4590363 | I91: 24.26226349 | J91: 22.9799754 | K91: 24.58287722 | L91: 24.14411746 | M91: 22.20521671 | N91: 18.3933482 | O91: 20.24647361 | P91: 18.37809426 | Q91: 17.23721846 | R91: 15.2872042 | S91: 14.11287936 | T91: 15.22996021 | U91: 14.18911213 | V91: 14.88009683 | W91: 14.63294646 | X91: 14.688636 | Y91: 13.66950804 | Z91: 12.25394079 | AA91: 13.97962304 | AB91: 14.7658291 | AC91: 15.96670608 | AD91: 10.85333064 | AE91: 10.05715192 | AF91: 11.69726944 | AG91: 12.24779244 | AH91: 13.21752373 | AI91: 15.01496436 | AJ91: 14.30571816 | AK91: 14.09130524
A92: Private Sector & Trade | B92: Food exports (% of merchandise exports) | D92: Upper LIC | E92: =COUNT(F92:AL92) -> 32 | F92: 39.33503664 | G92: 37.96310313 | H92: 42.25716699 | I92: 39.5424851 | J92: 43.74131465 | K92: 52.09976582 | L92: 49.79734638 | M92: 51.56922872 | N92: 46.9232012 | O92: 24.91137594 | P92: 36.84177602 | Q92: 36.49477385 | R92: 27.20929212 | S92: 41.02975045 | T92: 52.02525028 | U92: 50.05698963 | V92: 47.03137591 | W92: 51.53554962 | X92: 51.58180565 | Y92: 51.36698386 | Z92: 38.49234212 | AA92: 41.09214746 | AB92: 39.74975867 | AC92: 39.12682402 | AD92: 39.18214711 | AE92: 38.41669684 | AF92: 40.66362565 | AG92: 34.64272872 | AH92: 34.47393428 | AI92: 39.87712251 | AJ92: 42.64374451 | AK92: 36.08751367
A93: Private Sector & Trade | B93: Fuel exports (% of merchandise exports) | C93: 21 | D93: Ghana | E93: 20 | F93: 0.3915701534 | G93: 12.30616178 | H93: 9.774892435 | I93: 20.84560161 | J93: 3.902458201 | R93: 9.391506977 | V93: 4.798752155 | W93: 4.604698547 | X93: 3.646934086 | Y93: 4.795841403 | Z93: 7.730210676 | AA93: 11.15586028 | AC93: 0.05686883465 | AE93: 3.375937671 | AF93: 0.6540340821 | AG93: 1.292176244 | AH93: 2.415475872 | AI93: 4.183114822 | AJ93: 0.3235124762 | AK93: 54.08073596
A94: Private Sector & Trade | B94: Fuel exports (% of merchandise exports) | D94: Comparable LMIC | E94: =COUNT(F94:AL94) -> 32 | F94: 6.562095408 | G94: 23.79729315 | H94: 9.309470657 | I94: 30.69647467 | J94: 37.13088309 | K94: 28.32795712 | L94: 29.00581176 | M94: 23.73544693 | N94: 1.488167716 | O94: 4.741148596 | P94: 5.367308289 | Q94: 23.16053119 | R94: 3.875860495 | S94: 3.718752584 | T94: 4.66240703 | U94: 2.94760997 | V94: 20.06800638 | W94: 19.53700231 | X94: 17.80687601 | Y94: 18.9011 | Z94: 20.67006366 | AA94: 20.19672854 | AB94: 16.57494598 | AC94: 19.4511149 | AD94: 10.21314996 | AE94: 12.33159228 | AF94: 21.91896688 | AG94: 23.55910309 | AH94: 28.87713486 | AI94: 22.25772337 | AJ94: 23.68706104 | AK94: 25.05476434
A95: Private Sector & Trade | B95: Fuel exports (% of merchandise exports) | D95: Aspirational MIC | E95: =COUNT(F95:AL95) -> 32 | F95: 20.44117333 | G95: 23.52107627 | H95: 24.95102999 | I95: 23.29234559 | J95: 23.15505387 | K95: 26.30560249 | L95: 18.63334038 | M95: 16.93885993 | N95: 16.55430373 | O95: 13.56675695 | P95: 14.7176135 | Q95: 12.57250896 | R95: 10.21164985 | S95: 8.778019392 | T95: 7.519949867 | U95: 7.745739158 | V95: 8.534787731 | W95: 7.804503733 | X95: 6.319008295 | Y95: 7.416622511 | Z95: 6.874835174 | AA95: 7.112253487 | AB95: 6.950084497 | AC95: 7.118257622 | AD95: 8.102038843 | AE95: 9.12415925 | AF95: 8.147687241 | AG95: 8.14437483 | AH95: 9.479164398 | AI95: 8.924596167 | AJ95: 9.231806288 | AK95: 10.31091389
A96: Private Sector & Trade | B96: Fuel exports (% of merchandise exports) | D96: Upper LIC | E96: =COUNT(F96:AL96) -> 32 | F96: 16.29358335 | G96: 14.30472058 | H96: 6.900096785 | I96: 4.856040272 | J96: 4.639719797 | K96: 5.77255634 | L96: 3.353123714 | M96: 3.86812412 | N96: 2.997793063 | O96: 0.7285230114 | P96: 15.618574 | Q96: 16.75261666 | R96: 5.451439716 | S96: 3.423706022 | T96: 2.449159957 | U96: 2.663224662 | V96: 4.1092607 | W96: 2.605091552 | X96: 3.557252921 | Y96: 4.576374042 | Z96: 6.353456155 | AA96: 2.753012176 | AB96: 4.776194972 | AC96: 3.958375063 | AD96: 2.436408469 | AE96: 3.030068179 | AF96: 6.850942535 | AG96: 3.295225549 | AH96: 2.315064965 | AI96: 2.55266384 | AJ96: 3.438459077 | AK96: 3.983301814
A97: Private Sector & Trade | B97: Manufactures exports (% of merchandise exports) | C97: 22 | D97: Ghana | E97: 20 | F97: 0.9286750899 | G97: 0.6294690887 | H97: 0.4313315931 | I97: 1.217556041 | J97: 0.608450069 | R97: 7.73857378 | V97: 13.21897314 | W97: 10.35647352 | X97: 14.96141329 | Y97: 20.37350679 | Z97: 14.74777842 | AA97: 16.34784282 | AC97: 14.35379548 | AE97: 32.52972142 | AF97: 30.91349394 | AG97: 21.24904747 | AH97: 18.63981938 | AI97: 24.67108603 | AJ97: 20.680459 | AK97: 12.18844606
A98: Private Sector & Trade | B98: Manufactures exports (% of merchandise exports) | D98: Comparable LMIC | E98: =COUNT(F98:AL98) -> 32 | F98: 24.49624539 | G98: 18.62732685 | H98: 19.34213275 | I98: 15.42820923 | J98: 16.25387957 | K98: 15.33750626 | L98: 20.17250517 | M98: 21.33317943 | N98: 28.30004124 | O98: 27.93554918 | P98: 28.11787904 | Q98: 23.32484984 | R98: 32.78271165 | S98: 28.21474677 | T98: 37.48345901 | U98: 23.09356009 | V98: 25.41110236 | W98: 29.54137144 | X98: 30.0312555 | Y98: 33.07280079 | Z98: 26.05252382 | AA98: 27.15588415 | AB98: 34.30381422 | AC98: 30.00222223 | AD98: 33.00033937 | AE98: 32.64110355 | AF98: 28.77545433 | AG98: 27.65935805 | AH98: 27.22101941 | AI98: 30.18712097 | AJ98: 29.76405227 | AK98: 23.24100157
A99: Private Sector & Trade | B99: Manufactures exports (% of merchandise exports) | D99: Aspirational MIC | E99: =COUNT(F99:AL99) -> 32 | F99: 20.32837895 | G99: 20.95744139 | H99: 22.02420321 | I99: 23.88470526 | J99: 29.71812 | K99: 29.69823603 | L99: 35.35844706 | M99: 44.73827402 | N99: 47.31065551 | O99: 52.04631028 | P99: 55.17126301 | Q99: 59.50220236 | R99: 57.16668228 | S99: 62.00453571 | T99: 62.39328655 | U99: 63.26600226 | V99: 65.32705522 | W99: 64.53184196 | X99: 65.60986584 | Y99: 67.71508839 | Z99: 69.85378319 | AA99: 68.7229208 | AB99: 69.24796472 | AC99: 66.53555374 | AD99: 70.05594788 | AE99: 69.35480215 | AF99: 64.60635254 | AG99: 62.03636628 | AH99: 59.76384212 | AI99: 61.35553169 | AJ99: 60.13118313 | AK99: 59.11939252
A100: Private Sector & Trade | B100: Manufactures exports (% of merchandise exports) | D100: Upper LIC | E100: =COUNT(F100:AL100) -> 32 | F100: 15.83726438 | G100: 17.9384973 | H100: 23.73095862 | I100: 21.68770987 | J100: 23.5631586 | K100: 28.7920452 | L100: 26.13485697 | M100: 25.83930396 | N100: 29.41423256 | O100: 44.20827107 | P100: 29.35871171 | Q100: 28.7258653 | R100: 47.83487229 | S100: 33.99520658 | T100: 25.87570921 | U100: 20.71324306 | V100: 22.26863363 | W100: 19.88079188 | X100: 21.19953063 | Y100: 18.00824865 | Z100: 27.83054953 | AA100: 29.69378473 | AB100: 30.44972575 | AC100: 31.21031658 | AD100: 30.54600727 | AE100: 31.44983147 | AF100: 32.79689759 | AG100: 36.83633511 | AH100: 32.93336287 | AI100: 31.93893498 | AJ100: 30.63123738 | AK100: 32.81344276
A101: Private Sector & Trade | B101: Ores and metals exports (% of merchandise exports) | C101: 23 | D101: Ghana | E101: 20 | F101: 16.65281834 | G101: 29.82263697 | H101: 25.61430339 | I101: 10.84174059 | J101: 2.962608425 | R101: 17.2075999 | V101: 8.718040162 | W101: 17.05425858 | X101: 7.665556415 | Y101: 8.35300163 | Z101: 18.82144027 | AA101: 16.52970393 | AC101: 3.887712592 | AE101: 5.022669601 | AF101: 3.145201172 | AG101: 4.892420641 | AH101: 6.385708772 | AI101: 4.172698104 | AJ101: 11.24945201 | AK101: 1.826408858
A102: Private Sector & Trade | B102: Ores and metals exports (% of merchandise exports) | D102: Comparable LMIC | E102: =COUNT(F102:AL102) -> 32 | F102: 11.31953265 | G102: 4.27640136 | H102: 2.442148308 | I102: 2.434679601 | J102: 2.789464863 | K102: 2.458696519 | L102: 3.753779595 | M102: 2.873940952 | N102: 3.392901868 | O102: 5.734075558 | P102: 4.675064353 | Q102: 3.168162533 | R102: 4.869400964 | S102: 20.96581872 | T102: 2.994544016 | U102: 18.14568659 | V102: 14.01105548 | W102: 12.77751794 | X102: 10.85125856 | Y102: 10.41641442 | Z102: 11.12804565 | AA102: 10.46751324 | AB102: 11.28485687 | AC102: 10.20392883 | AD102: 11.52295527 | AE102: 13.0784014 | AF102: 13.58280985 | AG102: 13.07897748 | AH102: 14.05958562 | AI102: 12.02193657 | AJ102: 14.27996681 | AK102: 15.09263646
A103: Private Sector & Trade | B103: Ores and metals exports (% of merchandise exports) | D103: Aspirational MIC | E103: =COUNT(F103:AL103) -> 32 | F103: 8.815018562 | G103: 7.567839357 | H103: 6.877568039 | I103: 6.567729982 | J103: 5.314659041 | K103: 4.984307316 | L103: 4.407984685 | M103: 4.479054546 | N103: 6.040901213 | O103: 5.092177834 | P103: 4.627394818 | Q103: 4.490238437 | R103: 5.019144336 | S103: 4.210795497 | T103: 3.98142284 | U103: 4.735815694 | V103: 5.168455082 | W103: 4.436445991 | X103: 4.680282927 | Y103: 6.684728649 | Z103: 5.958283777 | AA103: 6.93888713 | AB103: 5.563350926 | AC103: 6.826939409 | AD103: 7.516120051 | AE103: 8.038549368 | AF103: 12.15566003 | AG103: 14.35863773 | AH103: 13.092704 | AI103: 12.11277409 | AJ103: 13.42395247 | AK103: 12.96109589
A104: Private Sector & Trade | B104: Ores and metals exports (% of merchandise exports) | D104: Upper LIC | E104: =COUNT(F104:AL104) -> 32 | F104: 10.80767469 | G104: 15.95733474 | H104: 10.66135301 | I104: 17.88365874 | J104: 17.28630926 | K104: 4.940383043 | L104: 11.26046399 | M104: 9.987336764 | N104: 10.9984709 | O104: 27.4099406 | P104: 11.88959079 | Q104: 12.09138166 | R104: 4.651523235 | S104: 2.527934445 | T104: 5.830661739 | U104: 5.803157976 | V104: 6.276761738 | W104: 4.595436366 | X104: 5.359643728 | Y104: 5.632332566 | Z104: 9.011071587 | AA104: 11.41700338 | AB104: 9.566563219 | AC104: 8.832313296 | AD104: 11.19901163 | AE104: 10.32302559 | AF104: 10.58568479 | AG104: 11.85354728 | AH104: 12.79301297 | AI104: 8.88708349 | AJ104: 12.42376764 | AK104: 16.42915992
A105: Infrastructure | B105: ICT goods exports (% of total goods exports) | C105: 24 | D105: Ghana | E105: 10 | Z105: 0.1436626734 | AA105: 0.0418228305 | AC105: 0.021976758 | AE105: 0.0167331022 | AF105: 0.0033795577 | AG105: 0.0203899379 | AH105: 0.0400482841 | AI105: 0.0324198047 | AJ105: 0.0184638636 | AK105: 0.0487019436
A106: Infrastructure | B106: ICT goods exports (% of total goods exports) | D106: Comparable LMIC | E106: =COUNT(F106:AL106) -> 12 | Z106: 0.9430088603 | AA106: 0.8042814287 | AB106: 0.6939579959 | AC106: 0.7932098412 | AD106: 0.792992617 | AE106: 0.8875423156 | AF106: 0.8966261229 | AG106: 0.9183395354 | AH106: 0.967500652 | AI106: 1.284358655 | AJ106: 1.522159394 | AK106: 0.4732089516
A107: Infrastructure | B107: ICT goods exports (% of total goods exports) | D107: Aspirational MIC | E107: =COUNT(F107:AL107) -> 12 | Z107: 14.74971108 | AA107: 14.3348559 | AB107: 14.90111734 | AC107: 14.69226539 | AD107: 14.04574657 | AE107: 13.84546297 | AF107: 13.52607613 | AG107: 12.4003045 | AH107: 9.927269371 | AI107: 11.95854032 | AJ107: 11.22661883 | AK107: 9.739775665
A108: Infrastructure | B108: ICT goods exports (% of total goods exports) | D108: Upper LIC | E108: =COUNT(F108:AL108) -> 12 | Z108: 0.4284796315 | AA108: 0.3075225998 | AB108: 0.4199615669 | AC108: 0.4102390942 | AD108: 0.2980356793 | AE108: 0.3383636493 | AF108: 0.5900414769 | AG108: 0.7599114166 | AH108: 0.5757498113 | AI108: 0.6311991798 | AJ108: 0.6656538002 | AK108: 0.7401219748
A109: Infrastructure | B109: High-technology exports (% of manufactured exports) | C109: 25 | D109: Ghana | E109: 15 | R109: 2.192211094 | V109: 0.3627128018 | W109: 0.4908998758 | X109: 0.573909485 | Y109: 13.58430801 | Z109: 1.924122616 | AA109: 2.615082671 | AC109: 3.68325376 | AE109: 0.1967651738 | AF109: 0.1796177608 | AG109: 1.05180921 | AH109: 1.429704729 | AI109: 3.662918163 | AJ109: 2.004343656 | AK109: 1.398275267
A110: Infrastructure | B110: High-technology exports (% of manufactured exports) | D110: Comparable LMIC | E110: =COUNT(F110:AL110) -> 24 | N110: 4.068699519 | O110: 2.151212591 | P110: 2.069475144 | Q110: 2.76931178 | R110: 2.554764881 | S110: 2.255589702 | T110: 2.605636184 | U110: 3.128053101 | V110: 2.645412813 | W110: 5.407322815 | X110: 3.27120926 | Y110: 5.824190379 | Z110: 3.970990614 | AA110: 3.504436927 | AB110: 3.050491968 | AC110: 3.642433987 | AD110: 5.497649427 | AE110: 6.498733356 | AF110: 6.442081466 | AG110: 5.544336942 | AH110: 5.454271438 | AI110: 6.46268958 | AJ110: 3.972755355 | AK110: 10.92368206
A111: Infrastructure | B111: High-technology exports (% of manufactured exports) | D111: Aspirational MIC | E111: =COUNT(F111:AL111) -> 24 | N111: 40.58434155 | O111: 16.26926819 | P111: 16.78409856 | Q111: 16.53766891 | R111: 13.7269337 | S111: 13.6835898 | T111: 15.39802008 | U111: 16.50628596 | V111: 17.80119056 | W111: 19.92766083 | X111: 22.20442765 | Y111: 23.20640339 | Z111: 19.54303559 | AA111: 18.94493465 | AB111: 19.11172164 | AC111: 18.90862328 | AD111: 21.1132101 | AE111: 21.23558546 | AF111: 18.83389421 | AG111: 17.37131725 | AH111: 14.89964731 | AI111: 16.65216937 | AJ111: 15.36082038 | AK111: 14.44693367
A112: Infrastructure | B112: High-technology exports (% of manufactured exports) | D112: Upper LIC | E112: =COUNT(F112:AL112) -> 24 | N112: 1.810048811 | O112: 0.4076678724 | P112: 1.338323863 | Q112: 0.9328841172 | R112: 0.9280705651 | S112: 0.8420738904 | T112: 2.625146411 | U112: 2.508311469 | V112: 3.846876718 | W112: 2.83941635 | X112: 2.800275494 | Y112: 4.191100593 | Z112: 6.921361447 | AA112: 5.484282829 | AB112: 12.35161879 | AC112: 5.743164659 | AD112: 7.260150636 | AE112: 6.528301821 | AF112: 6.420426461 | AG112: 4.298851651 | AH112: 3.164695378 | AI112: 3.791835594 | AJ112: 2.899752625 | AK112: 6.600943108
A113: Private Sector & Trade | B113: Merchandise exports to developing economies outside region (% of total merchandise exports) | C113: 26 | D113: Ghana | E113: 32 | F113: 18.03435708 | G113: 9.714210351 | H113: 11.05894348 | I113: 10.95568973 | J113: 18.52627429 | K113: 18.46622193 | L113: 16.43270662 | M113: 12.56198639 | N113: 10.66195255 | O113: 10.66195255 | P113: 8.589741074 | Q113: 2.767510342 | R113: 1.774683935 | S113: 7.740952015 | T113: 8.892403145 | U113: 7.604652236 | V113: 10.01148562 | W113: 11.10317506 | X113: 7.940595889 | Y113: 12.0977325 | Z113: 11.59449231 | AA113: 11.95626434 | AB113: 12.5841828 | AC113: 14.87371161 | AD113: 17.14219435 | AE113: 18.11826183 | AF113: 17.59972766 | AG113: 20.1310616 | AH113: 28.0010656 | AI113: 24.47497831 | AJ113: 24.59302564 | AK113: 22.39763337
A114: Private Sector & Trade | B114: Merchandise exports to developing economies outside region (% of total merchandise exports) | D114: Comparable LMIC | E114: =COUNT(F114:AL114) -> 32 | F114: 14.40556697 | G114: 14.87535417 | H114: 11.41669947 | I114: 9.685250585 | J114: 11.27876798 | K114: 16.3733532 | L114: 15.96501597 | M114: 14.79228107 | N114: 14.92914781 | O114: 9.744681651 | P114: 15.19379242 | Q114: 11.79475599 | R114: 9.537467299 | S114: 10.7500128 | T114: 11.39870895 | U114: 12.02714902 | V114: 12.11171773 | W114: 10.69738357 | X114: 10.371977 | Y114: 12.43992437 | Z114: 9.721947504 | AA114: 10.77339976 | AB114: 12.03325149 | AC114: 10.69612284 | AD114: 10.93897337 | AE114: 11.23733915 | AF114: 12.51734043 | AG114: 13.27774098 | AH114: 14.19095428 | AI114: 14.00094866 | AJ114: 16.05026167 | AK114: 19.00553298
A115: Private Sector & Trade | B115: Merchandise exports to developing economies outside region (% of total merchandise exports) | D115: Aspirational MIC | E115: =COUNT(F115:AL115) -> 32 | F115: 8.519482652 | G115: 11.10557092 | H115: 10.35900889 | I115: 10.40343545 | J115: 10.58350528 | K115: 9.824959183 | L115: 8.867185193 | M115: 8.442124404 | N115: 8.088499158 | O115: 7.69550289 | P115: 6.930678925 | Q115: 6.211823648 | R115: 6.061882436 | S115: 6.769649376 | T115: 7.29828752 | U115: 8.028051408 | V115: 7.72903591 | W115: 8.198109963 | X115: 8.040245884 | Y115: 8.121079297 | Z115: 7.393027364 | AA115: 8.498121598 | AB115: 9.08439964 | AC115: 9.950075276 | AD115: 10.39771451 | AE115: 11.43743426 | AF115: 12.43658189 | AG115: 14.14569713 | AH115: 15.44180979 | AI115: 17.39813571 | AJ115: 19.06776977 | AK115: 19.0020362
A116: Private Sector & Trade | B116: Merchandise exports to developing economies outside region (% of total merchandise exports) | D116: Upper LIC | E116: =COUNT(F116:AL116) -> 32 | F116: 26.97860421 | G116: 21.44843545 | H116: 20.21738646 | I116: 21.06826441 | J116: 19.88077755 | K116: 21.3773835 | L116: 14.77457485 | M116: 13.73466049 | N116: 13.35320884 | O116: 13.14651226 | P116: 13.95042988 | Q116: 9.162744637 | R116: 7.823693151 | S116: 12.91754747 | T116: 9.811501623 | U116: 11.67686039 | V116: 13.59839834 | W116: 13.27436328 | X116: 11.67875777 | Y116: 13.35085638 | Z116: 13.14985933 | AA116: 11.64741306 | AB116: 12.37877778 | AC116: 15.87095131 | AD116: 16.9663014 | AE116: 14.5198397 | AF116: 13.56605137 | AG116: 15.54203783 | AH116: 16.32770128 | AI116: 20.16983842 | AJ116: 22.04784485 | AK116: 25.38155967
A117: Private Sector & Trade | B117: Merchandise exports to developing economies within region (% of total merchandise exports) | C117: 27 | D117: Ghana | E117: 32 | F117: 0.366624788 | G117: 0.9766199907 | H117: 1.569422253 | I117: 14.79119678 | J117: 4.065740409 | K117: 5.867393478 | L117: 3.306585851 | M117: 2.424737614 | N117: 1.923574908 | O117: 1.923574908 | P117: 2.510892303 | Q117: 4.147054155 | R117: 16.66996764 | S117: 14.37120917 | T117: 12.59288511 | U117: 7.254008178 | V117: 7.238462389 | W117: 7.756893395 | X117: 7.585693977 | Y117: 7.814883456 | Z117: 5.296220433 | AA117: 6.129256215 | AB117: 8.355415865 | AC117: 8.93470836 | AD117: 8.886958273 | AE117: 9.469926653 | AF117: 10.03533193 | AG117: 10.99986661 | AH117: 10.43553081 | AI117: 11.47340197 | AJ117: 10.14131916 | AK117: 5.997309391
A118: Private Sector & Trade | B118: Merchandise exports to developing economies within region (% of total merchandise exports) | D118: Comparable LMIC | E118: =COUNT(F118:AL118) -> 32 | F118: 17.92211564 | G118: 17.50843487 | H118: 15.5797678 | I118: 13.00320437 | J118: 13.12536921 | K118: 11.46675438 | L118: 14.06939584 | M118: 12.18567294 | N118: 11.70444367 | O118: 12.84781414 | P118: 14.96866443 | Q118: 14.79356051 | R118: 16.40062663 | S118: 16.29821079 | T118: 19.64330891 | U118: 20.81612219 | V118: 22.01873892 | W118: 20.66794942 | X118: 22.92453523 | Y118: 23.8975128 | Z118: 28.70264916 | AA118: 26.42520867 | AB118: 28.11677349 | AC118: 28.96176069 | AD118: 29.85918612 | AE118: 29.34301546 | AF118: 28.44726566 | AG118: 29.34011098 | AH118: 29.28614066 | AI118: 28.59372573 | AJ118: 28.97432583 | AK118: 27.68326169
A119: Private Sector & Trade | B119: Merchandise exports to developing economies within region (% of total merchandise exports) | D119: Aspirational MIC | E119: =COUNT(F119:AL119) -> 32 | F119: 7.630118058 | G119: 7.751802096 | H119: 7.712149689 | I119: 6.372027803 | J119: 6.212317148 | K119: 6.390298945 | L119: 6.277265246 | M119: 6.643741266 | N119: 6.426462966 | O119: 7.044498789 | P119: 6.98875198 | Q119: 8.0410304 | R119: 9.748195733 | S119: 10.58273417 | T119: 11.15825784 | U119: 11.53275241 | V119: 12.36536291 | W119: 13.40793387 | X119: 12.87394958 | Y119: 12.92858953 | Z119: 13.02823249 | AA119: 13.23584068 | AB119: 13.53534187 | AC119: 14.79295332 | AD119: 15.80822093 | AE119: 16.57431571 | AF119: 17.08912398 | AG119: 18.07055043 | AH119: 18.83391633 | AI119: 20.17146154 | AJ119: 20.08239837 | AK119: 20.45027623
A120: Private Sector & Trade | B120: Merchandise exports to developing economies within region (% of total merchandise exports) | D120: Upper LIC | E120: =COUNT(F120:AL120) -> 32 | F120: 17.10936362 | G120: 11.83906759 | H120: 12.2435438 | I120: 10.81362539 | J120: 9.286659068 | K120: 7.779266363 | L120: 7.858164529 | M120: 7.781103253 | N120: 8.578328192 | O120: 9.005648179 | P120: 9.888938244 | Q120: 8.617709913 | R120: 15.06238724 | S120: 20.8443059 | T120: 21.37241302 | U120: 22.4579259 | V120: 22.01533894 | W120: 20.29721575 | X120: 18.84559563 | Y120: 18.49255754 | Z120: 21.88899528 | AA120: 20.71166909 | AB120: 23.11576658 | AC120: 24.91799756 | AD120: 25.65490678 | AE120: 24.32799021 | AF120: 24.97213886 | AG120: 25.28094014 | AH120: 28.57763134 | AI120: 28.40121818 | AJ120: 29.23053224 | AK120: 26.8017098
A121: Private Sector & Trade | B121: Merchandise exports to developing economies in East Asia & Pacific (% of total merchandise exports) | C121: 28 | D121: Ghana | E121: 13 | Y121: 4.632710243 | Z121: 3.624949875 | AA121: 3.198137457 | AB121: 3.044699071 | AC121: 3.079834479 | AD121: 4.986193708 | AE121: 5.827481439 | AF121: 6.853934956 | AG121: 5.124156455 | AH121: 6.122300074 | AI121: 5.994211658 | AJ121: 6.642528741 | AK121: 6.785004001
A122: Private Sector & Trade | B122: Merchandise exports to developing economies in East Asia & Pacific (% of total merchandise exports) | D122: Comparable LMIC | E122: =COUNT(F122:AL122) -> 32 | F122: 2.041546275 | G122: 2.219653277 | H122: 1.873222593 | I122: 1.762937994 | J122: 5.957295277 | K122: 3.222780929 | L122: 2.661290286 | M122: 2.96475061 | N122: 2.038926453 | O122: 2.554048488 | P122: 3.89099095 | Q122: 4.013243873 | R122: 4.794630803 | S122: 5.313822396 | T122: 6.13867297 | U122: 6.231561487 | V122: 6.164307994 | W122: 5.429697897 | X122: 5.043661648 | Y122: 5.534442198 | Z122: 4.757225585 | AA122: 4.71726251 | AB122: 4.908540183 | AC122: 5.390998376 | AD122: 5.980837699 | AE122: 6.163314249 | AF122: 6.329983063 | AG122: 6.45862751 | AH122: 6.111880436 | AI122: 7.15328806 | AJ122: 8.742290022 | AK122: 11.04685038
A123: Private Sector & Trade | B123: Merchandise exports to developing economies in East Asia & Pacific (% of total merchandise exports) | D123: Aspirational MIC | E123: =COUNT(F123:AL123) -> 32 | F123: 4.334830009 | G123: 3.934074039 | H123: 4.58109197 | I123: 4.168912496 | J123: 3.974332986 | K123: 4.731254922 | L123: 4.116067252 | M123: 4.206140148 | N123: 4.481610235 | O123: 4.764495721 | P123: 4.634819514 | Q123: 4.637953951 | R123: 5.006301821 | S123: 5.665357403 | T123: 6.436736765 | U123: 7.214876043 | V123: 7.636646089 | W123: 8.041665935 | X123: 6.97025511 | Y123: 7.379804083 | Z123: 8.079288786 | AA123: 8.724810999 | AB123: 9.861805113 | AC123: 11.41638264 | AD123: 12.03558778 | AE123: 12.50453465 | AF123: 13.00879349 | AG123: 14.39322599 | AH123: 15.0870897 | AI123: 17.99830677 | AJ123: 19.4391413 | AK123: 20.3141797
A124: Private Sector & Trade | B124: Merchandise exports to developing economies in East Asia & Pacific (% of total merchandise exports) | D124: Upper LIC | E124: =COUNT(F124:AL124) -> 32 | F124: 6.206230827 | G124: 5.253472733 | H124: 3.885728742 | I124: 3.042433327 | J124: 2.740679433 | K124: 3.557909106 | L124: 3.057771119 | M124: 2.894383816 | N124: 3.024388031 | O124: 2.389603895 | P124: 2.397727769 | Q124: 3.040178888 | R124: 2.582359942 | S124: 2.203765028 | T124: 3.139545003 | U124: 2.931730993 | V124: 2.883522043 | W124: 3.985008917 | X124: 2.496760605 | Y124: 3.313867992 | Z124: 3.226571942 | AA124: 3.101909939 | AB124: 2.392763822 | AC124: 6.402958249 | AD124: 4.461928892 | AE124: 4.674853029 | AF124: 4.72369163 | AG124: 5.106887056 | AH124: 5.071795108 | AI124: 7.157449144 | AJ124: 8.772563125 | AK124: 10.48589025
A125: Private Sector & Trade | B125: Merchandise exports to developing economies in Europe & Central Asia (% of total merchandise exports) | C125: 29 | D125: Ghana | E125: 18 | T125: 0.4316370612 | U125: 1.019457889 | V125: 2.163960021 | W125: 3.251334432 | X125: 2.799547867 | Y125: 5.468041919 | Z125: 5.128908342 | AA125: 5.985380571 | AB125: 5.638084853 | AC125: 8.961653502 | AD125: 7.231044529 | AE125: 6.911801337 | AF125: 5.601249867 | AG125: 9.388333511 | AH125: 15.48266319 | AI125: 12.23698126 | AJ125: 12.30137545 | AK125: 9.212933902
A126: Private Sector & Trade | B126: Merchandise exports to developing economies in Europe & Central Asia (% of total merchandise exports) | D126: Comparable LMIC | E126: =COUNT(F126:AL126) -> 20 | R126: 3.37123696 | S126: 2.88968529 | T126: 1.607143114 | U126: 1.218281712 | V126: 1.026837927 | W126: 0.972641272 | X126: 1.044402828 | Y126: 1.149089317 | Z126: 0.8539651959 | AA126: 0.7410039639 | AB126: 1.080734109 | AC126: 0.9085874569 | AD126: 1.264045017 | AE126: 1.593194229 | AF126: 2.294423769 | AG126: 1.531409468 | AH126: 1.700671179 | AI126: 1.405709998 | AJ126: 1.853826002 | AK126: 1.789307951
A127: Private Sector & Trade | B127: Merchandise exports to developing economies in Europe & Central Asia (% of total merchandise exports) | D127: Aspirational MIC | E127: =COUNT(F127:AL127) -> 20 | R127: 2.140482689 | S127: 1.727155085 | T127: 0.9856591696 | U127: 1.155256321 | V127: 1.08394478 | W127: 1.149449666 | X127: 1.126312734 | Y127: 1.038884335 | Z127: 0.8877810274 | AA127: 1.126780267 | AB127: 1.265940661 | AC127: 1.56861922 | AD127: 1.604024106 | AE127: 1.910137228 | AF127: 2.122295405 | AG127: 2.333219824 | AH127: 2.53767051 | AI127: 1.979671662 | AJ127: 2.218067503 | AK127: 2.155142379
A128: Private Sector & Trade | B128: Merchandise exports to developing economies in Europe & Central Asia (% of total merchandise exports) | D128: Upper LIC | E128: =COUNT(F128:AL128) -> 20 | R128: 75.80184185 | S128: 42.67087735 | T128: 23.55486727 | U128: 26.1223109 | V128: 23.92806495 | W128: 19.24619572 | X128: 16.11762215 | Y128: 14.2413884 | Z128: 11.53379445 | AA128: 10.75991137 | AB128: 10.38181777 | AC128: 10.53798927 | AD128: 10.7412447 | AE128: 11.13009258 | AF128: 11.17041421 | AG128: 11.57799115 | AH128: 11.82724186 | AI128: 13.52243148 | AJ128: 14.24272629 | AK128: 15.73410593
A129: Private Sector & Trade | B129: Merchandise exports to developing economies in Latin America & the Caribbean (% of total merchandise exports) | C129: 30 | D129: Ghana | E129: 32 | F129: 0.1236456817 | G129: 0.04300606672 | H129: 0.003357185932 | I129: 0.000140089377 | J129: 0 | K129: 0 | L129: 0.740514719 | M129: 0.4691878061 | N129: 0.4926182713 | O129: 0.4926182713 | P129: 0.4924695576 | Q129: 1.81655323 | R129: 0.4072727038 | S129: 0.6804541454 | T129: 0.4090001592 | U129: 0.4602867097 | V129: 0.6435884138 | W129: 0.6107215308 | X129: 0.6449910433 | Y129: 1.02040621 | Z129: 0.909206252 | AA129: 1.184393014 | AB129: 2.536205152 | AC129: 1.058535285 | AD129: 2.31825754 | AE129: 1.906140885 | AF129: 1.317640899 | AG129: 1.366365876 | AH129: 1.516299863 | AI129: 1.761591359 | AJ129: 1.423073181 | AK129: 1.052822008
A130: Private Sector & Trade | B130: Merchandise exports to developing economies in Latin America & the Caribbean (% of total merchandise exports) | D130: Comparable LMIC | E130: =COUNT(F130:AL130) -> 32 | F130: 9.955462618 | G130: 9.825592474 | H130: 9.268055842 | I130: 7.510116635 | J130: 6.584628772 | K130: 6.412476239 | L130: 9.323640263 | M130: 6.72569093 | N130: 5.9682239 | O130: 6.212721192 | P130: 6.118173955 | Q130: 6.33735225 | R130: 7.204328311 | S130: 8.219422689 | T130: 10.0449477 | U130: 10.91909128 | V130: 11.91804967 | W130: 10.51774899 | X130: 10.87820391 | Y130: 11.0801416 | Z130: 13.75372455 | AA130: 13.46052511 | AB130: 13.56500213 | AC130: 13.19134285 | AD130: 13.28695108 | AE130: 13.23054385 | AF130: 13.12871662 | AG130: 13.99087711 | AH130: 14.8705343 | AI130: 14.44308393 | AJ130: 14.21573679 | AK130: 13.85249281
A131: Private Sector & Trade | B131: Merchandise exports to developing economies in Latin America & the Caribbean (% of total merchandise exports) | D131: Aspirational MIC | E131: =COUNT(F131:AL131) -> 32 | F131: 4.131499921 | G131: 4.311823191 | H131: 3.293999248 | I131: 2.443515466 | J131: 2.735481135 | K131: 2.350921896 | L131: 2.819942682 | M131: 2.793864056 | N131: 2.651852276 | O131: 2.743766777 | P131: 2.755019083 | Q131: 3.705313983 | R131: 4.589806699 | S131: 5.432554077 | T131: 5.39985671 | U131: 5.237065868 | V131: 5.437901355 | W131: 6.14827038 | X131: 6.215880555 | Y131: 5.253688038 | Z131: 5.355758549 | AA131: 5.278607379 | AB131: 4.465239312 | AC131: 4.43909071 | AD131: 5.047215493 | AE131: 5.328191492 | AF131: 5.800169617 | AG131: 6.194593013 | AH131: 6.277572065 | AI131: 5.712735422 | AJ131: 6.153673714 | AK131: 6.111643205
A132: Private Sector & Trade | B132: Merchandise exports to developing economies in Latin America & the Caribbean (% of total merchandise exports) | D132: Upper LIC | E132: =COUNT(F132:AL132) -> 32 | F132: 0.6663497136 | G132: 1.737903733 | H132: 1.629789121 | I132: 1.96689805 | J132: 1.133808784 | K132: 1.103269018 | L132: 0.9567880204 | M132: 0.5116891823 | N132: 0.9776718157 | O132: 0.7487968184 | P132: 1.13342075 | Q132: 1.216621733 | R132: 0.6174440925 | S132: 0.7685615465 | T132: 1.835579809 | U132: 1.855656217 | V132: 5.54380378 | W132: 2.326140998 | X132: 2.215193891 | Y132: 2.238014032 | Z132: 1.400749995 | AA132: 0.5860300789 | AB132: 0.3146939367 | AC132: 0.4149595638 | AD132: 0.4744147315 | AE132: 0.7335804547 | AF132: 0.7654350062 | AG132: 0.8152200725 | AH132: 0.8718098028 | AI132: 0.5779686533 | AJ132: 0.5722108058 | AK132: 0.6084218048
A133: Private Sector & Trade | B133: Merchandise exports to developing economies in Middle East & North Africa (% of total merchandise exports) | C133: 31 | D133: Ghana | E133: 32 | F133: 0.4440795611 | G133: 0.4057861318 | H133: 0.8583205367 | I133: 0.3638121121 | J133: 0.4433342389 | K133: 0.25365146 | L133: 0.29239468 | M133: 0.153529252 | N133: 1.115072597 | O133: 1.115072597 | P133: 0.8587774359 | Q133: 0.3924662038 | R133: 0.2030704708 | S133: 0.2775123425 | T133: 0.2163084576 | U133: 0.308743698 | V133: 0.5381126806 | W133: 0.9074852161 | X133: 0.5610447345 | Y133: 0.4477445344 | Z133: 0.4599912104 | AA133: 0.3860876817 | AB133: 0.3194576361 | AC133: 0.4426730303 | AD133: 0.8076943917 | AE133: 0.7370519014 | AF133: 0.6667210808 | AG133: 0.7007829305 | AH133: 0.7302228665 | AI133: 0.8972390001 | AJ133: 0.941306275 | AK133: 0.9353284534
A134: Private Sector & Trade | B134: Merchandise exports to developing economies in Middle East & North Africa (% of total merchandise exports) | D134: Comparable LMIC | E134: =COUNT(F134:AL134) -> 32 | F134: 1.732318253 | G134: 1.779367816 | H134: 1.214713153 | I134: 1.267911348 | J134: 0.8404239678 | K134: 0.8678610695 | L134: 0.7288682584 | M134: 0.4060862489 | N134: 0.5110762607 | O134: 0.3811837421 | P134: 0.8751695635 | Q134: 0.8381154689 | R134: 1.37140288 | S134: 1.419103592 | T134: 1.104077956 | U134: 0.8823472652 | V134: 1.294921055 | W134: 0.9833934225 | X134: 1.121206024 | Y134: 0.9136758151 | Z134: 0.9506191821 | AA134: 1.062636887 | AB134: 1.062292393 | AC134: 0.9335162876 | AD134: 1.024117008 | AE134: 0.9836832634 | AF134: 1.082389432 | AG134: 1.493269192 | AH134: 2.037007746 | AI134: 1.680875969 | AJ134: 1.322078866 | AK134: 1.753606548
A135: Private Sector & Trade | B135: Merchandise exports to developing economies in Middle East & North Africa (% of total merchandise exports) | D135: Aspirational MIC | E135: =COUNT(F135:AL135) -> 32 | F135: 2.093757398 | G135: 3.364684335 | H135: 3.530224061 | I135: 3.733572871 | J135: 3.196539302 | K135: 2.568831225 | L135: 2.289003786 | M135: 2.175507186 | N135: 1.823761794 | O135: 1.657101632 | P135: 1.518284962 | Q135: 1.433552278 | R135: 1.316059651 | S135: 1.232812268 | T135: 1.093814559 | U135: 1.304359643 | V135: 1.189301832 | W135: 1.304204184 | X135: 1.399944432 | Y135: 1.3559641 | Z135: 1.076482606 | AA135: 1.307175481 | AB135: 1.415686043 | AC135: 1.466738995 | AD135: 1.585799967 | AE135: 1.538361071 | AF135: 1.775895179 | AG135: 1.85424665 | AH135: 1.933688854 | AI135: 2.213420529 | AJ135: 2.070013088 | AK135: 1.949890641
A136: Private Sector & Trade | B136: Merchandise exports to developing economies in Middle East & North Africa (% of total merchandise exports) | D136: Upper LIC | E136: =COUNT(F136:AL136) -> 32 | F136: 4.561793779 | G136: 3.820833145 | H136: 5.062970539 | I136: 4.958515298 | J136: 3.76491168 | K136: 3.623257029 | L136: 2.63834855 | M136: 5.018949515 | N136: 2.376985042 | O136: 2.279800385 | P136: 2.900918248 | Q136: 2.811071757 | R136: 2.621363802 | S136: 4.376476864 | T136: 1.902928706 | U136: 1.886385629 | V136: 1.885430452 | W136: 2.136456852 | X136: 1.757509215 | Y136: 1.704394862 | Z136: 2.300741588 | AA136: 4.071432698 | AB136: 2.318627749 | AC136: 2.927549927 | AD136: 1.719104442 | AE136: 1.801190839 | AF136: 1.613186876 | AG136: 1.625707431 | AH136: 1.6182003 | AI136: 1.890849451 | AJ136: 1.91329442 | AK136: 2.036933644
A137: Private Sector & Trade | B137: Merchandise exports to developing economies in South Asia (% of total merchandise exports) | C137: 32 | D137: Ghana | E137: 32 | F137: 0.03358584916 | G137: 0 | H137: 0.08567041138 | I137: 0.1500357228 | J137: 0.02259946771 | K137: 0.03560791727 | L137: 0.2207944761 | M137: 0.00575661199 | N137: 0.0005748875549 | O137: 0.0005748875549 | P137: 1.922204242 | Q137: 0.05507160929 | R137: 0.08682232708 | S137: 0.9780927779 | T137: 0.9569507592 | U137: 1.033347957 | V137: 0.6197724668 | W137: 0.7748507228 | X137: 0.2944886284 | Y137: 0.5288295957 | Z137: 1.471436632 | AA137: 1.202265616 | AB137: 1.045736086 | AC137: 1.331015312 | AD137: 1.79900418 | AE137: 2.735786266 | AF137: 3.160180856 | AG137: 3.551422827 | AH137: 4.149579605 | AI137: 3.584955036 | AJ137: 3.284741993 | AK137: 4.411545009
A138: Private Sector & Trade | B138: Merchandise exports to developing economies in South Asia (% of total merchandise exports) | D138: Comparable LMIC | E138: =COUNT(F138:AL138) -> 32 | F138: 1.692759359 | G138: 2.755049318 | H138: 1.761963484 | I138: 1.764427575 | J138: 1.5911424 | K138: 1.727499643 | L138: 2.7781892 | M138: 2.113893546 | N138: 2.414533874 | O138: 2.497593459 | P138: 2.511433061 | Q138: 3.475690574 | R138: 3.364980621 | S138: 4.200668041 | T138: 4.762150173 | U138: 5.510282192 | V138: 4.869137978 | W138: 4.81030493 | X138: 4.711817839 | Y138: 5.669743624 | Z138: 4.48332493 | AA138: 4.68347804 | AB138: 5.482655188 | AC138: 4.349461837 | AD138: 3.089342082 | AE138: 2.878021998 | AF138: 2.763059885 | AG138: 3.650700383 | AH138: 4.306690121 | AI138: 3.614670523 | AJ138: 4.409734891 | AK138: 4.612488658
A139: Private Sector & Trade | B139: Merchandise exports to developing economies in South Asia (% of total merchandise exports) | D139: Aspirational MIC | E139: =COUNT(F139:AL139) -> 32 | F139: 1.316301197 | G139: 1.64151461 | H139: 1.44926466 | I139: 1.686212697 | J139: 2.183358174 | K139: 1.793275308 | L139: 1.854939058 | M139: 1.695460306 | N139: 1.767579964 | O139: 1.440033261 | P139: 1.312671606 | Q139: 1.197843446 | R139: 1.139268316 | S139: 1.094999415 | T139: 1.632775516 | U139: 1.598261703 | V139: 1.590492518 | W139: 1.68807408 | X139: 1.95550872 | Y139: 2.180768123 | Z139: 1.843698002 | AA139: 1.847124404 | AB139: 2.055599281 | AC139: 2.261211522 | AD139: 2.396487795 | AE139: 2.940906802 | AF139: 2.885785501 | AG139: 3.297640746 | AH139: 3.726180567 | AI139: 4.442469312 | AJ139: 5.079748543 | AK139: 4.519590015
A140: Private Sector & Trade | B140: Merchandise exports to developing economies in South Asia (% of total merchandise exports) | D140: Upper LIC | E140: =COUNT(F140:AL140) -> 32 | F140: 2.209231962 | G140: 2.616065189 | H140: 1.894583847 | I140: 2.408854131 | J140: 2.798926025 | K140: 1.790402118 | L140: 2.37183036 | M140: 2.014322061 | N140: 1.96880529 | O140: 2.471065882 | P140: 3.864815998 | Q140: 3.170864873 | R140: 2.052771468 | S140: 2.769545861 | T140: 3.286559138 | U140: 2.592608678 | V140: 2.427561362 | W140: 2.607964333 | X140: 3.416561915 | Y140: 4.653035278 | Z140: 4.096464294 | AA140: 2.257038712 | AB140: 3.153210474 | AC140: 2.809909628 | AD140: 2.905890954 | AE140: 3.407066689 | AF140: 3.842069068 | AG140: 4.804067431 | AH140: 5.521622533 | AI140: 5.638148156 | AJ140: 5.073929186 | AK140: 5.556293146
A141: Private Sector & Trade | B141: Merchandise exports to developing economies in Sub-Saharan Africa (% of total merchandise exports) | C141: 33 | D141: Ghana | E141: 32 | F141: 0.366624788 | G141: 0.9766199907 | H141: 1.569422253 | I141: 14.79119678 | J141: 4.065740409 | K141: 5.867393478 | L141: 3.306585851 | M141: 2.424737614 | N141: 1.923574908 | O141: 1.923574908 | P141: 2.510892303 | Q141: 4.147054155 | R141: 16.66996764 | S141: 14.37120917 | T141: 12.59288511 | U141: 7.254008178 | V141: 7.238462389 | W141: 7.756893395 | X141: 7.585693977 | Y141: 7.814883456 | Z141: 5.296220433 | AA141: 6.129256215 | AB141: 8.355415865 | AC141: 8.93470836 | AD141: 8.886958273 | AE141: 9.469926653 | AF141: 10.03533193 | AG141: 10.99986661 | AH141: 10.43553081 | AI141: 11.47340197 | AJ141: 10.14131916 | AK141: 5.997309391
A142: Private Sector & Trade | B142: Merchandise exports to developing economies in Sub-Saharan Africa (% of total merchandise exports) | D142: Comparable LMIC | E142: =COUNT(F142:AL142) -> 32 | F142: 12.34493456 | G142: 10.25699139 | H142: 7.157190158 | I142: 6.007621735 | J142: 6.931564331 | K142: 6.519941021 | L142: 5.892307062 | M142: 6.580785304 | N142: 7.130735332 | O142: 7.244446326 | P142: 9.257333036 | Q142: 9.399704286 | R142: 8.644599879 | S142: 7.189416472 | T142: 8.589423034 | U142: 9.000017674 | V142: 9.735681181 | W142: 9.571617094 | X142: 11.25469463 | Y142: 12.77843151 | Z142: 13.62573722 | AA142: 12.53370192 | AB142: 14.05080098 | AC142: 14.88397672 | AD142: 16.1528666 | AE142: 15.73159702 | AF142: 15.36603332 | AG142: 15.49296829 | AH142: 14.45031116 | AI142: 14.29704591 | AJ142: 14.48092093 | AK142: 13.63404831
A143: Private Sector & Trade | B143: Merchandise exports to developing economies in Sub-Saharan Africa (% of total merchandise exports) | D143: Aspirational MIC | E143: =COUNT(F143:AL143) -> 32 | F143: 1.944944535 | G143: 3.164282281 | H143: 3.31530296 | I143: 2.735937335 | J143: 2.898292248 | K143: 2.622601183 | L143: 1.993204237 | M143: 2.253741188 | N143: 2.114714283 | O143: 1.965955238 | P143: 2.076827351 | Q143: 2.16361354 | R143: 2.740855691 | S143: 2.805143868 | T143: 2.945238926 | U143: 3.05098424 | V143: 3.156112245 | W143: 3.274379593 | X143: 3.246293911 | Y143: 3.840560148 | Z143: 3.178250882 | AA143: 3.449463746 | AB143: 3.555471097 | AC143: 3.590985509 | AD143: 3.536820294 | AE143: 3.789618733 | AF143: 3.932766672 | AG143: 4.14332134 | AH143: 4.713524426 | AI143: 5.222993555 | AJ143: 4.189523984 | AK143: 4.40186649
A144: Private Sector & Trade | B144: Merchandise exports to developing economies in Sub-Saharan Africa (% of total merchandise exports) | D144: Upper LIC | E144: =COUNT(F144:AL144) -> 32 | F144: 16.83415152 | G144: 11.76156954 | H144: 11.9083905 | I144: 10.27975138 | J144: 8.608832174 | K144: 7.777313567 | L144: 7.702512551 | M144: 7.684456715 | N144: 8.194900684 | O144: 8.808474267 | P144: 9.696099205 | Q144: 7.848581128 | R144: 10.94349908 | S144: 12.12589707 | T144: 12.06608311 | U144: 10.96266992 | V144: 11.36822236 | W144: 10.50499936 | X144: 10.46027247 | Y144: 10.14625041 | Z144: 12.86777937 | AA144: 12.40454695 | AB144: 15.44222887 | AC144: 16.89710558 | AD144: 17.68677832 | AE144: 15.81396524 | AF144: 16.61213409 | AG144: 16.41346767 | AH144: 20.00701503 | AI144: 18.60443747 | AJ144: 19.78042543 | AK144: 16.23351661
A145: Private Sector & Trade | B145: Merchandise exports to economies in the Arab World (% of total merchandise exports) | C145: 34 | D145: Ghana | E145: 32 | F145: 0.4439137051 | G145: 0.4057861318 | H145: 0.8583205367 | I145: 0.3652130059 | J145: 0.4433342389 | K145: 0.25365146 | L145: 0.3426530935 | M145: 0.3530259395 | N145: 1.129344181 | O145: 1.129344181 | P145: 0.9382022604 | Q145: 0.4753975684 | R145: 0.5677404126 | S145: 0.5891908967 | T145: 0.3158319572 | U145: 0.8897934006 | V145: 0.7833833943 | W145: 1.017248066 | X145: 1.249541852 | Y145: 1.020944171 | Z145: 0.9257127459 | AA145: 0.6381646338 | AB145: 0.589269489 | AC145: 1.178480437 | AD145: 1.542278982 | AE145: 1.764547211 | AF145: 1.75463266 | AG145: 1.875477827 | AH145: 1.791412116 | AI145: 2.26169765 | AJ145: 2.010223551 | AK145: 1.580175396
A146: Private Sector & Trade | B146: Merchandise exports to economies in the Arab World (% of total merchandise exports) | D146: Comparable LMIC | E146: =COUNT(F146:AL146) -> 32 | F146: 3.838334823 | G146: 3.887822302 | H146: 2.723245186 | I146: 2.789789064 | J146: 2.038780748 | K146: 2.40027658 | L146: 3.030360225 | M146: 2.464684421 | N146: 2.240688259 | O146: 1.826275383 | P146: 1.932069185 | Q146: 1.990437922 | R146: 3.166524641 | S146: 3.236901499 | T146: 3.500412669 | U146: 2.971017555 | V146: 3.510418436 | W146: 3.36138376 | X146: 3.698079722 | Y146: 2.939907726 | Z146: 2.43404588 | AA146: 2.758571301 | AB146: 2.667525502 | AC146: 2.66323889 | AD146: 2.823929606 | AE146: 3.175816144 | AF146: 3.215765921 | AG146: 4.395139561 | AH146: 5.032600009 | AI146: 5.183886772 | AJ146: 4.35921092 | AK146: 4.734761076
A147: Private Sector & Trade | B147: Merchandise exports to economies in the Arab World (% of total merchandise exports) | D147: Aspirational MIC | E147: =COUNT(F147:AL147) -> 32 | F147: 2.864906116 | G147: 4.294160582 | H147: 4.744143018 | I147: 4.709151362 | J147: 4.174002604 | K147: 3.774171089 | L147: 3.623120052 | M147: 3.578650689 | N147: 3.255481453 | O147: 2.901950499 | P147: 2.60373732 | Q147: 2.73356751 | R147: 2.738164604 | S147: 2.856422355 | T147: 2.608132201 | U147: 2.766908644 | V147: 2.672639858 | W147: 2.716166486 | X147: 2.75704253 | Y147: 2.686083486 | Z147: 2.371971954 | AA147: 2.80267057 | AB147: 2.976918268 | AC147: 2.885088913 | AD147: 3.005050203 | AE147: 3.115143828 | AF147: 3.484815387 | AG147: 3.698833246 | AH147: 4.264559317 | AI147: 4.545521962 | AJ147: 4.128886639 | AK147: 3.947831292
A148: Private Sector & Trade | B148: Merchandise exports to economies in the Arab World (% of total merchandise exports) | D148: Upper LIC | E148: =COUNT(F148:AL148) -> 32 | F148: 5.832462593 | G148: 5.411004926 | H148: 6.617606209 | I148: 6.478183256 | J148: 4.923153385 | K148: 4.40606779 | L148: 3.676120628 | M148: 6.273535808 | N148: 3.344629381 | O148: 3.0450565 | P148: 4.143159091 | Q148: 3.595070067 | R148: 5.245743818 | S148: 6.349421765 | T148: 3.417074977 | U148: 3.298864106 | V148: 2.993713586 | W148: 3.118788179 | X148: 2.727970258 | Y148: 2.646915855 | Z148: 2.866434368 | AA148: 4.453173357 | AB148: 3.640946698 | AC148: 4.785138567 | AD148: 3.87475338 | AE148: 4.381135633 | AF148: 3.755715634 | AG148: 3.80842396 | AH148: 3.858502764 | AI148: 3.761461415 | AJ148: 3.72731852 | AK148: 3.50547613
A149: Private Sector & Trade | B149: Merchandise exports to high-income economies (% of total merchandise exports) | C149: 35 | D149: Ghana | E149: 32 | F149: 76.39777255 | G149: 88.56841405 | H149: 86.39344976 | I149: 73.23326282 | J149: 77.40798531 | K149: 75.66638459 | L149: 79.12909762 | M149: 81.96964858 | N149: 83.84704864 | O149: 83.84704864 | P149: 85.51897689 | Q149: 93.07749871 | R149: 78.3730757 | S149: 73.80678434 | T149: 74.84269427 | U149: 80.53471666 | V149: 77.54263154 | W149: 75.38877563 | X149: 78.69608002 | Y149: 73.97416686 | Z149: 74.84087309 | AA149: 72.67469263 | AB149: 70.1258115 | AC149: 66.88296643 | AD149: 63.30772865 | AE149: 60.84611602 | AF149: 60.20362476 | AG149: 56.38175728 | AH149: 50.43328214 | AI149: 51.8376463 | AJ149: 53.10203559 | AK149: 64.45842902
A150: Private Sector & Trade | B150: Merchandise exports to high-income economies (% of total merchandise exports) | D150: Comparable LMIC | E150: =COUNT(F150:AL150) -> 32 | F150: 69.30098254 | G150: 68.81410747 | H150: 71.61054949 | I150: 74.80689839 | J150: 72.76493345 | K150: 65.15600523 | L150: 63.86414078 | M150: 64.1552489 | N150: 66.9493846 | O150: 67.20931386 | P150: 64.49312539 | Q150: 69.20930316 | R150: 66.38149424 | S150: 67.05280985 | T150: 63.59900619 | U150: 62.93018089 | V150: 61.55936903 | W150: 62.56626467 | X150: 60.35539272 | Y150: 57.57690876 | Z150: 56.68942214 | AA150: 57.28116231 | AB150: 56.22220532 | AC150: 56.48305267 | AD150: 55.00355569 | AE150: 55.81246934 | AF150: 54.86782382 | AG150: 55.02176373 | AH150: 53.30782145 | AI150: 53.99339171 | AJ150: 53.43869129 | AK150: 51.19569217
A151: Private Sector & Trade | B151: Merchandise exports to high-income economies (% of total merchandise exports) | D151: Aspirational MIC | E151: =COUNT(F151:AL151) -> 32 | F151: 82.37955575 | G151: 80.69706666 | H151: 81.46127956 | I151: 82.76146051 | J151: 82.76082752 | K151: 83.29311257 | L151: 84.53724284 | M151: 84.61988418 | N151: 84.68138378 | O151: 84.71805295 | P151: 85.49992961 | Q151: 85.12871777 | R151: 83.38606615 | S151: 81.73937336 | T151: 80.42165876 | U151: 77.99280258 | V151: 78.6073621 | W151: 76.41061619 | X151: 72.06988536 | Y151: 75.2229822 | Z151: 73.09210046 | AA151: 72.76131414 | AB151: 72.13794163 | AC151: 71.86805119 | AD151: 70.77352544 | AE151: 69.66237625 | AF151: 69.9843658 | AG151: 67.65746493 | AH151: 65.15869236 | AI151: 61.97995797 | AJ151: 60.33995138 | AK151: 58.11227124
A152: Private Sector & Trade | B152: Merchandise exports to high-income economies (% of total merchandise exports) | D152: Upper LIC | E152: =COUNT(F152:AL152) -> 32 | F152: 63.82072055 | G152: 68.97239329 | H152: 71.88379926 | I152: 73.58312368 | J152: 74.55210877 | K152: 76.52273034 | L152: 76.98820591 | M152: 74.80335417 | N152: 75.45950972 | O152: 69.32045337 | P152: 66.31479966 | Q152: 69.93191205 | R152: 69.95322958 | S152: 60.17384523 | T152: 58.61250134 | U152: 58.20755024 | V152: 55.83583956 | W152: 58.48289974 | X152: 61.51388677 | Y152: 59.39280599 | Z152: 57.51127059 | AA152: 58.42895287 | AB152: 58.65889957 | AC152: 52.51927625 | AD152: 52.33800163 | AE152: 54.71145473 | AF152: 53.19338512 | AG152: 51.87203486 | AH152: 50.73382817 | AI152: 45.91792269 | AJ152: 42.19368376 | AK152: 43.82820946
A153: Doing Business | B153: Doing Business Rankings | C153: 36 | D153: See indicator page
A154: Public Sector | B154: CPIA building human resources rating (1=low to 6=high) | C154: 37 | D154: Ghana | E154: 7 | AE154: 3.5 | AF154: 4 | AG154: 4.5 | AH154: 4.5 | AI154: 4.5 | AJ154: 4.5 | AK154: 4.5
A155: Public Sector | B155: CPIA building human resources rating (1=low to 6=high) | D155: Comparable LMIC | E155: =COUNT(F155:AL155) -> 7 | AE155: 3.428571429 | AF155: 3.428571429 | AG155: 3.5 | AH155: 3.571428571 | AI155: 3.5 | AJ155: 3.571428571 | AK155: 3.642857143
A156: Public Sector | B156: CPIA building human resources rating (1=low to 6=high) | D156: Aspirational MIC | E156: =COUNT(F156:AL156) -> 2 | AE156: 3.5 | AF156: 3.5
A157: Public Sector | B157: CPIA building human resources rating (1=low to 6=high) | D157: Upper LIC | E157: =COUNT(F157:AL157) -> 7 | AE157: 3.434782609 | AF157: 3.413043478 | AG157: 3.413043478 | AH157: 3.456521739 | AI157: 3.4375 | AJ157: 3.458333333 | AK157: 3.645833333
A158: Public Sector | B158: CPIA business regulatory environment rating (1=low to 6=high) | C158: 38 | D158: Ghana | E158: 7 | AE158: 4 | AF158: 4 | AG158: 4 | AH158: 4 | AI158: 4 | AJ158: 4.5 | AK158: 4.5
A159: Public Sector | B159: CPIA business regulatory environment rating (1=low to 6=high) | D159: Comparable LMIC | E159: =COUNT(F159:AL159) -> 7 | AE159: 3.357142857 | AF159: 3.357142857 | AG159: 3.571428571 | AH159: 3.5 | AI159: 3.428571429 | AJ159: 3.5 | AK159: 3.428571429
A160: Public Sector | B160: CPIA business regulatory environment rating (1=low to 6=high) | D160: Aspirational MIC | E160: =COUNT(F160:AL160) -> 2 | AE160: 3 | AF160: 3
A161: Public Sector | B161: CPIA business regulatory environment rating (1=low to 6=high) | D161: Upper LIC | E161: =COUNT(F161:AL161) -> 7 | AE161: 3.239130435 | AF161: 3.239130435 | AG161: 3.239130435 | AH161: 3.304347826 | AI161: 3.3125 | AJ161: 3.270833333 | AK161: 3.3125
A162: Public Sector | B162: CPIA debt policy rating (1=low to 6=high) | C162: 39 | D162: Ghana | E162: 7 | AE162: 4 | AF162: 4 | AG162: 4 | AH162: 4 | AI162: 4 | AJ162: 4 | AK162: 4
A163: Public Sector | B163: CPIA debt policy rating (1=low to 6=high) | D163: Comparable LMIC | E163: =COUNT(F163:AL163) -> 7 | AE163: 3.5 | AF163: 3.571428571 | AG163: 3.714285714 | AH163: 3.785714286 | AI163: 3.785714286 | AJ163: 3.714285714 | AK163: 3.642857143
A164: Public Sector | B164: CPIA debt policy rating (1=low to 6=high) | D164: Aspirational MIC | E164: =COUNT(F164:AL164) -> 2 | AE164: 4.5 | AF164: 4.5
A165: Public Sector | B165: CPIA debt policy rating (1=low to 6=high) | D165: Upper LIC | E165: =COUNT(F165:AL165) -> 7 | AE165: 3.456521739 | AF165: 3.434782609 | AG165: 3.456521739 | AH165: 3.543478261 | AI165: 3.458333333 | AJ165: 3.5 | AK165: 3.5625
A166: Public Sector | B166: CPIA economic management cluster average (1=low to 6=high) | C166: 40 | D166: Ghana | E166: 7 | AE166: 4.166666667 | AF166: 4.166666667 | AG166: 4 | AH166: 3.7 | AI166: 3.666666667 | AJ166: 3.666666667 | AK166: 3.833333333
A167: Public Sector | B167: CPIA economic management cluster average (1=low to 6=high) | D167: Comparable LMIC | E167: =COUNT(F167:AL167) -> 7 | AE167: 3.714285714 | AF167: 3.785714286 | AG167: 3.833333333 | AH167: 3.785714286 | AI167: 3.785714286 | AJ167: 3.738095238 | AK167: 3.738095238
A168: Public Sector | B168: CPIA economic management cluster average (1=low to 6=high) | D168: Aspirational MIC | E168: =COUNT(F168:AL168) -> 2 | AE168: 4.333333333 | AF168: 4.333333333
A169: Public Sector | B169: CPIA economic management cluster average (1=low to 6=high) | D169: Upper LIC | E169: =COUNT(F169:AL169) -> 7 | AE169: 3.579710145 | AF169: 3.576811594 | AG169: 3.586956522 | AH169: 3.634782609 | AI169: 3.638888889 | AJ169: 3.645833333 | AK169: 3.625
A170: Public Sector | B170: CPIA efficiency of revenue mobilization rating (1=low to 6=high) | C170: 41 | D170: Ghana | E170: 7 | AE170: 4.5 | AF170: 4.5 | AG170: 4.5 | AH170: 4.5 | AI170: 4.5 | AJ170: 4 | AK170: 4
A171: Public Sector | B171: CPIA efficiency of revenue mobilization rating (1=low to 6=high) | D171: Comparable LMIC | E171: =COUNT(F171:AL171) -> 7 | AE171: 3.857142857 | AF171: 3.785714286 | AG171: 3.714285714 | AH171: 3.785714286 | AI171: 3.785714286 | AJ171: 3.714285714 | AK171: 3.714285714
A172: Public Sector | B172: CPIA efficiency of revenue mobilization rating (1=low to 6=high) | D172: Aspirational MIC | E172: =COUNT(F172:AL172) -> 2 | AE172: 3.5 | AF172: 3.5
A173: Public Sector | B173: CPIA efficiency of revenue mobilization rating (1=low to 6=high) | D173: Upper LIC | E173: =COUNT(F173:AL173) -> 7 | AE173: 3.260869565 | AF173: 3.260869565 | AG173: 3.304347826 | AH173: 3.369565217 | AI173: 3.375 | AJ173: 3.416666667 | AK173: 3.458333333
A174: Public Sector | B174: CPIA equity of public resource use rating (1=low to 6=high) | C174: 42 | D174: Ghana | E174: 7 | AE174: 4 | AF174: 4 | AG174: 4 | AH174: 4 | AI174: 4 | AJ174: 4 | AK174: 3.5
A175: Public Sector | B175: CPIA equity of public resource use rating (1=low to 6=high) | D175: Comparable LMIC | E175: =COUNT(F175:AL175) -> 7 | AE175: 3.428571429 | AF175: 3.5 | AG175: 3.5 | AH175: 3.5 | AI175: 3.571428571 | AJ175: 3.571428571 | AK175: 3.642857143
A176: Public Sector | B176: CPIA equity of public resource use rating (1=low to 6=high) | D176: Aspirational MIC | E176: =COUNT(F176:AL176) -> 2 | AE176: 4 | AF176: 4
A177: Public Sector | B177: CPIA equity of public resource use rating (1=low to 6=high) | D177: Upper LIC | E177: =COUNT(F177:AL177) -> 7 | AE177: 3.326086957 | AF177: 3.391304348 | AG177: 3.413043478 | AH177: 3.369565217 | AI177: 3.395833333 | AJ177: 3.541666667 | AK177: 3.583333333
A178: Public Sector | B178: CPIA financial sector rating (1=low to 6=high) | C178: 43 | D178: Ghana | E178: 7 | AE178: 3.5 | AF178: 3.5 | AG178: 4 | AH178: 4 | AI178: 4 | AJ178: 4 | AK178: 4
A179: Public Sector | B179: CPIA financial sector rating (1=low to 6=high) | D179: Comparable LMIC | E179: =COUNT(F179:AL179) -> 7 | AE179: 3.285714286 | AF179: 3.285714286 | AG179: 3.428571429 | AH179: 3.357142857 | AI179: 3.357142857 | AJ179: 3.357142857 | AK179: 3.428571429
A180: Public Sector | B180: CPIA financial sector rating (1=low to 6=high) | D180: Aspirational MIC | E180: =COUNT(F180:AL180) -> 2 | AE180: 3.5 | AF180: 3.5
A181: Public Sector | B181: CPIA financial sector rating (1=low to 6=high) | D181: Upper LIC | E181: =COUNT(F181:AL181) -> 7 | AE181: 2.97826087 | AF181: 3.043478261 | AG181: 3.065217391 | AH181: 2.97826087 | AI181: 3 | AJ181: 3.020833333 | AK181: 3.041666667
A182: Public Sector | B182: CPIA fiscal policy rating (1=low to 6=high) | C182: 44 | D182: Ghana | E182: 7 | AE182: 4.5 | AF182: 4.5 | AG182: 4 | AH182: 3.5 | AI182: 3.5 | AJ182: 3.5 | AK182: 3.5
A183: Public Sector | B183: CPIA fiscal policy rating (1=low to 6=high) | D183: Comparable LMIC | E183: =COUNT(F183:AL183) -> 7 | AE183: 3.571428571 | AF183: 3.642857143 | AG183: 3.714285714 | AH183: 3.642857143 | AI183: 3.642857143 | AJ183: 3.571428571 | AK183: 3.714285714
A184: Public Sector | B184: CPIA fiscal policy rating (1=low to 6=high) | D184: Aspirational MIC | E184: =COUNT(F184:AL184) -> 2 | AE184: 4 | AF184: 4
A185: Public Sector | B185: CPIA fiscal policy rating (1=low to 6=high) | D185: Upper LIC | E185: =COUNT(F185:AL185) -> 7 | AE185: 3.47826087 | AF185: 3.52173913 | AG185: 3.565217391 | AH185: 3.652173913 | AI185: 3.6875 | AJ185: 3.645833333 | AK185: 3.604166667
A186: Public Sector | B186: CPIA gender equality rating (1=low to 6=high) | C186: 45 | D186: Ghana | E186: 7 | AE186: 4 | AF186: 4 | AG186: 4 | AH186: 4 | AI186: 4 | AJ186: 4 | AK186: 4
A187: Public Sector | B187: CPIA gender equality rating (1=low to 6=high) | D187: Comparable LMIC | E187: =COUNT(F187:AL187) -> 7 | AE187: 3.5 | AF187: 3.5 | AG187: 3.5 | AH187: 3.5 | AI187: 3.5 | AJ187: 3.5 | AK187: 3.357142857
A188: Public Sector | B188: CPIA gender equality rating (1=low to 6=high) | D188: Aspirational MIC | E188: =COUNT(F188:AL188) -> 2 | AE188: 3.5 | AF188: 3.5
A189: Public Sector | B189: CPIA gender equality rating (1=low to 6=high) | D189: Upper LIC | E189: =COUNT(F189:AL189) -> 7 | AE189: 3.413043478 | AF189: 3.456521739 | AG189: 3.52173913 | AH189: 3.52173913 | AI189: 3.5 | AJ189: 3.541666667 | AK189: 3.5625
A190: Public Sector | B190: CPIA macroeconomic management rating (1=low to 6=high) | C190: 46 | D190: Ghana | E190: 7 | AE190: 4 | AF190: 4 | AG190: 4 | AH190: 3.5 | AI190: 3.5 | AJ190: 3.5 | AK190: 4
A191: Public Sector | B191: CPIA macroeconomic management rating (1=low to 6=high) | D191: Comparable LMIC | E191: =COUNT(F191:AL191) -> 7 | AE191: 4.071428571 | AF191: 4.142857143 | AG191: 4.071428571 | AH191: 3.928571429 | AI191: 3.928571429 | AJ191: 3.928571429 | AK191: 3.857142857
A192: Public Sector | B192: CPIA macroeconomic management rating (1=low to 6=high) | D192: Aspirational MIC | E192: =COUNT(F192:AL192) -> 2 | AE192: 4.5 | AF192: 4.5
A193: Public Sector | B193: CPIA macroeconomic management rating (1=low to 6=high) | D193: Upper LIC | E193: =COUNT(F193:AL193) -> 7 | AE193: 3.804347826 | AF193: 3.760869565 | AG193: 3.739130435 | AH193: 3.717391304 | AI193: 3.770833333 | AJ193: 3.791666667 | AK193: 3.708333333
A194: Public Sector | B194: CPIA policies for social inclusion/equity cluster average (1=low to 6=high) | C194: 47 | D194: Ghana | E194: 7 | AE194: 3.7 | AF194: 3.8 | AG194: 3.9 | AH194: 4 | AI194: 3.9 | AJ194: 4 | AK194: 3.9
A195: Public Sector | B195: CPIA policies for social inclusion/equity cluster average (1=low to 6=high) | D195: Comparable LMIC | E195: =COUNT(F195:AL195) -> 7 | AE195: 3.357142857 | AF195: 3.357142857 | AG195: 3.385714286 | AH195: 3.414285714 | AI195: 3.414285714 | AJ195: 3.414285714 | AK195: 3.428571429
A196: Public Sector | B196: CPIA policies for social inclusion/equity cluster average (1=low to 6=high) | D196: Aspirational MIC | E196: =COUNT(F196:AL196) -> 0
A197: Public Sector | B197: CPIA policies for social inclusion/equity cluster average (1=low to 6=high) | D197: Upper LIC | E197: =COUNT(F197:AL197) -> 7 | AE197: 3.269565217 | AF197: 3.295652174 | AG197: 3.313043478 | AH197: 3.32173913 | AI197: 3.320833333 | AJ197: 3.366666667 | AK197: 3.420833333
A198: Public Sector | B198: CPIA policy and institutions for environmental sustainability rating (1=low to 6=high) | C198: 48 | D198: Ghana | E198: 7 | AE198: 3.5 | AF198: 3.5 | AG198: 3.5 | AH198: 3.5 | AI198: 3.5 | AJ198: 3.5 | AK198: 3.5
A199: Public Sector | B199: CPIA policy and institutions for environmental sustainability rating (1=low to 6=high) | D199: Comparable LMIC | E199: =COUNT(F199:AL199) -> 7 | AE199: 3.285714286 | AF199: 3.285714286 | AG199: 3.214285714 | AH199: 3.285714286 | AI199: 3.285714286 | AJ199: 3.285714286 | AK199: 3.357142857
A200: Public Sector | B200: CPIA policy and institutions for environmental sustainability rating (1=low to 6=high) | D200: Aspirational MIC | E200: =COUNT(F200:AL200) -> 2 | AE200: 2.5 | AF200: 3
A201: Public Sector | B201: CPIA policy and institutions for environmental sustainability rating (1=low to 6=high) | D201: Upper LIC | E201: =COUNT(F201:AL201) -> 7 | AE201: 3.065217391 | AF201: 3.108695652 | AG201: 3.108695652 | AH201: 3.108695652 | AI201: 3.083333333 | AJ201: 3.104166667 | AK201: 3.125
... 165 more rows

Sheet GDP per capita (2000$)
A1: GDP per capita (constant 2000 US$)
A3: Source | B3: Indicator Name | C3: Indicator Code | D3: Country Name | E3: Country Code | F3: Comparator group | G3: # years data available | H3: 1980 | I3: 1981 | J3: 1982 | K3: 1983 | L3: 1984 | M3: 1985 | N3: 1986 | O3: 1987 | P3: 1988 | Q3: 1989 | R3: 1990 | S3: 1991 | T3: 1992 | U3: 1993 | V3: 1994 | W3: 1995 | X3: 1996 | Y3: 1997 | Z3: 1998 | AA3: 1999 | AB3: 2000 | AC3: 2001 | AD3: 2002 | AE3: 2003 | AF3: 2004 | AG3: 2005 | AH3: 2006 | AI3: 2007 | AJ3: 2008 | AK3: 2009 | AL3: 2010 | AM3: 2011 | AN3: 2012
F4: Averages:
F5: Comparable LMIC | H5: =AVERAGEIF($F$9:$F$1475,$F5,H$9:H$1475) -> 721.7225679 | I5: 726.0189403 | J5: 698.4280037 | K5: 659.6868006 | L5: 593.3931958 | M5: 600.1705739 | N5: 591.805212 | O5: 595.4861606 | P5: 606.3800356 | Q5: 615.8343445 | R5: =AVERAGEIF($F$9:$F$1475,$F5,R$9:R$1475) -> 609.7703417 | S5: 607.5934456 | T5: 610.5194478 | U5: 618.9953209 | V5: 610.792147 | W5: 625.7531765 | X5: 635.2347552 | Y5: 647.0877514 | Z5: 650.7692208 | AA5: 644.4375052 | AB5: =AVERAGEIF($F$9:$F$1475,$F5,AB$9:AB$1475) -> 641.1704679 | AC5: 647.6234831 | AD5: 640.7571233 | AE5: 656.3456052 | AF5: 680.0587454 | AG5: 708.6446783 | AH5: 731.6819692 | AI5: 767.6508351 | AJ5: 786.1820644 | AK5: 783.9284164 | AL5: 827.5835384 | AM5: 848.7795407
F6: Aspirational MIC | H6: 1710.975509 | I6: 1715.77575 | J6: 1714.408977 | K6: 1695.675839 | L6: 1741.878418 | M6: 1745.382444 | N6: 1774.788515 | O6: 1816.245682 | P6: 1880.346841 | Q6: 1944.146823 | R6: 1954.816112 | S6: 2008.393142 | T6: 2038.596117 | U6: 2086.365513 | V6: 2174.930316 | W6: 2261.555883 | X6: 2339.853358 | Y6: 2403.793846 | Z6: 2332.571653 | AA6: 2369.982436 | AB6: 2456.645484 | AC6: 2468.873961 | AD6: 2560.22038 | AE6: 2643.468324 | AF6: 2783.175315 | AG6: 2864.152175 | AH6: 2990.696881 | AI6: 3137.057289 | AJ6: 3235.608937 | AK6: 3172.163586 | AL6: 3348.813261 | AM6: 3456.876498
F7: Upper LIC | H7: 413.0023506 | I7: 403.9225479 | J7: 387.7060345 | K7: 386.3545763 | L7: 377.5273961 | M7: 387.7609684 | N7: 378.3079766 | O7: 390.1479301 | P7: 398.501193 | Q7: 384.9107817 | R7: 366.4082965 | S7: 346.7532439 | T7: 299.7354679 | U7: 275.5176968 | V7: 265.6482697 | W7: 270.7818965 | X7: 281.2435212 | Y7: 294.0599734 | Z7: 300.9075064 | AA7: 307.6126393 | AB7: 313.482302 | AC7: 322.2696444 | AD7: 333.9689582 | AE7: 339.1380251 | AF7: 354.6241064 | AG7: 372.7714388 | AH7: 390.4502672 | AI7: 416.4266992 | AJ7: 433.5790879 | AK7: 441.3151243 | AL7: 461.3174443 | AM7: 482.4487646
A9: WB | B9: GDP per capita (constant 2000 US$) | C9: NY.GDP.PCAP.KD | D9: Ghana | E9: GHA | F9: (Ghana) | G9: =COUNT(H9:AN9) -> 32 | H9: 241.9462395 | I9: 226.7589089 | J9: 204.1828801 | K9: 188.1486653 | L9: 197.4867748 | M9: 200.9364455 | N9: 205.1677706 | O9: 209.0656817 | P9: 214.965181 | Q9: 219.9076008 | R9: 221.0716696 | S9: 226.2823318 | T9: 228.4587968 | U9: 232.8512761 | V9: 234.0064503 | W9: 237.2935875 | X9: 242.0582959 | Y9: 246.197848 | Z9: 251.7652913 | AA9: 256.7399526 | AB9: 259.9906944 | AC9: 263.9615458 | AD9: 269.2285553 | AE9: 276.4051992 | AF9: 284.8491549 | AG9: 294.4080169 | AH9: 305.7511071 | AI9: 317.7363633 | AJ9: 336.3518402 | AK9: 341.5522907 | AL9: 360.3240584 | AM9: 402.6953275
A10: WB | B10: GDP per capita (constant 2000 US$) | C10: NY.GDP.PCAP.KD | D10: Botswana | E10: BWA | F10: Aspirational MIC | G10: 32 | H10: 1153.968083 | I10: 1213.88156 | J10: 1314.693598 | K10: 1437.677432 | L10: 1509.20752 | M10: 1564.307997 | N10: 1638.161391 | O10: 1775.485706 | P10: 2055.763766 | Q10: 2254.251209 | R10: 2335.83437 | S10: 2437.414831 | T10: 2437.701909 | U10: 2416.589463 | V10: 2438.874824 | W10: 2483.293334 | X10: 2559.717672 | Y10: 2757.478268 | Z10: 2986.009108 | AA10: 3078.101681 | AB10: 3204.115483 | AC10: 3268.358809 | AD10: 3516.207918 | AE10: 3691.882799 | AF10: 3865.861638 | AG10: 3880.266895 | AH10: 4025.39536 | AI10: 4160.662597 | AJ10: 4223.234151 | AK10: 3965.188966 | AL10: 4189.686702 | AM10: 4377.555741
A11: WB | B11: GDP per capita (constant 2000 US$) | C11: NY.GDP.PCAP.KD | D11: Brazil | E11: BRA | F11: Aspirational MIC | G11: 32 | H11: 3536.04587 | I11: 3302.639357 | J11: 3245.573152 | K11: 3064.153633 | L11: 3154.965632 | M11: 3333.999635 | N11: 3527.761242 | O11: 3584.074016 | P11: 3513.999487 | Q11: 3564.636189 | R11: 3352.965403 | S11: 3347.811473 | T11: 3279.686396 | U11: 3380.128392 | V11: 3506.544107 | W11: 3606.005917 | X11: 3627.626996 | Y11: 3693.27582 | Z11: 3639.181673 | AA11: 3594.86982 | AB11: 3696.146772 | AC11: 3692.840177 | AD11: 3739.919389 | AE11: 3733.992419 | AF11: 3899.255355 | AG11: 3976.619168 | AH11: 4090.555803 | AI11: 4297.823854 | AJ11: 4478.809189 | AK11: 4424.758692 | AL11: 4716.614125 | AM11: 4803.398244
A12: WB | B12: GDP per capita (constant 2000 US$) | C12: NY.GDP.PCAP.KD | D12: China | E12: CHN | F12: Aspirational MIC | G12: 32 | H12: 186.4396607 | I12: 193.638156 | J12: 208.1708635 | K12: 227.5496401 | L12: 258.7202307 | M12: 289.6759682 | N12: 310.514347 | O12: 341.0212935 | P12: 373.4945008 | Q12: 382.8921553 | R12: 391.6529529 | S12: 421.8891748 | T12: 475.9288697 | U12: 536.3572647 | V12: 599.8022805 | W12: 657.9926002 | X12: 716.2451166 | Y12: 774.884634 | Z12: 827.348598 | AA12: 882.5523218 | AB12: 949.1780621 | AC12: 1020.519994 | AD12: 1105.952557 | AE12: 1208.993961 | AF12: 1323.219929 | AG12: 1464.107627 | AH12: 1640.861518 | AI12: 1864.102702 | AJ12: 2032.61498 | AK12: 2208.603013 | AL12: 2426.550123 | AM12: 2639.54156
A13: WB | B13: GDP per capita (constant 2000 US$) | C13: NY.GDP.PCAP.KD | D13: Indonesia | E13: IDN | F13: Aspirational MIC | G13: 32 | H13: 390.0096519 | I13: 412.341375 | J13: 407.6896902 | K13: 432.5769957 | L13: 453.8597054 | M13: 460.1105832 | N13: 478.0198529 | O13: 493.8647534 | P13: 515.6944955 | Q13: 552.6368974 | R13: 592.0960703 | S13: 634.2710005 | T13: 669.1430377 | U13: 706.5088043 | V13: 748.3235143 | W13: 799.3099303 | X13: 848.2471059 | Y13: 875.959217 | Z13: 750.8111959 | AA13: 746.7927777 | AB13: 773.3109699 | AC13: 791.0764547 | AD13: 816.0164079 | AE13: 844.1834857 | AF13: 875.7291576 | AG13: 914.5999046 | AH13: 953.9355312 | AI13: 1003.364434 | AJ13: 1052.433389 | AK13: 1089.724014 | AL13: 1145.385435 | AM13: 1206.991065
A14: WB | B14: GDP per capita (constant 2000 US$) | C14: NY.GDP.PCAP.KD | D14: Malaysia | E14: MYS | F14: Aspirational MIC | G14: 32 | H14: 1909.618067 | I14: 1992.32596 | J14: 2057.941244 | K14: 2130.40189 | L14: 2234.910073 | M14: 2149.417362 | N14: 2112.890278 | O14: 2162.540715 | P14: 2308.568393 | Q14: 2445.909291 | R14: 2592.517053 | S14: 2764.200613 | T14: 2932.017288 | U14: 3140.825774 | V14: 3344.567799 | W14: 3581.946302 | X14: 3842.637758 | Y14: 4022.843596 | Z14: 3636.473102 | AA14: 3767.637015 | AB14: 4005.556325 | AC14: 3933.935077 | AD14: 4052.878748 | AE14: 4194.260799 | AF14: 4385.96954 | AG14: 4529.601248 | AH14: 4695.229726 | AI14: 4905.121369 | AJ14: 5057.826663 | AK14: 4901.547097 | AL14: 5168.686016 | AM14: 5345.213415
A15: WB | B15: GDP per capita (constant 2000 US$) | C15: NY.GDP.PCAP.KD | D15: Namibia | E15: NAM | F15: Aspirational MIC | G15: 32 | H15: 2263.452207 | I15: 2235.499498 | J15: 2179.902487 | K15: 2091.456923 | L15: 2029.309548 | M15: 1974.130463 | N15: 1988.787295 | O15: 1972.438805 | P15: 1903.415249 | Q15: 1857.595253 | R15: 1831.104222 | S15: 1912.66532 | T15: 1986.052665 | U15: 1889.28788 | V15: 1969.601928 | W15: 1991.651126 | X15: 1995.331606 | Y15: 2019.069817 | Z15: 2026.89218 | AA15: 2040.397268 | AB15: 2061.671969 | AC15: 2042.313612 | AD15: 2099.946066 | AE15: 2150.893854 | AF15: 2373.487177 | AG15: 2390.65793 | AH15: 2512.989364 | AI15: 2598.576933 | AJ15: 2635.728958 | AK15: 2558.57949 | AL15: 2677.630305 | AM15: 2758.094931
A16: WB | B16: GDP per capita (constant 2000 US$) | C16: NY.GDP.PCAP.KD | D16: South Africa | E16: ZAF | F16: Aspirational MIC | G16: 32 | H16: 3463.247113 | I16: 3561.259029 | J16: 3459.787492 | K16: 3309.967643 | L16: 3389.641627 | M16: 3262.743579 | N16: 3180.686464 | O16: 3167.455626 | P16: 3222.65484 | Q16: 3226.92477 | R16: 3151.838614 | S16: 3056.094145 | T16: 2929.027116 | U16: 2903.199593 | V16: 2933.724114 | W16: 2960.422458 | X16: 3019.966 | Y16: 3029.772513 | Z16: 2974.681189 | AA16: 2972.203412 | AB16: 3019.946367 | AC16: 3039.70613 | AD16: 3108.043654 | AE16: 3159.237852 | AF16: 3264.317383 | AG16: 3397.720015 | AH16: 3548.09031 | AI16: 3704.084266 | AJ16: 3795.976906 | AK16: 3697.67368 | AL16: 3753.445365 | AM16: 3825.093781
A17: WB | B17: GDP per capita (constant 2000 US$) | C17: NY.GDP.PCAP.KD | D17: Thailand | E17: THA | F17: Aspirational MIC | G17: 32 | H17: 785.0234224 | I17: 814.6210627 | J17: 841.513292 | K17: 871.6225587 | L17: 904.4130074 | M17: 928.6739695 | N17: 961.4872544 | O17: 1033.08454 | P17: 1149.183997 | Q17: 1268.328818 | R17: 1390.520211 | S17: 1492.798578 | T17: 1599.211652 | U17: 1718.026934 | V17: 1858.003963 | W17: 2011.825398 | X17: 2109.05461 | Y17: 2057.066906 | Z17: 1819.176177 | AA17: 1877.305197 | AB17: 1943.237928 | AC17: 1962.241437 | AD17: 2042.798299 | AE17: 2164.301418 | AF17: 2277.562345 | AG17: 2359.644614 | AH17: 2458.517431 | AI17: 2562.72216 | AJ17: 2608.24726 | AK17: 2531.233735 | AL17: 2712.508016 | AM17: 2699.123242
A18: WB | B18: GDP per capita (constant 2000 US$) | C18: NY.GDP.PCAP.KD | D18: Cote d'Ivoire | E18: CIV | F18: Comparable LMIC | G18: 32 | H18: 909.0070675 | I18: 900.0737956 | J18: 863.4311611 | K18: 795.2365324 | L18: 742.6592873 | M18: 746.1494783 | N18: 742.0833526 | O18: 713.4016106 | P18: 696.8595185 | Q18: 693.3078299 | R18: 662.8675347 | S18: 641.2072899 | T18: 618.8025745 | U18: 598.018497 | V18: 584.5253864 | W18: 608.1200345 | X18: 637.2058658 | Y18: 656.158427 | Z18: 670.6147102 | AA18: 665.9728897 | AB18: 628.2281148 | AC18: 616.5235814 | AD18: 597.5229751 | AE18: 578.9671333 | AF18: 580.1682888 | AG18: 578.0306074 | AH18: 572.2971337 | AI18: 572.0962695 | AJ18: 574.9350967 | AK18: 585.3044893 | AL18: 587.5445423 | AM18: 548.2314368
A19: WB | B19: GDP per capita (constant 2000 US$) | C19: NY.GDP.PCAP.KD | D19: Honduras | E19: HND | F19: Comparable LMIC | G19: 32 | H19: 1115.742058 | I19: 1109.06402 | J19: 1060.542573 | K19: 1019.204931 | L19: 1031.765481 | M19: 1043.066727 | N19: 1019.630039 | O19: 1049.573531 | P19: 1066.315103 | Q19: 1080.878053 | R19: 1051.785919 | S19: 1056.27818 | T19: 1085.763354 | U19: 1123.305263 | V19: 1080.770615 | W19: 1097.567524 | X19: 1110.825551 | Y19: 1140.514876 | Z19: 1148.533494 | AA19: 1103.304536 | AB19: 1142.709658 | AC19: 1149.949244 | AD19: 1169.130507 | AE19: 1197.914769 | AF19: 1247.323449 | AG19: 1296.624177 | AH19: 1354.497039 | AI19: 1409.979046 | AJ19: 1440.680055 | AK19: 1382.131613 | AL19: 1392.315832 | AM19: 1414.072488
A20: WB | B20: GDP per capita (constant 2000 US$) | C20: NY.GDP.PCAP.KD | D20: India | E20: IND | F20: Comparable LMIC | G20: 32 | H20: 230.0085355 | I20: 238.2305665 | J20: 240.9096787 | K20: 252.6516943 | L20: 256.45344 | M20: 263.9605205 | N20: 270.5132774 | O20: 275.1513877 | P20: 295.1969968 | Q20: 306.1717288 | R20: 316.4285779 | S20: 313.2745132 | T20: 323.8575015 | U20: 332.6056849 | V20: 347.951035 | W20: 367.2771625 | X20: 387.7415214 | Y20: 396.1844388 | Z20: 413.2870519 | AA20: 440.5693093 | AB20: 450.4151061 | AC20: 464.9742607 | AD20: 475.4570581 | AE20: 505.2489363 | AF20: 536.60488 | AG20: 577.6567293 | AH20: 621.8994139 | AI20: 673.004691 | AJ20: 689.2732045 | AK20: 737.2735699 | AL20: 803.7989927 | AM20: 843.0645081
A21: WB | B21: GDP per capita (constant 2000 US$) | C21: NY.GDP.PCAP.KD | D21: Nigeria | E21: NGA | F21: Comparable LMIC | G21: 32 | H21: 416.340061 | I21: 352.0789347 | J21: 342.3438615 | K21: 316.228174 | L21: 293.5968613 | M21: 314.0696989 | N21: 313.8150144 | O21: 303.6635208 | P21: 325.2048244 | Q21: 339.8176736 | R21: 358.5537404 | S21: 366.4613075 | T21: 368.1038996 | U21: 367.2846662 | V21: 359.0260513 | W21: 359.4315487 | X21: 366.2201056 | Y21: 367.4600805 | Z21: 365.7525573 | AA21: 361.20193 | AB21: 371.7680804 | AC21: 374.1686638 | AD21: 370.8107292 | AE21: 399.0619903 | AF21: 430.5797415 | AG21: 442.7179313 | AH21: 458.6349173 | AI21: 476.214166 | AJ21: 492.2669892 | AK21: 513.5003377 | AL21: 540.6852114 | AM21: 565.9947974
A22: WB | B22: GDP per capita (constant 2000 US$) | C22: NY.GDP.PCAP.KD | D22: Paraguay | E22: PRY | F22: Comparable LMIC | G22: 32 | H22: 1411.486717 | I22: 1488.68149 | J22: 1391.885756 | K22: 1310.305714 | L22: 1311.282454 | M22: 1324.274097 | N22: 1286.921191 | O22: 1305.470527 | P22: 1350.705039 | Q22: 1391.025628 | R22: 1396.742875 | S22: 1394.924917 | T22: 1406.982974 | U22: 1426.760892 | V22: 1445.128954 | W22: 1488.949911 | X22: 1461.484586 | Y22: 1472.343823 | Z22: 1449.257221 | AA22: 1397.892359 | AB22: 1323.481934 | AC22: 1323.463415 | AD22: 1243.338276 | AE22: 1244.504616 | AF22: 1263.919877 | AG22: 1331.107082 | AH22: 1352.975654 | AI22: 1450.184566 | AJ22: 1483.739071 | AK22: 1406.361701 | AL22: 1578.636338 | AM22: 1657.583233
A23: WB | B23: GDP per capita (constant 2000 US$) | C23: NY.GDP.PCAP.KD | D23: Senegal | E23: SEN | F23: Comparable LMIC | G23: 32 | H23: 494.2061574 | I23: 505.6858826 | J23: 530.5448804 | K23: 488.2285676 | L23: 492.0441587 | M23: 493.4874651 | N23: 493.9569179 | O23: 508.5687108 | P23: 490.5341343 | Q23: 494.8902392 | R23: 477.0034157 | S23: 474.7715574 | T23: 466.5830076 | U23: 459.024336 | V23: 446.0914038 | W23: 457.3258796 | X23: 454.4335481 | Y23: 456.8869761 | Z23: 471.9133211 | AA23: 489.4203221 | AB23: 492.2862252 | AC23: 501.4912849 | AD23: 491.4620661 | AE23: 510.2133638 | AF23: 525.8493055 | AG23: 540.5931403 | AH23: 539.4896428 | AI23: 550.6476376 | AJ23: 555.9069869 | AK23: 552.5429026 | AL23: 560.2574435 | AM23: 559.9683029
A24: WB | B24: GDP per capita (constant 2000 US$) | C24: NY.GDP.PCAP.KD | D24: Vietnam | E24: VNM | F24: Comparable LMIC | G24: 28 | L24: 198.5291059 | M24: 201.9667162 | N24: 202.841641 | O24: 205.0031105 | P24: 210.3754204 | Q24: 220.5996509 | R24: 227.4878659 | S24: 236.6542186 | T24: 252.5790356 | U24: 268.2876539 | V24: 287.1365396 | W24: 309.4149314 | X24: 332.944352 | Y24: 354.5124636 | Z24: 369.2367194 | AA24: 381.1028022 | AB24: 401.5478021 | AC24: 423.8286215 | AD24: 448.6001988 | AE24: 475.9692714 | AF24: 506.9389496 | AG24: 543.3565222 | AH24: 581.5782774 | AI24: 623.9574826 | AJ24: 656.3107275 | AK24: 683.9964502 | AL24: 722.7701432 | AM24: 757.4009286
A25: WB | B25: GDP per capita (constant 2000 US$) | C25: NY.GDP.PCAP.KD | D25: Zambia | E25: ZMB | F25: Comparable LMIC | G25: 32 | H25: 475.2673786 | I25: 488.3178931 | J25: 459.3381161 | K25: 435.951991 | L25: 420.8147785 | M25: 414.3898887 | N25: 404.6802627 | O25: 403.0568868 | P25: 415.849249 | Q25: 399.9839533 | R25: 387.292805 | S25: 377.1755805 | T25: 361.4832347 | U25: 376.6755744 | V25: 335.7071901 | W25: 317.9384211 | X25: 331.0225109 | Y25: 332.6409262 | Z25: 317.5586907 | AA25: 316.0358938 | AB25: 318.9268222 | AC25: 326.5887929 | AD25: 329.7351753 | AE25: 338.8847613 | AF25: 349.0854725 | AG25: 359.0712373 | AH25: 372.0836755 | AI25: 385.1228226 | AJ25: 396.3443844 | AK25: 410.3162672 | AL25: 434.6598042 | AM25: 443.9206307
A26: WB | B26: GDP per capita (constant 2000 US$) | C26: NY.GDP.PCAP.KD | D26: Angola | E26: AGO | F26: Upper LIC | G26: 27 | M26: 362.4767014 | N26: 362.354136 | O26: 381.1575245 | P26: 392.7728072 | Q26: 384.4236019 | R26: 372.7945135 | S26: 357.3108475 | T26: 322.0929679 | U26: 234.6694073 | V26: 235.2049992 | W26: 251.8979553 | X26: 272.2911919 | Y26: 286.0045473 | Z26: 297.4212775 | AA26: 298.5734793 | AB26: 298.4058429 | AC26: 297.9016836 | AD26: 329.5655943 | AE26: 328.7779951 | AF26: 353.2314662 | AG26: 404.2703017 | AH26: 473.1363435 | AI26: 562.9876848 | AJ26: 622.566879 | AK26: 619.8185805 | AL26: 623.2452749 | AM26: 629.9553062
A27: WB | B27: GDP per capita (constant 2000 US$) | C27: NY.GDP.PCAP.KD | D27: Bangladesh | E27: BGD | F27: Upper LIC | G27: 32 | H27: 253.7822815 | I27: 256.250629 | J27: 255.3386127 | K27: 258.5983764 | L27: 264.8234246 | M27: 266.086821 | N27: 269.9559196 | O27: 272.5475672 | P27: 271.1057719 | Q27: 271.0917122 | R27: 280.1736837 | S27: 282.7790405 | T27: 290.4082118 | U27: 297.1685013 | V27: 302.8187236 | W27: 311.1665705 | X27: 318.9204692 | Y27: 329.396045 | Z27: 339.8583201 | AA27: 349.6507414 | AB27: 363.6399273 | AC27: 375.9934601 | AD27: 385.8060432 | AE27: 399.3959566 | AF27: 417.9536838 | AG27: 436.6881834 | AH27: 459.8625139 | AI27: 483.970868 | AJ27: 508.5557725 | AK27: 532.0769985 | AL27: 558.062385 | AM27: 588.3691778
A28: WB | B28: GDP per capita (constant 2000 US$) | C28: NY.GDP.PCAP.KD | D28: Benin | E28: BEN | F28: Upper LIC | G28: 32 | H28: 305.3487794 | I28: 326.8632461 | J28: 325.1686378 | K28: 302.5671104 | L28: 317.6625126 | M28: 332.3022601 | N28: 330.3920364 | O28: 316.7298971 | P28: 318.5683874 | Q28: 300.5838403 | R28: 317.5490629 | S28: 320.172515 | T28: 318.3973744 | U28: 325.3727392 | V28: 320.8686805 | W28: 329.5526909 | X28: 333.714699 | Y28: 343.0641772 | Z28: 346.9979857 | AA28: 355.4397045 | AB28: 361.9501493 | AC28: 372.9213324 | AD28: 377.2487984 | AE28: 379.4800151 | AF28: 378.9941491 | AG28: 377.8124376 | AH28: 380.139313 | AI28: 385.9173961 | AJ28: 393.478588 | AK28: 392.4275071 | AL28: 391.1622586 | AM28: 393.8459548
A29: WB | B29: GDP per capita (constant 2000 US$) | C29: NY.GDP.PCAP.KD | D29: Burkina Faso | E29: BFA | F29: Upper LIC | G29: 32 | H29: 152.6109611 | I29: 155.3067067 | J29: 166.024858 | K29: 162.4898993 | L29: 155.6087869 | M29: 164.588529 | N29: 173.1345234 | O29: 168.2585864 | P29: 173.3632998 | Q29: 172.4287089 | R29: 166.8421459 | S29: 177.11119 | T29: 172.7467542 | U29: 173.8917479 | V29: 171.3951387 | W29: 176.2594225 | X29: 190.3330133 | Y29: 196.8155274 | Z29: 205.3908634 | AA29: 214.4973957 | AB29: 212.3764919 | AC29: 220.0186815 | AD29: 224.8136155 | AE29: 235.4767143 | AF29: 238.9906353 | AG29: 252.2160321 | AH29: 261.4818665 | AI29: 263.0162961 | AJ29: 270.1262658 | AK29: 269.972052 | AL29: 282.8386834 | AM29: 286.0760667
A30: WB | B30: GDP per capita (constant 2000 US$) | C30: NY.GDP.PCAP.KD | D30: Burundi | E30: BDI | F30: Upper LIC | G30: 32 | H30: 159.5632026 | I30: 173.6195409 | J30: 166.386831 | K30: 166.9876384 | L30: 161.8115391 | M30: 175.0783178 | N30: 175.0800362 | O30: 179.0586489 | P30: 182.5993009 | Q30: 180.1112844 | R30: 181.9453709 | S30: 186.9548432 | T30: 185.2494132 | U30: 170.8145217 | V30: 161.983591 | W30: 147.4483698 | X30: 134.4704068 | Y30: 131.4495757 | Z30: 136.7637062 | AA30: 134.0865171 | AB30: 131.0463341 | AC30: 131.1620296 | AD30: 133.7748047 | AE30: 128.6077932 | AF30: 130.9790183 | AG30: 128.2961159 | AH30: 131.1716587 | AI30: 133.286878 | AJ30: 135.862446 | AK30: 136.6612801 | AL30: 138.2482379 | AM30: 140.8125043
A31: WB | B31: GDP per capita (constant 2000 US$) | C31: NY.GDP.PCAP.KD | D31: Cambodia | E31: KHM | F31: Upper LIC | G31: 19 | U31: 209.7954474 | V31: 222.0830303 | W31: 229.8906408 | X31: 236.2080833 | Y31: 243.6909759 | Z31: 250.4546803 | AA31: 274.8197687 | AB31: 293.5684654 | AC31: 311.9854949 | AD31: 327.8875011 | AE31: 350.8889852 | AF31: 382.1903258 | AG31: 427.5292527 | AH31: 468.031827 | AI31: 510.0197663 | AJ31: 538.1334555 | AK31: 532.6175229 | AL31: 557.976913 | AM31: 590.4521124
A32: WB | B32: GDP per capita (constant 2000 US$) | C32: NY.GDP.PCAP.KD | D32: Chad | E32: TCD | F32: Upper LIC | G32: 32 | H32: 145.9982252 | I32: 144.2883206 | J32: 148.5244809 | K32: 167.6679331 | L32: 166.7216287 | M32: 197.532568 | N32: 183.9995775 | O32: 174.1630398 | P32: 194.8755301 | Q32: 198.0363564 | R32: 183.9450842 | S32: 193.63608 | T32: 202.9064718 | U32: 165.9582487 | V32: 177.3196912 | W32: 174.0673841 | X32: 172.4759408 | Y32: 176.611958 | Z32: 182.9633107 | AA32: 175.8341013 | AB32: 168.4508791 | AC32: 181.5614382 | AD32: 189.9911081 | AE32: 210.2773835 | AF32: 271.4754978 | AG32: 308.4025141 | AH32: 299.8816624 | AI32: 292.1449936 | AJ32: 283.2765098 | AK32: 272.6269293 | AL32: 300.1077238 | AM32: 297.0181749
A33: WB | B33: GDP per capita (constant 2000 US$) | C33: NY.GDP.PCAP.KD | D33: Ethiopia | E33: ETH | F33: Upper LIC | G33: 31 | I33: 140.6684857 | J33: 138.0133541 | K33: 144.7947735 | L33: 136.1884244 | M33: 117.1536725 | N33: 124.4127561 | O33: 137.1780919 | P33: 133.4868899 | Q33: 128.716647 | R33: 127.8881274 | S33: 114.8041785 | T33: 101.3381627 | U33: 110.8595871 | V33: 110.7151708 | W33: 113.8715341 | X33: 124.2481159 | Y33: 124.5247598 | Z33: 116.9460052 | AA33: 119.7201104 | AB33: 123.6809168 | AC33: 130.5134412 | AD33: 129.157133 | AE33: 123.2536677 | AF33: 136.6187298 | AG33: 149.1918697 | AH33: 161.5928951 | AI33: 176.1074039 | AJ33: 190.8632151 | AK33: 203.2099043 | AL33: 218.6586392 | AM33: 229.6769525
A34: WB | B34: GDP per capita (constant 2000 US$) | C34: NY.GDP.PCAP.KD | D34: Georgia | E34: GEO | F34: Upper LIC | G34: 32 | H34: 1896.787901 | I34: 1980.387495 | J34: 2002.995027 | K34: 2070.881617 | L34: 2164.703664 | M34: 2251.8476 | N34: 2049.468533 | O34: 2058.677306 | P34: 2151.63853 | Q34: 1991.585726 | R34: 1697.52496 | S34: 1329.958271 | T34: 727.1532628 | U34: 510.1613521 | V34: 461.7587586 | W34: 486.5342976 | X34: 554.8445214 | Y34: 624.6432407 | Z34: 650.3959551 | AA34: 674.2867265 | AB34: 691.9977052 | AC34: 730.5256957 | AD34: 775.7127408 | AE34: 867.0840037 | AF34: 920.1250498 | AG34: 998.5338479 | AH34: 1083.08988 | AI34: 1219.448319 | AJ34: 1249.004619 | AK34: 1194.460879 | AL34: 1257.179877 | AM34: 1334.646773
A35: WB | B35: GDP per capita (constant 2000 US$) | C35: NY.GDP.PCAP.KD | D35: Kenya | E35: KEN | F35: Upper LIC | G35: 32 | H35: 435.5557894 | I35: 435.0780555 | J35: 425.0937584 | K35: 414.5926945 | L35: 406.2731223 | M35: 408.2825798 | N35: 421.8652297 | O35: 431.1219088 | P35: 441.979377 | Q35: 446.9613736 | R35: 450.1718213 | S35: 441.7092364 | T35: 424.1409301 | U35: 412.3969705 | V35: 410.6019064 | W35: 416.4573819 | X35: 421.9441966 | Y35: 412.9163069 | Z35: 415.7071678 | AA35: 414.6000627 | AB35: 406.5230596 | AC35: 411.0713321 | AD35: 402.6288259 | AE35: 403.6788859 | AF35: 413.3182833 | AG35: 426.5174886 | AH35: 442.0213127 | AI35: 461.0193747 | AJ35: 456.2504868 | AK35: 456.7715432 | AL35: 470.5770914 | AM35: 478.2194906
A36: WB | B36: GDP per capita (constant 2000 US$) | C36: NY.GDP.PCAP.KD | D36: Kyrgyz Republic | E36: KGZ | F36: Upper LIC | G36: 26 | N36: 398.0584447 | O36: 403.4457874 | P36: 448.7108714 | Q36: 451.6883377 | R36: 468.3466561 | S36: 424.5762424 | T36: 361.4138827 | U36: 305.4537963 | V36: 244.189418 | W36: 228.6509637 | X36: 241.2524383 | Y36: 261.333537 | Z36: 262.8158265 | AA36: 268.4053375 | AB36: 279.620275 | AC36: 291.7193318 | AD36: 289.0037341 | AE36: 306.0954277 | AF36: 323.6638562 | AG36: 319.4720621 | AH36: 325.8628655 | AI36: 350.3441065 | AJ36: 376.1870312 | AK36: 382.4003295 | AL36: 376.0840211 | AM36: 393.6648796
A37: WB | B37: GDP per capita (constant 2000 US$) | C37: NY.GDP.PCAP.KD | D37: Lao PDR | E37: LAO | F37: Upper LIC | G37: 28 | L37: 206.459758 | M37: 211.1536744 | N37: 215.515102 | O37: 206.6497011 | P37: 196.9198753 | Q37: 218.6268144 | R37: 226.7940561 | S37: 229.959857 | T37: 236.0549501 | U37: 243.2833933 | V37: 256.3399895 | W37: 267.6619733 | X37: 279.6257584 | Y37: 292.3715439 | Z37: 297.7823269 | AA37: 313.4144671 | AB37: 325.5930951 | AC37: 338.4722045 | AD37: 352.7798199 | AE37: 368.4631248 | AF37: 386.0090906 | AG37: 407.2442907 | AH37: 435.6645778 | AI37: 461.6632892 | AJ37: 490.2975328 | AK37: 519.3051858 | AL37: 555.5194618 | AM37: 591.8581836
A38: WB | B38: GDP per capita (constant 2000 US$) | C38: NY.GDP.PCAP.KD | D38: Liberia | E38: LBR | F38: Upper LIC | G38: 32 | H38: 682.4003209 | I38: 645.5258338 | J38: 608.244717 | K38: 577.91413 | L38: 551.974036 | M38: 539.3901312 | N38: 527.9864537 | O38: 524.7438983 | P38: 519.3949633 | Q38: 386.2721767 | R38: 192.0145425 | S38: 167.5149286 | T38: 110.7091446 | U38: 75.06432943 | V38: 58.4599316 | W38: 54.50519236 | X38: 58.08325438 | Y38: 111.8601987 | Z38: 134.7861016 | AA38: 155.2565309 | AB38: 185.8134039 | AC38: 219.7689494 | AD38: 284.3651077 | AE38: 188.4030778 | AF38: 175.5789124 | AG38: 186.8010756 | AH38: 196.9509939 | AI38: 217.1365282 | AJ38: 228.1123148 | AK38: 247.4982622 | AL38: 263.7055952 | AM38: 279.2204061
A39: WB | B39: GDP per capita (constant 2000 US$) | C39: NY.GDP.PCAP.KD | D39: Malawi | E39: MWI | F39: Upper LIC | G39: 32 | H39: 160.2232084 | I39: 147.7407881 | J39: 147.7910253 | K39: 149.332191 | L39: 152.2302026 | M39: 152.5990162 | N39: 144.4648578 | O39: 138.3718826 | P39: 134.6783539 | Q39: 129.9353945 | R39: 132.5055352 | S39: 141.0247834 | T39: 129.360236 | U39: 141.3153563 | V39: 126.188337 | W39: 145.6410746 | X39: 153.3909449 | Y39: 155.3738924 | Z39: 156.9657643 | AA39: 157.1518033 | AB39: 155.2715445 | AC39: 143.700152 | AD39: 142.3914479 | AE39: 146.3657361 | AF39: 149.4329748 | AG39: 149.4843299 | AH39: 148.2569961 | AI39: 157.6213676 | AJ39: 165.6965065 | AK39: 175.1996212 | AL39: 180.9022956 | AM39: 182.8754793
A40: WB | B40: GDP per capita (constant 2000 US$) | C40: NY.GDP.PCAP.KD | D40: Mozambique | E40: MOZ | F40: Upper LIC | G40: 32 | H40: 205.6482275 | I40: 210.7909593 | J40: 191.7825112 | K40: 158.4159095 | L40: 145.8038607 | M40: 145.7631775 | N40: 141.8846184 | O40: 162.9755444 | P40: 176.7227754 | Q40: 187.6205331 | R40: 187.1330859 | S40: 191.767894 | T40: 176.2498726 | U40: 184.5882357 | V40: 189.9810977 | W40: 188.6945952 | X40: 196.7381034 | Y40: 211.0999601 | Z40: 228.0044171 | AA40: 240.3911744 | AB40: 236.8096398 | AC40: 258.0293358 | AD40: 273.3425312 | AE40: 282.1518251 | AF40: 298.9347885 | AG40: 316.6688911 | AH40: 328.448314 | AI40: 343.9591856 | AJ40: 358.8686653 | AK40: 372.8280021 | AL40: 389.1213962 | AM40: 407.3630268
A41: WB | B41: GDP per capita (constant 2000 US$) | C41: NY.GDP.PCAP.KD | D41: Rwanda | E41: RWA | F41: Upper LIC | G41: 32 | H41: 263.6974325 | I41: 269.4882128 | J41: 266.4200982 | K41: 274.0605567 | L41: 253.9171006 | M41: 255.4341924 | N41: 257.7422032 | O41: 245.480292 | P41: 245.9279731 | Q41: 240.1355771 | R41: 234.8794625 | S41: 236.9162772 | T41: 267.0978606 | U41: 264.643566 | V41: 139.5009777 | W41: 191.2838223 | X41: 206.9830518 | Y41: 217.168742 | Z41: 214.4013989 | AA41: 211.226038 | AB41: 214.2336989 | AC41: 222.9332294 | AD41: 246.0861869 | AE41: 245.1063996 | AF41: 257.7160008 | AG41: 275.1117623 | AH41: 291.0580268 | AI41: 304.5930038 | AJ41: 328.6537842 | AK41: 338.7726933 | AL41: 352.5356203 | AM41: 370.5928566
A42: WB | B42: GDP per capita (constant 2000 US$) | C42: NY.GDP.PCAP.KD | D42: Sierra Leone | E42: SLE | F42: Upper LIC | G42: 32 | H42: 238.3344701 | I42: 239.9473154 | J42: 246.1044215 | K42: 235.7251943 | L42: 239.7276175 | M42: 221.3780278 | N42: 218.0182509 | O42: 227.0944393 | P42: 205.3722506 | Q42: 202.5622169 | R42: 206.7322264 | S42: 210.8677034 | T42: 171.4509436 | U42: 175.2484311 | V42: 173.2300398 | W42: 160.0549125 | X42: 162.8697607 | Y42: 152.6904841 | Z42: 153.8427292 | AA42: 148.006779 | AB42: 153.4772755 | AC42: 137.195898 | AD42: 165.4813663 | AE42: 172.4161525 | AF42: 175.2514987 | AG42: 175.7020686 | AH42: 177.2192871 | AI42: 186.0930247 | AJ42: 191.4929038 | AK42: 193.2422656 | AL42: 199.0400655 | AM42: 206.4366256
A43: WB | B43: GDP per capita (constant 2000 US$) | C43: NY.GDP.PCAP.KD | D43: Sri Lanka | E43: LKA | F43: Upper LIC | G43: 32 | H43: 441.7877954 | I43: 463.8223878 | J43: 471.9380453 | K43: 487.5662179 | L43: 506.3194359 | M43: 523.6118949 | N43: 536.7616457 | O43: 537.8201946 | P43: 543.6152007 | Q43: 548.6445742 | R43: 577.2392264 | S43: 594.9802981 | T43: 615.4917881 | U43: 649.7576523 | V43: 676.747999 | W43: 704.3240993 | X43: 723.114065 | Y43: 759.818766 | Z43: 786.3702892 | AA43: 808.4815709 | AB43: 854.9267252 | AC43: 855.3725803 | AD43: 883.4571769 | AE43: 923.6354395 | AF43: 960.7985946 | AG43: 1009.908869 | AH43: 1075.625538 | AI43: 1138.366839 | AJ43: 1195.481085 | AK43: 1223.68571 | AL43: 1308.784019 | AM43: 1402.121673
A44: WB | B44: GDP per capita (constant 2000 US$) | C44: NY.GDP.PCAP.KD | D44: Tajikistan | E44: TJK | F44: Upper LIC | G44: 27 | M44: 457.0733197 | N44: 458.3503941 | O44: 438.4955642 | P44: 484.0079225 | Q44: 439.6576947 | R44: 426.070505 | S44: 387.3729939 | T44: 270.039666 | U44: 222.1743518 | V44: 172.2731337 | W44: 148.727869 | X44: 122.0948533 | Y44: 122.3983598 | Z44: 127.1215414 | AA44: 130.1709919 | AB44: 139.4098818 | AC44: 152.1561491 | AD44: 164.5968153 | AE44: 179.9282729 | AF44: 197.3069385 | AG44: 215.8970674 | AH44: 180.0892749 | AI44: 216.5445832 | AJ44: 259.1376482 | AK44: 265.5934156 | AL44: 278.9403281 | AM44: 295.3601307
A45: WB | B45: GDP per capita (constant 2000 US$) | C45: NY.GDP.PCAP.KD | D45: Tanzania | E45: TZA | F45: Upper LIC | G45: 24 | P45: 291.9973231 | Q45: 293.7799295 | R45: 304.6405527 | S45: 300.9049057 | T45: 292.6904286 | U45: 286.5394947 | V45: 281.9188719 | W45: 283.4259214 | X45: 288.2452075 | Y45: 290.7819777 | Z45: 294.1719742 | AA45: 300.9189198 | AB45: 307.9861546 | AC45: 318.2627899 | AD45: 332.3711192 | AE45: 346.0724304 | AF45: 363.3474703 | AG45: 379.684133 | AH45: 394.224159 | AI45: 410.6836189 | AJ45: 428.7591559 | AK45: 441.5066096 | AL45: 458.7864636 | AM45: 473.8812364
A46: WB | B46: GDP per capita (constant 2000 US$) | C46: NY.GDP.PCAP.KD | D46: Togo | E46: TGO | F46: Upper LIC | G46: 32 | H46: 352.041067 | I46: 329.9493808 | J46: 307.4939782 | K46: 280.6913417 | L46: 285.9872459 | M46: 291.7679809 | N46: 286.8223185 | O46: 279.2499462 | P46: 288.9399264 | Q46: 292.4124014 | R46: 284.4284097 | S46: 276.2396666 | T46: 260.0503342 | U46: 216.5494299 | V46: 243.6614205 | W46: 256.1737988 | X46: 270.6453677 | Y46: 299.5493397 | Z46: 282.8515266 | AA46: 280.4858181 | AB46: 270.0008761 | AC46: 258.4568888 | AD46: 249.7475313 | AE46: 256.0710824 | AF46: 255.6614294 | AG46: 252.9503503 | AH46: 257.4007154 | AI46: 257.57179 | AJ46: 258.0385955 | AK46: 261.0540398 | AL46: 265.9220492 | AM46: 273.1075134
A47: WB | B47: GDP per capita (constant 2000 US$) | C47: NY.GDP.PCAP.KD | D47: Uganda | E47: UGA | F47: Upper LIC | G47: 30 | J47: 187.8027457 | K47: 192.5971662 | L47: 185.9159382 | M47: 173.865795 | N47: 168.5473209 | O47: 169.0123496 | P47: 176.4210675 | Q47: 180.9898275 | R47: 186.0518733 | S47: 189.7910049 | T47: 189.8414888 | U47: 199.0647897 | V47: 205.1886352 | W47: 221.8284014 | X47: 234.7133909 | Y47: 239.4405149 | Z47: 243.8486185 | AA47: 255.7044438 | AB47: 255.7806112 | AC47: 260.7363255 | AD47: 274.6005446 | AE47: 283.0782984 | AF47: 292.6805093 | AG47: 301.2583026 | AH47: 323.0773993 | AI47: 339.0620829 | AJ47: 356.8351769 | AK47: 370.5361322 | AL47: 379.9914906 | AM47: 392.7088001
A48: WB | B48: GDP per capita (constant 2000 US$) | C48: NY.GDP.PCAP.KD | D48: Uzbekistan | E48: UZB | F48: Upper LIC | G48: 25 | O48: 643.355716 | P48: 685.4397731 | Q48: 689.9547386 | R48: 684.7222036 | S48: 666.97965 | T48: 578.5541131 | U48: 552.5472066 | V48: 513.632001 | W48: 499.8947288 | X48: 498.761383 | Y48: 514.8978427 | Z48: 528.4640553 | AA48: 545.2774927 | AB48: 558.221144 | AC48: 574.3502834 | AD48: 590.058588 | AE48: 607.7253728 | AF48: 647.0119854 | AG48: 684.2969072 | AH48: 725.3469456 | AI48: 783.0274969 | AJ48: 839.9109699 | AK48: 892.7489089 | AL48: 941.6718455 | AM48: 992.7613654
A49: WB | B49: GDP per capita (constant 2000 US$) | C49: NY.GDP.PCAP.KD | D49: Zimbabwe | E49: ZWE | F49: Upper LIC | G49: 32 | H49: 501.2555977 | I49: 543.0334085 | J49: 535.8794833 | K49: 523.1450476 | L49: 493.3648308 | M49: 507.833108 | N49: 499.6531516 | O49: 487.6665756 | P49: 506.9892685 | Q49: 516.728512 | R49: 536.9977134 | S49: 551.9922021 | T49: 490.4775035 | U49: 485.1061674 | V49: 519.4969303 | W49: 510.7519156 | X49: 553.8762918 | Y49: 559.537089 | Z49: 567.4543121 | AA49: 556.3033687 | AB49: 534.7911515 | AC49: 539.662758 | AD49: 490.3868614 | AE49: 406.8785624 | AF49: 383.7076653 | AG49: 362.5763768 | AH49: 351.1720467 | AI49: 339.6548829 | AJ49: 280.3085028 | AK49: 296.5486099 | AL49: 322.5569276 | AM49: 347.7456605

Sheet GDP per capita (current$)
A1: GDP per capita (current US$)
A3: Source | B3: Indicator Name | C3: Indicator Code | D3: Country Name | E3: Country Code | F3: Comparator group | G3: # years data available | H3: 1980 | I3: 1981 | J3: 1982 | K3: 1983 | L3: 1984 | M3: 1985 | N3: 1986 | O3: 1987 | P3: 1988 | Q3: 1989 | R3: 1990 | S3: 1991 | T3: 1992 | U3: 1993 | V3: 1994 | W3: 1995 | X3: 1996 | Y3: 1997 | Z3: 1998 | AA3: 1999 | AB3: 2000 | AC3: 2001 | AD3: 2002 | AE3: 2003 | AF3: 2004 | AG3: 2005 | AH3: 2006 | AI3: 2007 | AJ3: 2008 | AK3: 2009 | AL3: 2010 | AM3: 2011 | AN3: 2012
F4: Averages:
F5: Comparable LMIC | H5: =AVERAGEIF($F$10:$F$1475,$F5,H$10:H$1475) -> 825.4204171 | I5: 821.560618 | J5: 749.1978737 | K5: 686.262303 | L5: 598.4326143 | M5: 507.5691128 | N5: 564.9237798 | O5: 630.9897506 | P5: 620.0100803 | Q5: 566.6152537 | R5: =AVERAGEIF($F$10:$F$1475,$F5,R$10:R$1475) -> 587.2528178 | S5: 593.9553644 | T5: 611.3375173 | U5: 595.11115 | V5: 544.8332498 | W5: 628.6814093 | X5: 662.2494634 | Y5: 671.1084137 | Z5: 645.9047947 | AA5: 628.634649 | AB5: =AVERAGEIF($F$10:$F$1475,$F5,AB$10:AB$1475) -> 641.1704679 | AC5: 637.7210505 | AD5: 629.9548439 | AE5: 704.0386442 | AF5: 809.8479628 | AG5: 898.8072469 | AH5: 1044.639786 | AI5: 1218.812038 | AJ5: 1453.678734 | AK5: 1344.168327 | AL5: 1546.414326 | AM5: 1754.111956
F6: Aspirational MIC | H6: 1406.537643 | I6: 1427.918637 | J6: 1380.816208 | K6: 1362.090684 | L6: 1344.119566 | M6: 1183.69399 | N6: 1264.530342 | O6: 1485.221717 | P6: 1661.811306 | Q6: 1844.177022 | R6: 1940.086386 | S6: 1979.47737 | T6: 2109.701956 | U6: 2197.207022 | V6: 2466.498016 | W6: 2808.422133 | X6: 2913.089823 | Y6: 2869.157961 | Z6: 2432.55479 | AA6: 2336.904284 | AB6: 2456.645484 | AC6: 2305.551399 | AD6: 2303.708288 | AE6: 2809.373959 | AF6: 3364.313807 | AG6: 3758.552579 | AH6: 4225.185265 | AI6: 4867.400658 | AJ6: 5388.589249 | AK6: 5124.997591 | AL6: 6404.28364 | AM6: 7308.610724
F7: Upper LIC | H7: 334.3112289 | I7: 322.9778879 | J7: 320.8622673 | K7: 294.8228083 | L7: 300.2989296 | M7: 330.3875035 | N7: 332.3644258 | O7: 340.6171683 | P7: 347.2940669 | Q7: 337.9417474 | R7: 433.1378404 | S7: 422.5726029 | T7: 335.2897398 | U7: 305.9632683 | V7: 278.4311827 | W7: 312.3743378 | X7: 347.9737686 | Y7: 347.4360042 | Z7: 327.1184203 | AA7: 315.9367146 | AB7: 313.482302 | AC7: 317.0213492 | AD7: 332.4597628 | AE7: 376.2826602 | AF7: 442.2651173 | AG7: 521.5224772 | AH7: 604.2610967 | AI7: 735.3439995 | AJ7: 896.0869023 | AK7: 850.3490977 | AL7: 940.7253929 | AM7: 1100.214499
A9: WB | B9: GDP per capita (current US$) | C9: NY.GDP.PCAP.CD | D9: Ghana | E9: GHA | F9: (Ghana) | G9: =COUNT(H9:AN9) -> 32 | H9: 406.9712411 | I9: 375.461433 | J9: 347.1905094 | K9: 336.9924097 | L9: 354.0508032 | M9: 349.9343024 | N9: 431.8830776 | O9: 372.090237 | P9: 370.9841654 | Q9: 364.8928937 | R9: 398.0944156 | S9: 433.9559398 | T9: 409.8200233 | U9: 370.6128303 | V9: 328.9892974 | W9: 380.3275465 | X9: 397.7796488 | Y9: 385.961207 | Z9: 409.2788213 | AA9: 412.387497 | AB9: 259.9906944 | AC9: 270.7212685 | AD9: 306.5569516 | AE9: 370.3245269 | AF9: 420.5235215 | AG9: 495.9325024 | AH9: 920.6019752 | AI9: 1090.049444 | AJ9: 1226.265053 | AK9: 1090.417181 | AL9: 1319.083027 | AM9: 1570.133179
A10: WB | B10: GDP per capita (current US$) | C10: NY.GDP.PCAP.CD | D10: Botswana | E10: BWA | F10: Aspirational MIC | G10: 32 | H10: 1064.924705 | I10: 1039.620331 | J10: 948.8073471 | K10: 1059.114978 | L10: 1084.215582 | M10: 942.4929918 | N10: 1139.804746 | O10: 1558.176775 | P10: 2032.481276 | Q10: 2298.718165 | R10: 2742.12687 | S10: 2769.710905 | T10: 2830.498092 | U10: 2762.328137 | V10: 2806.550542 | W10: 3010.382919 | X10: 2956.106644 | Y10: 3119.480756 | Z10: 3061.294378 | AA10: 3394.592302 | AB10: 3204.115483 | AC10: 3381.286092 | AD10: 3368.999015 | AE10: 4418.722666 | AF10: 5425.145749 | AG10: 5467.659104 | AH10: 5921.247876 | AI10: 6422.185056 | AJ10: 6877.041097 | AK10: 5822.096565 | AL10: 7426.628358 | AM10: 8532.617222
A11: WB | B11: GDP per capita (current US$) | C11: NY.GDP.PCAP.CD | D11: Brazil | E11: BRA | F11: Aspirational MIC | G11: 32 | H11: 1930.991698 | I11: 2115.453937 | J11: 2209.018755 | K11: 1558.378338 | L11: 1567.129404 | M11: 1636.316224 | N11: 1928.358897 | O11: 2074.062799 | P11: 2286.955907 | Q11: 2893.460725 | R11: 3086.87702 | S11: 2677.266955 | T11: 2526.596184 | U11: 2791.968684 | V11: 3854.882386 | W11: 4751.065989 | X11: 5109.344789 | Y11: 5220.858672 | Z11: 4980.985731 | AA11: 3413.256767 | AB11: 3696.146772 | AC11: 3129.755456 | AD11: 2812.334223 | AE11: 3041.677796 | AF11: 3609.877366 | AG11: 4743.266321 | AH11: 5793.398512 | AI11: 7197.028601 | AJ11: 8628.952841 | AK11: 8391.668592 | AL11: 10992.94249 | AM11: 12593.89293
A12: WB | B12: GDP per capita (current US$) | C12: NY.GDP.PCAP.CD | D12: China | E12: CHN | F12: Aspirational MIC | G12: 32 | H12: 193.0220513 | I12: 195.3054051 | J12: 201.4447468 | K12: 223.251945 | L12: 248.2889082 | M12: 291.7744907 | N12: 279.1851067 | O12: 249.4127911 | P12: 280.9678615 | Q12: 307.4899926 | R12: 314.4306005 | S12: 329.7490887 | T12: 362.808414 | U12: 373.8000229 | V12: 469.2131942 | W12: 604.2280606 | X12: 703.1207994 | Y12: 774.467161 | Z12: 820.8630768 | AA12: 864.7303144 | AB12: 949.1780621 | AC12: 1041.637704 | AD12: 1135.44795 | AE12: 1273.640743 | AF12: 1490.380056 | AG12: 1731.125235 | AH12: 2069.343631 | AI12: 2651.260121 | AJ12: 3413.588661 | AK12: 3749.272424 | AL12: 4433.36122 | AM12: 5444.785303
A13: WB | B13: GDP per capita (current US$) | C13: NY.GDP.PCAP.CD | D13: Indonesia | E13: IDN | F13: Aspirational MIC | G13: 32 | H13: 517.2601994 | I13: 599.407692 | J13: 600.380961 | K13: 529.4355778 | L13: 531.9293186 | M13: 519.5056225 | N13: 466.9012814 | O13: 434.4610427 | P13: 498.7878177 | Q13: 559.9138265 | R13: 620.7161311 | S13: 683.7384322 | T13: 730.2214455 | U13: 816.464647 | V13: 900.2674297 | W13: 1013.699545 | X13: 1124.16197 | Y13: 1052.107705 | Z13: 459.2276532 | AA13: 664.7397402 | AB13: 773.3109699 | AC13: 742.1107816 | AD13: 893.3199025 | AE13: 1058.299984 | AF13: 1143.496951 | AG13: 1257.653396 | AH13: 1585.650791 | AI13: 1859.302639 | AJ13: 2171.7048 | AK13: 2272.733849 | AL13: 2951.699149 | AM13: 3494.604574
A14: WB | B14: GDP per capita (current US$) | C14: NY.GDP.PCAP.CD | D14: Malaysia | E14: MYS | F14: Aspirational MIC | G14: 32 | H14: 1802.775353 | I14: 1795.860579 | J14: 1876.418017 | K14: 2055.708074 | L14: 2254.499818 | M14: 2015.640074 | N14: 1741.233585 | O14: 1926.846306 | P14: 2050.682826 | Q14: 2194.234352 | R14: 2417.773478 | S14: 2626.38687 | T14: 3080.140644 | U14: 3395.439686 | V14: 3686.175306 | W14: 4287.112932 | X14: 4746.613672 | Y14: 4598.804142 | Z14: 3233.306235 | AA14: 3461.145201 | AB14: 4005.556325 | AC14: 3871.705184 | AD14: 4113.571186 | AE14: 4397.508351 | AF14: 4874.84429 | AG14: 5499.293592 | AH14: 6119.44366 | AI14: 7155.015794 | AJ14: 8398.936503 | AK14: 7236.352297 | AL14: 8690.570239 | AM14: 9977.318518
A15: WB | B15: GDP per capita (current US$) | C15: NY.GDP.PCAP.CD | D15: Namibia | E15: NAM | F15: Aspirational MIC | G15: 32 | H15: 2141.168817 | I15: 1885.514953 | J15: 1705.824242 | K15: 1782.292702 | L15: 1460.84981 | M15: 1178.278657 | N15: 1277.747445 | O15: 1550.726219 | P15: 1632.253525 | Q15: 1594.416571 | R15: 1661.194398 | S15: 1700.989018 | T15: 1876.098289 | U15: 1827.030705 | V15: 2027.567626 | W15: 2121.345763 | X15: 2052.621989 | Y15: 2075.05451 | Z15: 1885.467281 | AA15: 1829.007934 | AB15: 2061.671969 | AC15: 1831.644746 | AD15: 1703.267627 | AE15: 2455.40536 | AF15: 3233.418852 | AG15: 3491.092551 | AH15: 3765.919417 | AI15: 4081.368258 | AJ15: 4012.833504 | AK15: 3951.335795 | AL15: 4853.65759 | AM15: 5383.261492
A16: WB | B16: GDP per capita (current US$) | C16: NY.GDP.PCAP.CD | D16: South Africa | E16: ZAF | F16: Aspirational MIC | G16: 32 | H16: 2920.782714 | I16: 3073.12242 | J16: 2764.289433 | K16: 2893.725145 | L16: 2792.00791 | M16: 2142.151823 | N16: 2475.044545 | O16: 3158.590603 | P16: 3398.641375 | Q16: 3621.522919 | R16: 3182.214046 | S16: 3345.809473 | T16: 3557.111038 | U16: 3479.924054 | V16: 3546.668992 | W16: 3862.808993 | X16: 3593.2776 | Y16: 3636.171059 | Z16: 3205.168759 | AA16: 3102.813833 | AB16: 3019.946367 | AC16: 2638.15805 | AD16: 2439.991778 | AE16: 3647.70412 | AF16: 4695.039363 | AG16: 5234.313052 | AH16: 5468.298059 | AI16: 5930.12741 | AJ16: 5612.894661 | AK16: 5738.271609 | AL16: 7271.729185 | AM16: 8070.03209
A17: WB | B17: GDP per capita (current US$) | C17: NY.GDP.PCAP.CD | D17: Thailand | E17: THA | F17: Aspirational MIC | G17: 32 | H17: 681.3756029 | I17: 719.0637786 | J17: 740.3461636 | K17: 794.8187141 | L17: 814.0357815 | M17: 743.3920354 | N17: 807.9671315 | O17: 929.4972003 | P17: 1113.719859 | Q17: 1283.659622 | R17: 1495.35854 | S17: 1702.168217 | T17: 1914.141538 | U17: 2130.700241 | V17: 2440.658649 | W17: 2816.73286 | X17: 3019.471119 | Y17: 2476.319684 | Z17: 1814.125204 | AA17: 1964.948181 | AB17: 1943.237928 | AC17: 1808.113178 | AD17: 1962.734621 | AE17: 2182.032654 | AF17: 2442.307829 | AG17: 2644.017382 | AH17: 3078.180176 | AI17: 3642.917388 | AJ17: 3992.761925 | AK17: 3838.249594 | AL17: 4613.68089 | AM17: 4972.373665
A18: WB | B18: GDP per capita (current US$) | C18: NY.GDP.PCAP.CD | D18: Cote d'Ivoire | E18: CIV | F18: Comparable LMIC | G18: 32 | H18: 1196.992771 | I18: 948.986748 | J18: 815.2814776 | K18: 706.0974037 | L18: 678.0629855 | M18: 664.8657142 | N18: 840.4989003 | O18: 893.12449 | P18: 876.9361165 | Q18: 806.3481922 | R18: 862.4447551 | S18: 810.4994475 | T18: 833.4433423 | U18: 799.2458206 | V18: 583.2457914 | W18: 749.4717159 | X18: 804.4602394 | Y18: 756.6561717 | Z18: 805.0210013 | AA18: 773.0433624 | AB18: 628.2281148 | AC18: 624.2449496 | AD18: 668.5815108 | AE18: 787.0001751 | AF18: 873.0674649 | AG18: 908.0232051 | AH18: 947.6876055 | AI18: 1061.616689 | AJ18: 1233.172418 | AK18: 1190.7805 | AL18: 1161.26314 | AM18: 1194.558599
A19: WB | B19: GDP per capita (current US$) | C19: NY.GDP.PCAP.CD | D19: Honduras | E19: HND | F19: Comparable LMIC | G19: 32 | H19: 707.3469341 | I19: 753.4877705 | J19: 752.4572535 | K19: 773.4887101 | L19: 809.4288832 | M19: 861.2427585 | N19: 874.6636976 | O19: 925.8328132 | P19: 859.7175759 | Q19: 749.7089421 | R19: 623.5840144 | S19: 610.4153363 | T19: 661.9987259 | U19: 656.5089322 | V19: 630.8677664 | W19: 701.5217452 | X19: 706.9066743 | Y19: 799.0932077 | Z19: 872.4146701 | AA19: 882.1673035 | AB19: 1142.709658 | AC19: 1192.087164 | AD19: 1200.526133 | AE19: 1245.805541 | AF19: 1315.578089 | AG19: 1412.138442 | AH19: 1549.965852 | AI19: 1720.353176 | AJ19: 1894.629517 | AK19: 1895.785045 | AL19: 2018.750027 | AM19: 2247.231181
A20: WB | B20: GDP per capita (current US$) | C20: NY.GDP.PCAP.CD | D20: India | E20: IND | F20: Comparable LMIC | G20: 32 | H20: 270.826077 | I20: 274.7875968 | J20: 278.5703794 | K20: 296.1071363 | L20: 281.4040702 | M20: 301.5829992 | N20: 315.8803995 | O20: 346.3368608 | P20: 360.2615116 | Q20: 352.0289103 | R20: 373.7851376 | S20: 308.1502536 | T20: 322.243454 | U20: 306.1686498 | V20: 351.8848828 | W20: 380.0984013 | X20: 406.8857207 | Y20: 422.9243667 | Z20: 420.9653204 | AA20: 448.0969889 | AB20: 450.4151061 | AC20: 459.5766355 | AD20: 480.2069446 | AE20: 558.4416044 | AF20: 642.556503 | AG20: 731.740043 | AH20: 820.29832 | AI20: 1055.136398 | AJ20: 1027.905274 | AK20: 1130.518054 | AL20: 1397.100108 | AM20: 1508.539973
A21: WB | B21: GDP per capita (current US$) | C21: NY.GDP.PCAP.CD | D21: Nigeria | E21: NGA | F21: Comparable LMIC | G21: 32 | H21: 849.8664116 | I21: 772.1046317 | J21: 624.9828014 | K21: 428.1279261 | L21: 336.7428863 | M21: 330.9840249 | N21: 229.5181171 | O21: 259.4103322 | P21: 246.3863434 | Q21: 250.6321086 | R21: 291.8695097 | S21: 273.1713945 | T21: 319.2975892 | U21: 203.4922533 | V21: 220.2216 | W21: 255.5006659 | X21: 313.4406053 | Y21: 314.3035731 | Z21: 272.4436395 | AA21: 287.9182899 | AB21: 371.7680804 | AC21: 378.8309275 | AD21: 455.3320038 | AE21: 508.4340277 | AF21: 644.0305419 | AG21: 802.7867467 | AH21: 1014.575471 | AI21: 1129.085103 | AJ21: 1374.672235 | AK21: 1091.263976 | AL21: 1443.209591 | AM21: 1501.721583
A22: WB | B22: GDP per capita (current US$) | C22: NY.GDP.PCAP.CD | D22: Paraguay | E22: PRY | F22: Comparable LMIC | G22: 32 | H22: 1433.213776 | I22: 1758.476094 | J22: 1601.059329 | K22: 1606.658658 | L22: 1222.748744 | M22: 855.1926058 | N22: 931.2753073 | O22: 953.6653257 | P22: 982.0324685 | Q22: 1055.554551 | R22: 1240.520627 | S22: 1435.075247 | T22: 1443.634602 | U22: 1502.647073 | V22: 1481.369239 | W22: 1682.001599 | X22: 1782.69957 | Y22: 1769.235271 | Z22: 1544.702638 | AA22: 1393.308153 | AB22: 1323.481934 | AC22: 1181.829951 | AD22: 915.0101592 | AE22: 978.2063679 | AF22: 1200.87541 | AG22: 1267.109828 | AH22: 1543.783231 | AI22: 1997.234545 | AJ22: 2710.566438 | AK22: 2254.241306 | AL22: 2840.349596 | AM22: 3629.067797
A23: WB | B23: GDP per capita (current US$) | C23: NY.GDP.PCAP.CD | D23: Senegal | E23: SEN | F23: Comparable LMIC | G23: 32 | H23: 647.0701048 | I23: 571.4234734 | J23: 544.1724648 | K23: 471.8792598 | L23: 447.0510502 | M23: 475.2908123 | N23: 652.5933934 | O23: 761.9087038 | P23: 731.122174 | Q23: 699.1378105 | R23: 789.4202717 | S23: 752.8225448 | T23: 781.1877174 | U23: 717.4694899 | V23: 476.130454 | W23: 582.9425275 | X23: 589.6080156 | Y23: 530.2015038 | Z23: 556.7393434 | AA23: 555.2045483 | AB23: 492.2862252 | AC23: 499.8136574 | AD23: 532.1519611 | AE23: 665.9521835 | AF23: 758.8827356 | AG23: 800.1370106 | AH23: 838.8497546 | AI23: 986.4995872 | AJ23: 1135.675478 | AK23: 1054.694249 | AL23: 1033.905319 | AM23: 1119.357288
A24: WB | B24: GDP per capita (current US$) | C24: NY.GDP.PCAP.CD | D24: Vietnam | E24: VNM | F24: Comparable LMIC | G24: 27 | M24: 239.4286952 | N24: 437.1295435 | O24: 593.6535736 | P24: 401.874911 | Q24: 97.15788506 | R24: 98.031869 | S24: 142.9658899 | T24: 144.1486586 | U24: 189.2605161 | V24: 229.9548051 | W24: 288.0202779 | X24: 337.0500628 | Y24: 361.2544883 | Z24: 360.600798 | AA24: 374.4764201 | AB24: 401.5478021 | AC24: 415.731158 | AD24: 440.7692865 | AE24: 491.5285145 | AF24: 557.8233999 | AG24: 642.2508667 | AH24: 731.1405878 | AI24: 843.2042904 | AJ24: 1070.154959 | AK24: 1129.67515 | AL24: 1224.246918 | AM24: 1407.105435
A25: WB | B25: GDP per capita (current US$) | C25: NY.GDP.PCAP.CD | D25: Zambia | E25: ZMB | F25: Comparable LMIC | G25: 32 | H25: 672.6268455 | I25: 671.6580114 | J25: 627.8614102 | K25: 521.4770272 | L25: 413.5896807 | M25: 331.965292 | N25: 237.8308794 | O25: 313.9859052 | P25: 501.7495412 | Q25: 522.3536294 | R25: 418.3663578 | S25: 418.5428016 | T25: 384.7460488 | U25: 386.0964652 | V25: 384.9914596 | W25: 389.8943414 | X25: 356.9448191 | Y25: 415.1987273 | Z25: 334.3509464 | AA25: 314.8621262 | AB25: 318.9268222 | AC25: 349.6539618 | AD25: 347.060752 | AE25: 396.9407398 | AF25: 485.9695583 | AG25: 626.2718328 | AH25: 910.8174626 | AI25: 957.3665162 | AJ25: 1182.653552 | AK25: 1006.388333 | AL25: 1252.489909 | AM25: 1425.313794
A26: WB | B26: GDP per capita (current US$) | C26: NY.GDP.PCAP.CD | D26: Angola | E26: AGO | F26: Upper LIC | G26: 27 | M26: 750.5632924 | N26: 681.7715303 | O26: 772.0672546 | P26: 813.8259686 | Q26: 923.4511519 | R26: 992.7568202 | S26: 1144.574971 | T26: 525.2605258 | U26: 464.8009366 | V26: 345.7030549 | W26: 416.3148338 | X26: 604.4015752 | Y26: 348.6075801 | Z26: 69.05117781 | AA26: 126.5704608 | AB26: 298.4058429 | AC26: 314.7109815 | AD26: 447.9390372 | AE26: 808.2775004 | AF26: 1187.808259 | AG26: 1856.958968 | AH26: 2573.990058 | AI26: 3526.119282 | AJ26: 4414.062512 | AK26: 3511.757817 | AL26: 4237.347642 | AM26: 5318.040368
A27: WB | B27: GDP per capita (current US$) | C27: NY.GDP.PCAP.CD | D27: Bangladesh | E27: BGD | F27: Upper LIC | G27: 32 | H27: 224.6793774 | I27: 238.4421272 | J27: 212.397434 | K27: 196.1563882 | L27: 218.974773 | M27: 234.2044658 | N27: 223.1492015 | O27: 244.0888662 | P27: 256.2278074 | Q27: 261.2467403 | R27: 286.2427691 | S27: 287.2580878 | T27: 287.672525 | U27: 294.4329053 | V27: 293.4899228 | W27: 322.9273746 | X27: 339.0849875 | Y27: 345.8254406 | Z27: 353.2898259 | AA27: 359.1882207 | AB27: 363.6399273 | AC27: 356.1180112 | AD27: 354.3039819 | AE27: 380.2787218 | AF27: 407.9878558 | AG27: 428.7534812 | AH27: 434.8408455 | AI27: 475.2496513 | AJ27: 546.846854 | AK27: 607.7649413 | AL27: 674.9316307 | AM27: 743.4141958
A28: WB | B28: GDP per capita (current US$) | C28: NY.GDP.PCAP.CD | D28: Benin | E28: BEN | F28: Upper LIC | G28: 32 | H28: 389.204123 | I28: 348.135167 | J28: 332.6345402 | K28: 279.5724079 | L28: 260.9774082 | M28: 252.5768928 | N28: 314.042806 | O28: 357.4111742 | P28: 360.5159858 | Q28: 324.6663991 | R28: 410.6241515 | S28: 402.5956218 | T28: 331.8723588 | U28: 429.9274971 | V28: 291.9811045 | W28: 383.9272703 | X28: 405.5517917 | Y28: 378.8020068 | Z28: 398.8966963 | AA28: 393.2225084 | AB28: 361.9501493 | AC28: 371.8411071 | AD28: 404.6790799 | AE28: 496.4747547 | AF28: 547.5639607 | AG28: 570.8874402 | AH28: 597.7213649 | AI28: 678.7336087 | AJ28: 793.8699991 | AK28: 765.5556848 | AL28: 741.0730348 | AM28: 801.6442812
A29: WB | B29: GDP per capita (current US$) | C29: NY.GDP.PCAP.CD | D29: Burkina Faso | E29: BFA | F29: Upper LIC | G29: 32 | H29: 267.4287785 | I29: 240.3530928 | J29: 231.6906487 | K29: 206.1181982 | L29: 183.3327242 | M29: 190.0284851 | N29: 242.8685999 | O29: 275.3392743 | P29: 296.0103358 | Q29: 288.1672429 | R29: 332.6149839 | S29: 327.2478218 | T29: 227.5551425 | U29: 230.4676709 | V29: 182.2215251 | W29: 222.5483786 | X29: 235.3084599 | Y29: 216.5770659 | Z29: 241.3616722 | AA29: 252.2373654 | AB29: 212.3764919 | AC29: 222.386154 | AD29: 246.2915971 | AE29: 313.9606614 | AF29: 350.8806125 | AG29: 384.7394647 | AH29: 399.712009 | AI29: 448.5603191 | AJ29: 538.2256866 | AK29: 522.2664054 | AL29: 559.198999 | AM29: 612.6740007
A30: WB | B30: GDP per capita (current US$) | C30: NY.GDP.PCAP.CD | D30: Burundi | E30: BDI | F30: Upper LIC | G30: 32 | H30: 222.6942699 | I30: 227.6198492 | J30: 230.5103837 | K30: 238.4004781 | L30: 210.2513876 | M30: 237.0799483 | N30: 239.9515309 | O30: 219.0046913 | P30: 203.416886 | Q30: 203.7387939 | R30: 202.0988647 | S30: 203.9469532 | T30: 185.6083106 | U30: 158.197583 | V30: 153.7329344 | W30: 164.3616428 | X30: 141.5305116 | Y30: 157.3885577 | Z30: 143.6118988 | AA30: 128.5997279 | AB30: 131.0463341 | AC30: 126.5119287 | AD30: 117.1909879 | AE30: 111.0017381 | AF30: 127.6857731 | AG30: 154.0737912 | AH30: 165.5435912 | AI30: 171.1709116 | AJ30: 204.0306803 | AK30: 222.1533331 | AL30: 241.7868565 | AM30: 271.2449551
A31: WB | B31: GDP per capita (current US$) | C31: NY.GDP.PCAP.CD | D31: Cambodia | E31: KHM | F31: Upper LIC | G31: 19 | U31: 240.4089699 | V31: 256.9892733 | W31: 308.0968608 | X31: 306.0248868 | Y31: 293.5264208 | Z31: 260.3364074 | AA31: 287.722788 | AB31: 293.5684654 | AC31: 314.5181583 | AD31: 333.5114129 | AE31: 357.661682 | AF31: 404.5663964 | AG31: 471.1219389 | AH31: 538.2130032 | AI31: 631.986488 | AJ31: 748.9036877 | AK31: 744.1699611 | AL31: 795.166471 | AM31: 896.8456497
A32: WB | B32: GDP per capita (current US$) | C32: NY.GDP.PCAP.CD | D32: Chad | E32: TCD | F32: Upper LIC | G32: 32 | H32: 226.8296474 | I32: 188.3410035 | J32: 175.0979737 | K32: 170.4752483 | L32: 183.4083717 | M32: 200.5439188 | N32: 201.306487 | O32: 212.6840903 | P32: 262.6060892 | Q32: 246.0430251 | R32: 289.2265466 | S32: 302.8733229 | T32: 294.5976978 | U32: 222.2745863 | V32: 173.8675855 | W32: 206.6158303 | X32: 222.6523507 | Y32: 207.380271 | Z32: 226.8961955 | AA32: 193.1140027 | AB32: 168.4508791 | AC32: 200.6760994 | AD32: 225.0682233 | AE32: 298.9620318 | AF32: 465.9658114 | AG32: 541.7954205 | AH32: 604.815066 | AI32: 675.5345963 | AJ32: 784.772296 | AK32: 647.516961 | AL32: 760.7122667 | AM32: 918.0855481
A33: WB | B33: GDP per capita (current US$) | C33: NY.GDP.PCAP.CD | D33: Ethiopia | E33: ETH | F33: Upper LIC | G33: 31 | I33: 200.348106 | J33: 204.9611517 | K33: 220.8457642 | L33: 202.0402881 | M33: 229.048781 | N33: 230.4158302 | O33: 238.5067869 | P33: 239.2978826 | Q33: 243.6332143 | R33: 249.9847245 | S33: 267.2351079 | T33: 201.29719 | U33: 139.9381223 | V33: 131.6119106 | W33: 135.3879514 | X33: 143.5708522 | Y33: 142.3781327 | Z33: 125.5216408 | AA33: 115.8927678 | AB33: 123.6809168 | AC33: 119.5089967 | AD33: 112.5173128 | AE33: 120.6338039 | AF33: 138.3675767 | AG33: 165.4322388 | AH33: 199.1432698 | AI33: 246.8196042 | AJ33: 325.5720148 | AK33: 350.7562775 | AL33: 320.3786726 | AM33: 356.9672872
A34: WB | B34: GDP per capita (current US$) | C34: NY.GDP.PCAP.CD | D34: Georgia | E34: GEO | F34: Upper LIC | G34: 22 | R34: 1611.410842 | S34: 1310.472642 | T34: 757.3839392 | U34: 550.0153945 | V34: 517.087113 | W34: 569.0181411 | X34: 670.4611048 | Y34: 774.6802109 | Z34: 805.27269 | AA34: 628.865658 | AB34: 691.9977052 | AC34: 733.9704138 | AD34: 779.3845906 | AE34: 922.0297396 | AF34: 1186.873047 | AG34: 1470.042035 | AH34: 1764.870436 | AI34: 2317.988501 | AJ34: 2919.756655 | AK34: 2441.016658 | AL34: 2613.689508 | AM34: 3202.525118
A35: WB | B35: GDP per capita (current US$) | C35: NY.GDP.PCAP.CD | D35: Kenya | E35: KEN | F35: Upper LIC | G35: 32 | H35: 446.6137654 | I35: 405.5922183 | J35: 366.3159227 | K35: 327.8459369 | L35: 326.9324747 | M35: 312.1330149 | N35: 355.0732237 | O35: 377.1490566 | P35: 381.6283437 | Q35: 365.4511931 | R35: 365.6030388 | S35: 336.2810464 | T35: 327.8097796 | U35: 222.5369335 | V35: 268.2948197 | W35: 329.8480476 | X35: 427.2856719 | Y35: 453.1305622 | Z35: 474.6027834 | AA35: 423.3453262 | AB35: 406.5230596 | AC35: 404.8483733 | AD35: 399.2890931 | AE35: 440.8925103 | AF35: 463.8130367 | AG35: 526.1299587 | AH35: 615.860761 | AI35: 726.598937 | AJ35: 792.2288037 | AK35: 774.9283435 | AL35: 794.7672094 | AM35: 808.0005718
A36: WB | B36: GDP per capita (current US$) | C36: NY.GDP.PCAP.CD | D36: Kyrgyz Republic | E36: KGZ | F36: Upper LIC | G36: 22 | R36: 608.9451631 | S36: 575.9551334 | T36: 513.0359215 | U36: 449.0657902 | V36: 372.30781 | W36: 364.2264974 | X36: 394.8601215 | Y36: 376.4296133 | Z36: 345.1381316 | AA36: 258.04934 | AB36: 279.620275 | AC36: 308.4090314 | AD36: 321.726538 | AE36: 380.5073624 | AF36: 433.2351189 | AG36: 476.4800976 | AH36: 543.1107024 | AI36: 721.7686908 | AJ36: 966.3936272 | AK36: 871.2182975 | AL36: 880.0385141 | AM36: 1123.883136
A37: WB | B37: GDP per capita (current US$) | C37: NY.GDP.PCAP.CD | D37: Lao PDR | E37: LAO | F37: Upper LIC | G37: 28 | L37: 494.8765447 | M37: 648.8010473 | N37: 474.0109885 | O37: 282.1447676 | P37: 151.1492577 | Q37: 175.1932344 | R37: 206.4585836 | S37: 238.4056081 | T37: 254.3215955 | U37: 291.3508279 | V37: 329.9727771 | W37: 367.7779162 | X37: 381.7617728 | Y37: 348.2478656 | Z37: 249.9934771 | AA37: 278.5774618 | AB37: 325.5930951 | AC37: 326.9824058 | AD37: 319.8603986 | AE37: 362.4712035 | AF37: 417.5710523 | AG37: 475.4715872 | AH37: 591.0901785 | AI37: 711.9661815 | AJ37: 904.006845 | AK37: 954.3106111 | AL37: 1158.129965 | AM37: 1319.595406
A38: WB | B38: GDP per capita (current US$) | C38: NY.GDP.PCAP.CD | D38: Liberia | E38: LBR | F38: Upper LIC | G38: 32 | H38: 444.5750321 | I38: 425.6128021 | J38: 419.4903051 | K38: 387.20544 | L38: 389.3047148 | M38: 384.9390077 | N38: 378.5825809 | O38: 439.6458609 | P38: 474.1461784 | Q38: 364.1518592 | R38: 180.7156981 | S38: 166.3992962 | T38: 108.8025922 | U38: 78.99178121 | V38: 64.80639946 | W38: 64.35623948 | X38: 72.32931711 | Y38: 125.3542136 | Z38: 141.5282767 | AA38: 162.9679267 | AB38: 185.8134039 | AC38: 175.2120236 | AD38: 178.9003105 | AE38: 134.6541069 | AF38: 150.9997184 | AG38: 170.3042759 | AH38: 182.2726013 | AI38: 212.5275042 | AJ38: 232.5295343 | AK38: 301.1385846 | AL38: 323.6497223 | AM38: 374.3332222
A39: WB | B39: GDP per capita (current US$) | C39: NY.GDP.PCAP.CD | D39: Malawi | E39: MWI | F39: Upper LIC | G39: 32 | H39: 198.3465285 | I39: 193.1136666 | J39: 179.6916861 | K39: 181.4537707 | L39: 173.3829242 | M39: 155.6562975 | N39: 154.506009 | O39: 145.5489531 | P39: 160.1470984 | Q39: 175.6891105 | R39: 200.490976 | S39: 229.9254944 | T39: 185.8686144 | U39: 212.9940411 | V39: 120.9355384 | W39: 141.3947824 | X39: 226.5046736 | Y39: 258.0876752 | Z39: 164.9573101 | AA39: 162.5963149 | AB39: 155.2715445 | AC39: 148.881247 | AD39: 225.2291025 | AE39: 199.6432809 | AF39: 210.4682477 | AG39: 214.8549179 | AH39: 236.2040126 | AI39: 268.4309936 | AJ39: 305.3720247 | AK39: 348.3270267 | AL39: 362.3028381 | AM39: 365.4535862
A40: WB | B40: GDP per capita (current US$) | C40: NY.GDP.PCAP.CD | D40: Mozambique | E40: MOZ | F40: Upper LIC | G40: 32 | H40: 290.334722 | I40: 283.8970187 | J40: 283.9525982 | K40: 249.1943495 | L40: 255.5273906 | M40: 334.3265636 | N40: 391.7573299 | O40: 176.1188707 | P40: 156.9705648 | Q40: 172.9770035 | R40: 185.4355512 | S40: 198.231169 | T40: 137.5107198 | U40: 136.4999315 | V40: 140.3542065 | W40: 141.0109617 | X40: 197.5105424 | Y40: 225.9481959 | Z40: 250.0343307 | AA40: 255.7668594 | AB40: 236.8096398 | AC40: 218.0166417 | AD40: 218.8191818 | AE40: 236.6104693 | AF40: 281.4338867 | AG40: 316.7314017 | AH40: 333.2829282 | AI40: 368.4157356 | AJ40: 442.8893428 | AK40: 423.2119267 | AL40: 393.7185972 | AM40: 533.3136652
A41: WB | B41: GDP per capita (current US$) | C41: NY.GDP.PCAP.CD | D41: Rwanda | E41: RWA | F41: Upper LIC | G41: 32 | H41: 242.2829369 | I41: 263.3405493 | J41: 255.7446987 | K41: 261.0127568 | L41: 270.9233558 | M41: 282.1332964 | N41: 305.95348 | O41: 323.3502057 | P41: 344.199816 | Q41: 337.5531888 | R41: 358.699214 | S41: 278.2050381 | T41: 314.4467789 | U41: 329.441477 | V41: 133.4269727 | W41: 232.2239415 | X41: 238.1763214 | Y41: 294.0039216 | Z41: 286.4790203 | AA41: 239.7057248 | AB41: 214.2336989 | AC41: 198.024295 | AD41: 192.8903048 | AE41: 208.4001734 | AF41: 231.883343 | AG41: 280.5219506 | AH41: 329.5262809 | AI41: 384.9580079 | AJ41: 470.9808124 | AK41: 509.4110151 | AL41: 529.4148635 | AM41: 582.5556608
A42: WB | B42: GDP per capita (current US$) | C42: NY.GDP.PCAP.CD | D42: Sierra Leone | E42: SLE | F42: Upper LIC | G42: 32 | H42: 348.1254139 | I42: 345.0430052 | J42: 392.4400838 | K42: 294.9627388 | L42: 314.9248864 | M42: 242.0096932 | N42: 134.675151 | O42: 187.1678899 | P42: 274.0538288 | Q42: 237.2883612 | R42: 163.1631031 | S42: 195.2252623 | T42: 170.8729592 | U42: 194.7921144 | V42: 232.9248014 | W42: 223.3652278 | X42: 241.5852725 | Y42: 217.2425483 | Z42: 170.0622397 | AA42: 166.1721857 | AB42: 153.4772755 | AC42: 250.8169169 | AD42: 274.9972617 | AE42: 289.9443482 | AF42: 289.0084714 | AG42: 315.8772909 | AH42: 349.6358274 | AI42: 388.2862731 | AJ42: 439.9948251 | AK42: 418.3785472 | AL42: 431.8183924 | AM42: 495.7135535
A43: WB | B43: GDP per capita (current US$) | C43: NY.GDP.PCAP.CD | D43: Sri Lanka | E43: LKA | F43: Upper LIC | G43: 32 | H43: 272.9112294 | I43: 297.4233283 | J43: 313.817124 | K43: 335.2087502 | L43: 387.3277474 | M43: 377.3804426 | N43: 397.1730988 | O43: 408.1211213 | P43: 420.409156 | Q43: 415.2907984 | R43: 472.0864633 | S43: 521.2464575 | T43: 556.8123285 | U43: 585.8936663 | V43: 654.9440618 | W43: 718.4438443 | X43: 757.9482098 | Y43: 812.7924836 | Z43: 840.8737674 | AA43: 821.5964534 | AB43: 854.9267252 | AC43: 837.6988035 | AD43: 903.8964049 | AE43: 984.8101725 | AF43: 1063.160584 | AG43: 1242.40435 | AH43: 1423.477215 | AI43: 1614.41111 | AJ43: 2013.911545 | AK43: 2057.113247 | AL43: 2400.015575 | AM43: 2835.408275
A44: WB | B44: GDP per capita (current US$) | C44: NY.GDP.PCAP.CD | D44: Tajikistan | E44: TJK | F44: Upper LIC | G44: 22 | R44: 495.8174056 | S44: 467.9176955 | T44: 345.9393687 | U44: 293.6370861 | V44: 236.4917634 | W44: 213.2358369 | X44: 178.1285952 | Y44: 155.0571994 | Z44: 219.0108866 | AA44: 178.0012555 | AB44: 139.4098818 | AC44: 173.4069666 | AD44: 194.2651765 | AE44: 245.2569407 | AF44: 324.8489639 | AG44: 358.3191667 | AH44: 433.7769833 | AI44: 563.1825341 | AJ44: 771.3369144 | AK44: 733.8741166 | AL44: 820.1831211 | AM44: 934.8200592
A45: WB | B45: GDP per capita (current US$) | C45: NY.GDP.PCAP.CD | D45: Tanzania | E45: TZA | F45: Upper LIC | G45: 24 | P45: 219.200335 | Q45: 184.1916543 | R45: 171.9141207 | S45: 193.6189763 | T45: 173.8222353 | U45: 155.582195 | V45: 159.6713324 | W45: 180.5683518 | X45: 217.1359061 | Y45: 250.2710072 | Z45: 296.9192305 | AA45: 300.6393939 | AB45: 307.9861546 | AC45: 306.084022 | AD45: 310.4084521 | AE45: 326.2667107 | AF45: 349.4729301 | AG45: 375.0206304 | AH45: 369.6873645 | AI45: 421.9878907 | AJ45: 504.8593668 | AK45: 505.800108 | AL45: 526.5582778 | AM45: 532.3200841
A46: WB | B46: GDP per capita (current US$) | C46: NY.GDP.PCAP.CD | D46: Togo | E46: TGO | F46: Upper LIC | G46: 32 | H46: 426.1127548 | I46: 349.7980187 | J46: 288.6732227 | K46: 259.6385483 | L46: 235.0364757 | M46: 241.1518283 | N46: 324.7499736 | O46: 370.3710373 | P46: 396.6805756 | Q46: 378.5390493 | R46: 444.2568788 | S46: 427.536472 | T46: 442.8826169 | U46: 316.483328 | V46: 246.7167182 | W46: 320.4957487 | X46: 348.1918341 | Y46: 344.6380068 | Z46: 352.7299994 | AA46: 338.8900993 | AB46: 270.0008761 | AC46: 270.460938 | AD46: 291.9528504 | AE46: 323.7154378 | AF46: 366.2962441 | AG46: 391.112589 | AH46: 398.3446399 | AI46: 446.4084593 | AJ46: 547.6035685 | AK46: 535.9329307 | AL46: 529.6479953 | AM46: 588.1851499
A47: WB | B47: GDP per capita (current US$) | C47: NY.GDP.PCAP.CD | D47: Uganda | E47: UGA | F47: Upper LIC | G47: 32 | H47: 98.29388118 | I47: 102.4828546 | J47: 161.9227695 | K47: 161.5668771 | L47: 252.5759506 | M47: 237.7993603 | N47: 255.9574845 | O47: 394.5293211 | P47: 394.9027734 | Q47: 308.7751284 | R47: 243.1903016 | S47: 181.369557 | T47: 150.902996 | U47: 164.6275744 | V47: 197.6103189 | W47: 276.309254 | X47: 281.4892509 | Y47: 283.3829448 | Z47: 288.9491075 | AA47: 255.4478794 | AB47: 255.7806112 | AC47: 233.7680672 | AD47: 239.5312233 | AE47: 237.8494485 | AF47: 288.5135105 | AG47: 324.9013541 | AH47: 339.7045942 | AI47: 392.7508471 | AJ47: 460.7884629 | AK47: 488.2459246 | AL47: 514.5119517 | AM47: 487.1054981
A48: WB | B48: GDP per capita (current US$) | C48: NY.GDP.PCAP.CD | D48: Uzbekistan | E48: UZB | F48: Upper LIC | G48: 22 | R48: 651.4192097 | S48: 658.6558681 | T48: 603.934942 | U48: 597.0252726 | V48: 576.4434172 | W48: 585.9320401 | X48: 600.5981578 | Y48: 623.0026524 | Z48: 623.2161328 | AA48: 702.4792994 | AB48: 558.221144 | AC48: 456.7044039 | AD48: 383.3502582 | AE48: 396.3772039 | AF48: 465.1189878 | AG48: 546.7768502 | AH48: 642.9616283 | AI48: 830.4076942 | AJ48: 1022.518623 | AK48: 1181.84736 | AL48: 1377.082143 | AM48: 1545.929695
A49: WB | B49: GDP per capita (current US$) | C49: NY.GDP.PCAP.CD | D49: Zimbabwe | E49: ZWE | F49: Upper LIC | G49: 32 | H49: 916.2359729 | I49: 1058.103399 | J49: 1084.455734 | K49: 947.5072791 | L49: 745.2843864 | M49: 636.5987266 | N49: 676.6143581 | O49: 707.8598067 | P49: 793.1983873 | Q49: 814.8460525 | R49: 839.0149188 | S49: 803.992263 | T49: 613.4528776 | U49: 583.732753 | V49: 600.7630241 | W49: 608.5971338 | X49: 719.2782782 | Y49: 705.7095243 | Z49: 522.1091884 | AA49: 552.8321318 | AB49: 534.7911515 | AC49: 538.9563935 | AD49: 503.0315266 | AE49: 454.103842 | AF49: 460.839429 | AG49: 457.8282547 | AH49: 434.4809574 | AI49: 423.992166 | AJ49: 354.6309723 | AK49: 491.6822675 | AL49: 591.2851815 | AM49: 757.0890179

Sheet Urban%
A1: Urban population (% of total)
A3: Source | B3: Indicator Name | C3: Indicator Code | D3: Country Name | E3: Country Code | F3: Comparator group | G3: # years data available | H3: 1980 | I3: 1981 | J3: 1982 | K3: 1983 | L3: 1984 | M3: 1985 | N3: 1986 | O3: 1987 | P3: 1988 | Q3: 1989 | R3: 1990 | S3: 1991 | T3: 1992 | U3: 1993 | V3: 1994 | W3: 1995 | X3: 1996 | Y3: 1997 | Z3: 1998 | AA3: 1999 | AB3: 2000 | AC3: 2001 | AD3: 2002 | AE3: 2003 | AF3: 2004 | AG3: 2005 | AH3: 2006 | AI3: 2007 | AJ3: 2008 | AK3: 2009 | AL3: 2010 | AM3: 2011 | AN3: 2012
F4: Averages:
F5: Comparable LMIC | H5: =AVERAGEIF($F$9:$F$1475,$F5,H$9:H$1475) -> 32.48725 | I5: 32.82925 | J5: 33.17125 | K5: 33.51325 | L5: 33.85525 | M5: 34.19725 | N5: 34.55505 | O5: 34.91285 | P5: 35.27065 | Q5: 35.62845 | R5: =AVERAGEIF($F$9:$F$1475,$F5,R$9:R$1475) -> 35.98625 | S5: 36.305075 | T5: 36.6239 | U5: 36.942725 | V5: 37.26155 | W5: 37.580375 | X5: 37.911025 | Y5: 38.241675 | Z5: 38.572325 | AA5: 38.902975 | AB5: =AVERAGEIF($F$9:$F$1475,$F5,AB$9:AB$1475) -> 39.233625 | AC5: 39.735625 | AD5: 40.237625 | AE5: 40.739625 | AF5: 41.241625 | AG5: 41.743625 | AH5: 42.265125 | AI5: 42.786625 | AJ5: 43.308125 | AK5: 43.829625 | AL5: 44.351125 | AM5: 44.875825
F6: Aspirational MIC | H6: 33.216875 | I6: 33.955375 | J6: 34.693875 | K6: 35.432375 | L6: 36.170875 | M6: 36.909375 | N6: 37.8223 | O6: 38.735225 | P6: 39.64815 | Q6: 40.561075 | R6: 41.474 | S6: 42.263425 | T6: 43.05285 | U6: 43.842275 | V6: 44.6317 | W6: 45.421125 | X6: 46.20375 | Y6: 46.986375 | Z6: 47.769 | AA6: 48.551625 | AB6: 49.33425 | AC6: 50.0356 | AD6: 50.73695 | AE6: 51.4383 | AF6: 52.13965 | AG6: 52.841 | AH6: 53.51185 | AI6: 54.1827 | AJ6: 54.85355 | AK6: 55.5244 | AL6: 56.19525 | AM6: 56.822075
F7: Upper LIC | H7: 20.45883333 | I7: 20.8374 | J7: 21.21596667 | K7: 21.59453333 | L7: 21.9731 | M7: 22.35166667 | N7: 22.665575 | O7: 22.97948333 | P7: 23.29339167 | Q7: 23.6073 | R7: 23.92120833 | S7: 24.190375 | T7: 24.45954167 | U7: 24.72870833 | V7: 24.997875 | W7: 25.26704167 | X7: 25.546825 | Y7: 25.82660833 | Z7: 26.10639167 | AA7: 26.386175 | AB7: 26.66595833 | AC7: 26.97809167 | AD7: 27.290225 | AE7: 27.60235833 | AF7: 27.91449167 | AG7: 28.226625 | AH7: 28.553975 | AI7: 28.881325 | AJ7: 29.208675 | AK7: 29.536025 | AL7: 29.863375 | AM7: 30.23104167
A9: WB | B9: Urban population (% of total) | C9: SP.URB.TOTL.IN.ZS | D9: Ghana | E9: GHA | F9: (Ghana) | G9: =COUNT(H9:AN9) -> 32 | H9: 31.167 | I9: 31.5128 | J9: 31.8586 | K9: 32.2044 | L9: 32.5502 | M9: 32.896 | N9: 33.605 | O9: 34.314 | P9: 35.023 | Q9: 35.732 | R9: 36.441 | S9: 37.1806 | T9: 37.9202 | U9: 38.6598 | V9: 39.3994 | W9: 40.139 | X9: 40.902 | Y9: 41.665 | Z9: 42.428 | AA9: 43.191 | AB9: 43.954 | AC9: 44.702 | AD9: 45.45 | AE9: 46.198 | AF9: 46.946 | AG9: 47.694 | AH9: 48.3982 | AI9: 49.1024 | AJ9: 49.8066 | AK9: 50.5108 | AL9: 51.215 | AM9: 51.8684
A10: WB | B10: Urban population (% of total) | C10: SP.URB.TOTL.IN.ZS | D10: Botswana | E10: BWA | F10: Aspirational MIC | G10: 32 | H10: 16.479 | I10: 18.528 | J10: 20.577 | K10: 22.626 | L10: 24.675 | M10: 26.724 | N10: 29.7658 | O10: 32.8076 | P10: 35.8494 | Q10: 38.8912 | R10: 41.933 | S10: 43.3426 | T10: 44.7522 | U10: 46.1618 | V10: 47.5714 | W10: 48.981 | X10: 49.8286 | Y10: 50.6762 | Z10: 51.5238 | AA10: 52.3714 | AB10: 53.219 | AC10: 54.0392 | AD10: 54.8594 | AE10: 55.6796 | AF10: 56.4998 | AG10: 57.32 | AH10: 58.0514 | AI10: 58.7828 | AJ10: 59.5142 | AK10: 60.2456 | AL10: 60.977 | AM10: 61.6148
A11: WB | B11: Urban population (% of total) | C11: SP.URB.TOTL.IN.ZS | D11: Brazil | E11: BRA | F11: Aspirational MIC | G11: 32 | H11: 65.468 | I11: 66.3468 | J11: 67.2256 | K11: 68.1044 | L11: 68.9832 | M11: 69.862 | N11: 70.674 | O11: 71.486 | P11: 72.298 | Q11: 73.11 | R11: 73.922 | S11: 74.6596 | T11: 75.3972 | U11: 76.1348 | V11: 76.8724 | W11: 77.61 | X11: 78.3264 | Y11: 79.0428 | Z11: 79.7592 | AA11: 80.4756 | AB11: 81.192 | AC11: 81.5204 | AD11: 81.8488 | AE11: 82.1772 | AF11: 82.5056 | AG11: 82.834 | AH11: 83.1342 | AI11: 83.4344 | AJ11: 83.7346 | AK11: 84.0348 | AL11: 84.335 | AM11: 84.6032
A12: WB | B12: Urban population (% of total) | C12: SP.URB.TOTL.IN.ZS | D12: China | E12: CHN | F12: Aspirational MIC | G12: 32 | H12: 19.358 | I12: 20.0612 | J12: 20.7644 | K12: 21.4676 | L12: 22.1708 | M12: 22.874 | N12: 23.5876 | O12: 24.3012 | P12: 25.0148 | Q12: 25.7284 | R12: 26.442 | S12: 27.3458 | T12: 28.2496 | U12: 29.1534 | V12: 30.0572 | W12: 30.961 | X12: 31.9442 | Y12: 32.9274 | Z12: 33.9106 | AA12: 34.8938 | AB12: 35.877 | AC12: 37.206 | AD12: 38.535 | AE12: 39.864 | AF12: 41.193 | AG12: 42.522 | AH12: 43.8628 | AI12: 45.2036 | AJ12: 46.5444 | AK12: 47.8852 | AL12: 49.226 | AM12: 50.5008
A13: WB | B13: Urban population (% of total) | C13: SP.URB.TOTL.IN.ZS | D13: Indonesia | E13: IDN | F13: Aspirational MIC | G13: 32 | H13: 22.104 | I13: 22.901 | J13: 23.698 | K13: 24.495 | L13: 25.292 | M13: 26.089 | N13: 26.988 | O13: 27.887 | P13: 28.786 | Q13: 29.685 | R13: 30.584 | S13: 31.578 | T13: 32.572 | U13: 33.566 | V13: 34.56 | W13: 35.554 | X13: 36.8436 | Y13: 38.1332 | Z13: 39.4228 | AA13: 40.7124 | AB13: 42.002 | AC13: 42.789 | AD13: 43.576 | AE13: 44.363 | AF13: 45.15 | AG13: 45.937 | AH13: 46.7344 | AI13: 47.5318 | AJ13: 48.3292 | AK13: 49.1266 | AL13: 49.924 | AM13: 50.6858
A14: WB | B14: Urban population (% of total) | C14: SP.URB.TOTL.IN.ZS | D14: Malaysia | E14: MYS | F14: Aspirational MIC | G14: 32 | H14: 42.044 | I14: 42.8138 | J14: 43.5836 | K14: 44.3534 | L14: 45.1232 | M14: 45.893 | N14: 46.6732 | O14: 47.4534 | P14: 48.2336 | Q14: 49.0138 | R14: 49.794 | S14: 50.9728 | T14: 52.1516 | U14: 53.3304 | V14: 54.5092 | W14: 55.688 | X14: 56.9458 | Y14: 58.2036 | Z14: 59.4614 | AA14: 60.7192 | AB14: 61.977 | AC14: 63.0966 | AD14: 64.2162 | AE14: 65.3358 | AF14: 66.4554 | AG14: 67.575 | AH14: 68.4612 | AI14: 69.3474 | AJ14: 70.2336 | AK14: 71.1198 | AL14: 72.006 | AM14: 72.684
A15: WB | B15: Urban population (% of total) | C15: SP.URB.TOTL.IN.ZS | D15: Namibia | E15: NAM | F15: Aspirational MIC | G15: 32 | H15: 25.066 | I15: 25.326 | J15: 25.586 | K15: 25.846 | L15: 26.106 | M15: 26.366 | N15: 26.624 | O15: 26.882 | P15: 27.14 | Q15: 27.398 | R15: 27.656 | S15: 28.0874 | T15: 28.5188 | U15: 28.9502 | V15: 29.3816 | W15: 29.813 | X15: 30.325 | Y15: 30.837 | Z15: 31.349 | AA15: 31.861 | AB15: 32.373 | AC15: 32.907 | AD15: 33.441 | AE15: 33.975 | AF15: 34.509 | AG15: 35.043 | AH15: 35.598 | AI15: 36.153 | AJ15: 36.708 | AK15: 37.263 | AL15: 37.818 | AM15: 38.3908
A16: WB | B16: Urban population (% of total) | C16: SP.URB.TOTL.IN.ZS | D16: South Africa | E16: ZAF | F16: Aspirational MIC | G16: 32 | H16: 48.425 | I16: 48.6144 | J16: 48.8038 | K16: 48.9932 | L16: 49.1826 | M16: 49.372 | N16: 49.905 | O16: 50.438 | P16: 50.971 | Q16: 51.504 | R16: 52.037 | S16: 52.5268 | T16: 53.0166 | U16: 53.5064 | V16: 53.9962 | W16: 54.486 | X16: 54.967 | Y16: 55.448 | Z16: 55.929 | AA16: 56.41 | AB16: 56.891 | AC16: 57.364 | AD16: 57.837 | AE16: 58.31 | AF16: 58.783 | AG16: 59.256 | AH16: 59.714 | AI16: 60.172 | AJ16: 60.63 | AK16: 61.088 | AL16: 61.546 | AM16: 61.9868
A17: WB | B17: Urban population (% of total) | C17: SP.URB.TOTL.IN.ZS | D17: Thailand | E17: THA | F17: Aspirational MIC | G17: 32 | H17: 26.791 | I17: 27.0518 | J17: 27.3126 | K17: 27.5734 | L17: 27.8342 | M17: 28.095 | N17: 28.3608 | O17: 28.6266 | P17: 28.8924 | Q17: 29.1582 | R17: 29.424 | S17: 29.5944 | T17: 29.7648 | U17: 29.9352 | V17: 30.1056 | W17: 30.276 | X17: 30.4494 | Y17: 30.6228 | Z17: 30.7962 | AA17: 30.9696 | AB17: 31.143 | AC17: 31.3626 | AD17: 31.5822 | AE17: 31.8018 | AF17: 32.0214 | AG17: 32.241 | AH17: 32.5388 | AI17: 32.8366 | AJ17: 33.1344 | AK17: 33.4322 | AL17: 33.73 | AM17: 34.1104
A18: WB | B18: Urban population (% of total) | C18: SP.URB.TOTL.IN.ZS | D18: Cote d'Ivoire | E18: CIV | F18: Comparable LMIC | G18: 32 | H18: 36.829 | I18: 37.0452 | J18: 37.2614 | K18: 37.4776 | L18: 37.6938 | M18: 37.91 | N18: 38.197 | O18: 38.484 | P18: 38.771 | Q18: 39.058 | R18: 39.345 | S18: 39.718 | T18: 40.091 | U18: 40.464 | V18: 40.837 | W18: 41.21 | X18: 41.6762 | Y18: 42.1424 | Z18: 42.6086 | AA18: 43.0748 | AB18: 43.541 | AC18: 44.2 | AD18: 44.859 | AE18: 45.518 | AF18: 46.177 | AG18: 46.836 | AH18: 47.5802 | AI18: 48.3244 | AJ18: 49.0686 | AK18: 49.8128 | AL18: 50.557 | AM18: 51.2798
A19: WB | B19: Urban population (% of total) | C19: SP.URB.TOTL.IN.ZS | D19: Honduras | E19: HND | F19: Comparable LMIC | G19: 32 | H19: 34.87 | I19: 35.443 | J19: 36.016 | K19: 36.589 | L19: 37.162 | M19: 37.735 | N19: 38.28 | O19: 38.825 | P19: 39.37 | Q19: 39.915 | R19: 40.46 | S19: 40.9562 | T19: 41.4524 | U19: 41.9486 | V19: 42.4448 | W19: 42.941 | X19: 43.4444 | Y19: 43.9478 | Z19: 44.4512 | AA19: 44.9546 | AB19: 45.458 | AC19: 46.0962 | AD19: 46.7344 | AE19: 47.3726 | AF19: 48.0108 | AG19: 48.649 | AH19: 49.2346 | AI19: 49.8202 | AJ19: 50.4058 | AK19: 50.9914 | AL19: 51.577 | AM19: 52.151
A20: WB | B20: Urban population (% of total) | C20: SP.URB.TOTL.IN.ZS | D20: India | E20: IND | F20: Comparable LMIC | G20: 32 | H20: 23.098 | I20: 23.348 | J20: 23.598 | K20: 23.848 | L20: 24.098 | M20: 24.348 | N20: 24.5878 | O20: 24.8276 | P20: 25.0674 | Q20: 25.3072 | R20: 25.547 | S20: 25.759 | T20: 25.971 | U20: 26.183 | V20: 26.395 | W20: 26.607 | X20: 26.819 | Y20: 27.031 | Z20: 27.243 | AA20: 27.455 | AB20: 27.667 | AC20: 27.9806 | AD20: 28.2942 | AE20: 28.6078 | AF20: 28.9214 | AG20: 29.235 | AH20: 29.574 | AI20: 29.913 | AJ20: 30.252 | AK20: 30.591 | AL20: 30.93 | AM20: 31.295
A21: WB | B21: Urban population (% of total) | C21: SP.URB.TOTL.IN.ZS | D21: Nigeria | E21: NGA | F21: Comparable LMIC | G21: 32 | H21: 28.582 | I21: 29.233 | J21: 29.884 | K21: 30.535 | L21: 31.186 | M21: 31.837 | N21: 32.526 | O21: 33.215 | P21: 33.904 | Q21: 34.593 | R21: 35.282 | S21: 35.9942 | T21: 36.7064 | U21: 37.4186 | V21: 38.1308 | W21: 38.843 | X21: 39.5446 | Y21: 40.2462 | Z21: 40.9478 | AA21: 41.6494 | AB21: 42.351 | AC21: 43.0308 | AD21: 43.7106 | AE21: 44.3904 | AF21: 45.0702 | AG21: 45.75 | AH21: 46.4002 | AI21: 47.0504 | AJ21: 47.7006 | AK21: 48.3508 | AL21: 49.001 | AM21: 49.6152
A22: WB | B22: Urban population (% of total) | C22: SP.URB.TOTL.IN.ZS | D22: Paraguay | E22: PRY | F22: Comparable LMIC | G22: 32 | H22: 41.688 | I22: 42.347 | J22: 43.006 | K22: 43.665 | L22: 44.324 | M22: 44.983 | N22: 45.7252 | O22: 46.4674 | P22: 47.2096 | Q22: 47.9518 | R22: 48.694 | S22: 49.3814 | T22: 50.0688 | U22: 50.7562 | V22: 51.4436 | W22: 52.131 | X22: 52.771 | Y22: 53.411 | Z22: 54.051 | AA22: 54.691 | AB22: 55.331 | AC22: 55.9578 | AD22: 56.5846 | AE22: 57.2114 | AF22: 57.8382 | AG22: 58.465 | AH22: 59.0468 | AI22: 59.6286 | AJ22: 60.2104 | AK22: 60.7922 | AL22: 61.374 | AM22: 61.9048
A23: WB | B23: Urban population (% of total) | C23: SP.URB.TOTL.IN.ZS | D23: Senegal | E23: SEN | F23: Comparable LMIC | G23: 32 | H23: 35.769 | I23: 36.125 | J23: 36.481 | K23: 36.837 | L23: 37.193 | M23: 37.549 | N23: 37.8192 | O23: 38.0894 | P23: 38.3596 | Q23: 38.6298 | R23: 38.9 | S23: 39.044 | T23: 39.188 | U23: 39.332 | V23: 39.476 | W23: 39.62 | X23: 39.765 | Y23: 39.91 | Z23: 40.055 | AA23: 40.2 | AB23: 40.345 | AC23: 40.5002 | AD23: 40.6554 | AE23: 40.8106 | AF23: 40.9658 | AG23: 41.121 | AH23: 41.3472 | AI23: 41.5734 | AJ23: 41.7996 | AK23: 42.0258 | AL23: 42.252 | AM23: 42.5598
A24: WB | B24: Urban population (% of total) | C24: SP.URB.TOTL.IN.ZS | D24: Vietnam | E24: VNM | F24: Comparable LMIC | G24: 32 | H24: 19.247 | I24: 19.3098 | J24: 19.3726 | K24: 19.4354 | L24: 19.4982 | M24: 19.561 | N24: 19.6998 | O24: 19.8386 | P24: 19.9774 | Q24: 20.1162 | R24: 20.255 | S24: 20.6414 | T24: 21.0278 | U24: 21.4142 | V24: 21.8006 | W24: 22.187 | X24: 22.6244 | Y24: 23.0618 | Z24: 23.4992 | AA24: 23.9366 | AB24: 24.374 | AC24: 24.9554 | AD24: 25.5368 | AE24: 26.1182 | AF24: 26.6996 | AG24: 27.281 | AH24: 27.9034 | AI24: 28.5258 | AJ24: 29.1482 | AK24: 29.7706 | AL24: 30.393 | AM24: 31.0356
A25: WB | B25: Urban population (% of total) | C25: SP.URB.TOTL.IN.ZS | D25: Zambia | E25: ZMB | F25: Comparable LMIC | G25: 32 | H25: 39.815 | I25: 39.783 | J25: 39.751 | K25: 39.719 | L25: 39.687 | M25: 39.655 | N25: 39.6054 | O25: 39.5558 | P25: 39.5062 | Q25: 39.4566 | R25: 39.407 | S25: 38.9464 | T25: 38.4858 | U25: 38.0252 | V25: 37.5646 | W25: 37.104 | X25: 36.6436 | Y25: 36.1832 | Z25: 35.7228 | AA25: 35.2624 | AB25: 34.802 | AC25: 35.164 | AD25: 35.526 | AE25: 35.888 | AF25: 36.25 | AG25: 36.612 | AH25: 37.0346 | AI25: 37.4572 | AJ25: 37.8798 | AK25: 38.3024 | AL25: 38.725 | AM25: 39.1654
A26: WB | B26: Urban population (% of total) | C26: SP.URB.TOTL.IN.ZS | D26: Angola | E26: AGO | F26: Upper LIC | G26: 32 | H26: 24.298 | I26: 25.506 | J26: 26.714 | K26: 27.922 | L26: 29.13 | M26: 30.338 | N26: 31.6992 | O26: 33.0604 | P26: 34.4216 | Q26: 35.7828 | R26: 37.144 | S26: 38.5128 | T26: 39.8816 | U26: 41.2504 | V26: 42.6192 | W26: 43.988 | X26: 44.9878 | Y26: 45.9876 | Z26: 46.9874 | AA26: 47.9872 | AB26: 48.987 | AC26: 49.9782 | AD26: 50.9694 | AE26: 51.9606 | AF26: 52.9518 | AG26: 53.943 | AH26: 54.8302 | AI26: 55.7174 | AJ26: 56.6046 | AK26: 57.4918 | AL26: 58.379 | AM26: 59.1426
A27: WB | B27: Urban population (% of total) | C27: SP.URB.TOTL.IN.ZS | D27: Bangladesh | E27: BGD | F27: Upper LIC | G27: 32 | H27: 14.851 | I27: 15.38 | J27: 15.909 | K27: 16.438 | L27: 16.967 | M27: 17.496 | N27: 17.959 | O27: 18.422 | P27: 18.885 | Q27: 19.348 | R27: 19.811 | S27: 20.1874 | T27: 20.5638 | U27: 20.9402 | V27: 21.3166 | W27: 21.693 | X27: 22.0724 | Y27: 22.4518 | Z27: 22.8312 | AA27: 23.2106 | AB27: 23.59 | AC27: 23.9992 | AD27: 24.4084 | AE27: 24.8176 | AF27: 25.2268 | AG27: 25.636 | AH27: 26.0876 | AI27: 26.5392 | AJ27: 26.9908 | AK27: 27.4424 | AL27: 27.894 | AM27: 28.3902
A28: WB | B28: Urban population (% of total) | C28: SP.URB.TOTL.IN.ZS | D28: Benin | E28: BEN | F28: Upper LIC | G28: 32 | H28: 27.339 | I28: 28.0304 | J28: 28.7218 | K28: 29.4132 | L28: 30.1046 | M28: 30.796 | N28: 31.5338 | O28: 32.2716 | P28: 33.0094 | Q28: 33.7472 | R28: 34.485 | S28: 34.9396 | T28: 35.3942 | U28: 35.8488 | V28: 36.3034 | W28: 36.758 | X28: 37.073 | Y28: 37.388 | Z28: 37.703 | AA28: 38.018 | AB28: 38.333 | AC28: 38.867 | AD28: 39.401 | AE28: 39.935 | AF28: 40.469 | AG28: 41.003 | AH28: 41.654 | AI28: 42.305 | AJ28: 42.956 | AK28: 43.607 | AL28: 44.258 | AM28: 44.9086
A29: WB | B29: Urban population (% of total) | C29: SP.URB.TOTL.IN.ZS | D29: Burkina Faso | E29: BFA | F29: Upper LIC | G29: 32 | H29: 8.805 | I29: 9.5108 | J29: 10.2166 | K29: 10.9224 | L29: 11.6282 | M29: 12.334 | N29: 12.6302 | O29: 12.9264 | P29: 13.2226 | Q29: 13.5188 | R29: 13.815 | S29: 14.0782 | T29: 14.3414 | U29: 14.6046 | V29: 14.8678 | W29: 15.131 | X29: 15.6736 | Y29: 16.2162 | Z29: 16.7588 | AA29: 17.3014 | AB29: 17.844 | AC29: 18.5826 | AD29: 19.3212 | AE29: 20.0598 | AF29: 20.7984 | AG29: 21.537 | AH29: 22.363 | AI29: 23.189 | AJ29: 24.015 | AK29: 24.841 | AL29: 25.667 | AM29: 26.509
A30: WB | B30: Urban population (% of total) | C30: SP.URB.TOTL.IN.ZS | D30: Burundi | E30: BDI | F30: Upper LIC | G30: 32 | H30: 4.339 | I30: 4.5154 | J30: 4.6918 | K30: 4.8682 | L30: 5.0446 | M30: 5.221 | N30: 5.431 | O30: 5.641 | P30: 5.851 | Q30: 6.061 | R30: 6.271 | S30: 6.459 | T30: 6.647 | U30: 6.835 | V30: 7.023 | W30: 7.211 | X30: 7.418 | Y30: 7.625 | Z30: 7.832 | AA30: 8.039 | AB30: 8.246 | AC30: 8.4718 | AD30: 8.6976 | AE30: 8.9234 | AF30: 9.1492 | AG30: 9.375 | AH30: 9.6284 | AI30: 9.8818 | AJ30: 10.1352 | AK30: 10.3886 | AL30: 10.642 | AM30: 10.928
A31: WB | B31: Urban population (% of total) | C31: SP.URB.TOTL.IN.ZS | D31: Cambodia | E31: KHM | F31: Upper LIC | G31: 32 | H31: 8.972 | I31: 9.9638 | J31: 10.9556 | K31: 11.9474 | L31: 12.9392 | M31: 13.931 | N31: 14.254 | O31: 14.577 | P31: 14.9 | Q31: 15.223 | R31: 15.546 | S31: 15.899 | T31: 16.252 | U31: 16.605 | V31: 16.958 | W31: 17.311 | X31: 17.566 | Y31: 17.821 | Z31: 18.076 | AA31: 18.331 | AB31: 18.586 | AC31: 18.7036 | AD31: 18.8212 | AE31: 18.9388 | AF31: 19.0564 | AG31: 19.174 | AH31: 19.302 | AI31: 19.43 | AJ31: 19.558 | AK31: 19.686 | AL31: 19.814 | AM31: 20.003
A32: WB | B32: Urban population (% of total) | C32: SP.URB.TOTL.IN.ZS | D32: Chad | E32: TCD | F32: Upper LIC | G32: 32 | H32: 18.787 | I32: 18.9854 | J32: 19.1838 | K32: 19.3822 | L32: 19.5806 | M32: 19.779 | N32: 19.9854 | O32: 20.1918 | P32: 20.3982 | Q32: 20.6046 | R32: 20.811 | S32: 20.937 | T32: 21.063 | U32: 21.189 | V32: 21.315 | W32: 21.441 | X32: 21.4596 | Y32: 21.4782 | Z32: 21.4968 | AA32: 21.5154 | AB32: 21.534 | AC32: 21.5526 | AD32: 21.5712 | AE32: 21.5898 | AF32: 21.6084 | AG32: 21.627 | AH32: 21.6494 | AI32: 21.6718 | AJ32: 21.6942 | AK32: 21.7166 | AL32: 21.739 | AM32: 21.8294
A33: WB | B33: Urban population (% of total) | C33: SP.URB.TOTL.IN.ZS | D33: Ethiopia | E33: ETH | F33: Upper LIC | G33: 32 | H33: 10.41 | I33: 10.6186 | J33: 10.8272 | K33: 11.0358 | L33: 11.2444 | M33: 11.453 | N33: 11.6866 | O33: 11.9202 | P33: 12.1538 | Q33: 12.3874 | R33: 12.621 | S33: 12.8622 | T33: 13.1034 | U33: 13.3446 | V33: 13.5858 | W33: 13.827 | X33: 14.0094 | Y33: 14.1918 | Z33: 14.3742 | AA33: 14.5566 | AB33: 14.739 | AC33: 14.9312 | AD33: 15.1234 | AE33: 15.3156 | AF33: 15.5078 | AG33: 15.7 | AH33: 15.9114 | AI33: 16.1228 | AJ33: 16.3342 | AK33: 16.5456 | AL33: 16.757 | AM33: 17.0184
A34: WB | B34: Urban population (% of total) | C34: SP.URB.TOTL.IN.ZS | D34: Georgia | E34: GEO | F34: Upper LIC | G34: 32 | H34: 52.497 | I34: 52.8364 | J34: 53.1758 | K34: 53.5152 | L34: 53.8546 | M34: 54.194 | N34: 54.3628 | O34: 54.5316 | P34: 54.7004 | Q34: 54.8692 | R34: 55.038 | S34: 54.7986 | T34: 54.5592 | U34: 54.3198 | V34: 54.0804 | W34: 53.841 | X34: 53.6004 | Y34: 53.3598 | Z34: 53.1192 | AA34: 52.8786 | AB34: 52.638 | AC34: 52.6044 | AD34: 52.5708 | AE34: 52.5372 | AF34: 52.5036 | AG34: 52.47 | AH34: 52.5244 | AI34: 52.5788 | AJ34: 52.6332 | AK34: 52.6876 | AL34: 52.742 | AM34: 52.8608
A35: WB | B35: Urban population (% of total) | C35: SP.URB.TOTL.IN.ZS | D35: Kenya | E35: KEN | F35: Upper LIC | G35: 32 | H35: 15.583 | I35: 15.6822 | J35: 15.7814 | K35: 15.8806 | L35: 15.9798 | M35: 16.079 | N35: 16.2128 | O35: 16.3466 | P35: 16.4804 | Q35: 16.6142 | R35: 16.748 | S35: 17.051 | T35: 17.354 | U35: 17.657 | V35: 17.96 | W35: 18.263 | X35: 18.5888 | Y35: 18.9146 | Z35: 19.2404 | AA35: 19.5662 | AB35: 19.892 | AC35: 20.2486 | AD35: 20.6052 | AE35: 20.9618 | AF35: 21.3184 | AG35: 21.675 | AH35: 22.0542 | AI35: 22.4334 | AJ35: 22.8126 | AK35: 23.1918 | AL35: 23.571 | AM35: 23.9842
A36: WB | B36: Urban population (% of total) | C36: SP.URB.TOTL.IN.ZS | D36: Kyrgyz Republic | E36: KGZ | F36: Upper LIC | G36: 32 | H36: 38.627 | I36: 38.577 | J36: 38.527 | K36: 38.477 | L36: 38.427 | M36: 38.377 | N36: 38.257 | O36: 38.137 | P36: 38.017 | Q36: 37.897 | R36: 37.777 | S36: 37.4914 | T36: 37.2058 | U36: 36.9202 | V36: 36.6346 | W36: 36.349 | X36: 36.1388 | Y36: 35.9286 | Z36: 35.7184 | AA36: 35.5082 | AB36: 35.298 | AC36: 35.2964 | AD36: 35.2948 | AE36: 35.2932 | AF36: 35.2916 | AG36: 35.29 | AH36: 35.2928 | AI36: 35.2956 | AJ36: 35.2984 | AK36: 35.3012 | AL36: 35.304 | AM36: 35.3896
A37: WB | B37: Urban population (% of total) | C37: SP.URB.TOTL.IN.ZS | D37: Lao PDR | E37: LAO | F37: Upper LIC | G37: 32 | H37: 12.377 | I37: 12.6624 | J37: 12.9478 | K37: 13.2332 | L37: 13.5186 | M37: 13.804 | N37: 14.1306 | O37: 14.4572 | P37: 14.7838 | Q37: 15.1104 | R37: 15.437 | S37: 15.8252 | T37: 16.2134 | U37: 16.6016 | V37: 16.9898 | W37: 17.378 | X37: 18.2978 | Y37: 19.2176 | Z37: 20.1374 | AA37: 21.0572 | AB37: 21.977 | AC37: 23.0588 | AD37: 24.1406 | AE37: 25.2224 | AF37: 26.3042 | AG37: 27.386 | AH37: 28.533 | AI37: 29.68 | AJ37: 30.827 | AK37: 31.974 | AL37: 33.121 | AM37: 34.2224
A38: WB | B38: Urban population (% of total) | C38: SP.URB.TOTL.IN.ZS | D38: Liberia | E38: LBR | F38: Upper LIC | G38: 32 | H38: 35.167 | I38: 35.987 | J38: 36.807 | K38: 37.627 | L38: 38.447 | M38: 39.267 | N38: 39.6006 | O38: 39.9342 | P38: 40.2678 | Q38: 40.6014 | R38: 40.935 | S38: 41.2728 | T38: 41.6106 | U38: 41.9484 | V38: 42.2862 | W38: 42.624 | X38: 42.9654 | Y38: 43.3068 | Z38: 43.6482 | AA38: 43.9896 | AB38: 44.331 | AC38: 44.675 | AD38: 45.019 | AE38: 45.363 | AF38: 45.707 | AG38: 46.051 | AH38: 46.401 | AI38: 46.751 | AJ38: 47.101 | AK38: 47.451 | AL38: 47.801 | AM38: 48.1822
A39: WB | B39: Urban population (% of total) | C39: SP.URB.TOTL.IN.ZS | D39: Malawi | E39: MWI | F39: Upper LIC | G39: 32 | H39: 9.05 | I39: 9.2726 | J39: 9.4952 | K39: 9.7178 | L39: 9.9404 | M39: 10.163 | N39: 10.4424 | O39: 10.7218 | P39: 11.0012 | Q39: 11.2806 | R39: 11.56 | S39: 11.9006 | T39: 12.2412 | U39: 12.5818 | V39: 12.9224 | W39: 13.263 | X39: 13.5324 | Y39: 13.8018 | Z39: 14.0712 | AA39: 14.3406 | AB39: 14.61 | AC39: 14.6988 | AD39: 14.7876 | AE39: 14.8764 | AF39: 14.9652 | AG39: 15.054 | AH39: 15.1518 | AI39: 15.2496 | AJ39: 15.3474 | AK39: 15.4452 | AL39: 15.543 | AM39: 15.6956
A40: WB | B40: Urban population (% of total) | C40: SP.URB.TOTL.IN.ZS | D40: Mozambique | E40: MOZ | F40: Upper LIC | G40: 32 | H40: 13.111 | I40: 13.838 | J40: 14.565 | K40: 15.292 | L40: 16.019 | M40: 16.746 | N40: 17.616 | O40: 18.486 | P40: 19.356 | Q40: 20.226 | R40: 21.096 | S40: 22.121 | T40: 23.146 | U40: 24.171 | V40: 25.196 | W40: 26.221 | X40: 26.7964 | Y40: 27.3718 | Z40: 27.9472 | AA40: 28.5226 | AB40: 29.098 | AC40: 29.2782 | AD40: 29.4584 | AE40: 29.6386 | AF40: 29.8188 | AG40: 29.999 | AH40: 30.1908 | AI40: 30.3826 | AJ40: 30.5744 | AK40: 30.7662 | AL40: 30.958 | AM40: 31.2156
A41: WB | B41: Urban population (% of total) | C41: SP.URB.TOTL.IN.ZS | D41: Rwanda | E41: RWA | F41: Upper LIC | G41: 32 | H41: 4.721 | I41: 4.7882 | J41: 4.8554 | K41: 4.9226 | L41: 4.9898 | M41: 5.057 | N41: 5.1288 | O41: 5.2006 | P41: 5.2724 | Q41: 5.3442 | R41: 5.416 | S41: 5.9916 | T41: 6.5672 | U41: 7.1428 | V41: 7.7184 | W41: 8.294 | X41: 9.3896 | Y41: 10.4852 | Z41: 11.5808 | AA41: 12.6764 | AB41: 13.772 | AC41: 14.5254 | AD41: 15.2788 | AE41: 16.0322 | AF41: 16.7856 | AG41: 17.539 | AH41: 17.7932 | AI41: 18.0474 | AJ41: 18.3016 | AK41: 18.5558 | AL41: 18.81 | AM41: 19.1192
A42: WB | B42: Urban population (% of total) | C42: SP.URB.TOTL.IN.ZS | D42: Sierra Leone | E42: SLE | F42: Upper LIC | G42: 32 | H42: 29.105 | I42: 29.5978 | J42: 30.0906 | K42: 30.5834 | L42: 31.0762 | M42: 31.569 | N42: 31.8616 | O42: 32.1542 | P42: 32.4468 | Q42: 32.7394 | R42: 33.032 | S42: 33.3088 | T42: 33.5856 | U42: 33.8624 | V42: 34.1392 | W42: 34.416 | X42: 34.6982 | Y42: 34.9804 | Z42: 35.2626 | AA42: 35.5448 | AB42: 35.827 | AC42: 36.1142 | AD42: 36.4014 | AE42: 36.6886 | AF42: 36.9758 | AG42: 37.263 | AH42: 37.5856 | AI42: 37.9082 | AJ42: 38.2308 | AK42: 38.5534 | AL42: 38.876 | AM42: 39.2558
A43: WB | B43: Urban population (% of total) | C43: SP.URB.TOTL.IN.ZS | D43: Sri Lanka | E43: LKA | F43: Upper LIC | G43: 32 | H43: 18.779 | I43: 18.62 | J43: 18.461 | K43: 18.302 | L43: 18.143 | M43: 17.984 | N43: 17.827 | O43: 17.67 | P43: 17.513 | Q43: 17.356 | R43: 17.199 | S43: 17.0472 | T43: 16.8954 | U43: 16.7436 | V43: 16.5918 | W43: 16.44 | X43: 16.2938 | Y43: 16.1476 | Z43: 16.0014 | AA43: 15.8552 | AB43: 15.709 | AC43: 15.5926 | AD43: 15.4762 | AE43: 15.3598 | AF43: 15.2434 | AG43: 15.127 | AH43: 15.1098 | AI43: 15.0926 | AJ43: 15.0754 | AK43: 15.0582 | AL43: 15.041 | AM43: 15.1264
A44: WB | B44: Urban population (% of total) | C44: SP.URB.TOTL.IN.ZS | D44: Tajikistan | E44: TJK | F44: Upper LIC | G44: 32 | H44: 34.289 | I44: 34.0782 | J44: 33.8674 | K44: 33.6566 | L44: 33.4458 | M44: 33.235 | N44: 32.9196 | O44: 32.6042 | P44: 32.2888 | Q44: 31.9734 | R44: 31.658 | S44: 31.1018 | T44: 30.5456 | U44: 29.9894 | V44: 29.4332 | W44: 28.877 | X44: 28.399 | Y44: 27.921 | Z44: 27.443 | AA44: 26.965 | AB44: 26.487 | AC44: 26.4754 | AD44: 26.4638 | AE44: 26.4522 | AF44: 26.4406 | AG44: 26.429 | AH44: 26.4432 | AI44: 26.4574 | AJ44: 26.4716 | AK44: 26.4858 | AL44: 26.5 | AM44: 26.554
A45: WB | B45: Urban population (% of total) | C45: SP.URB.TOTL.IN.ZS | D45: Tanzania | E45: TZA | F45: Upper LIC | G45: 32 | H45: 14.555 | I45: 14.9974 | J45: 15.4398 | K45: 15.8822 | L45: 16.3246 | M45: 16.767 | N45: 17.1904 | O45: 17.6138 | P45: 18.0372 | Q45: 18.4606 | R45: 18.884 | S45: 19.2158 | T45: 19.5476 | U45: 19.8794 | V45: 20.2112 | W45: 20.543 | X45: 20.8962 | Y45: 21.2494 | Z45: 21.6026 | AA45: 21.9558 | AB45: 22.309 | AC45: 22.6856 | AD45: 23.0622 | AE45: 23.4388 | AF45: 23.8154 | AG45: 24.192 | AH45: 24.6094 | AI45: 25.0268 | AJ45: 25.4442 | AK45: 25.8616 | AL45: 26.279 | AM45: 26.7424
A46: WB | B46: Urban population (% of total) | C46: SP.URB.TOTL.IN.ZS | D46: Togo | E46: TGO | F46: Upper LIC | G46: 32 | H46: 24.663 | I46: 25.0428 | J46: 25.4226 | K46: 25.8024 | L46: 26.1822 | M46: 26.562 | N46: 26.9674 | O46: 27.3728 | P46: 27.7782 | Q46: 28.1836 | R46: 28.589 | S46: 29.0122 | T46: 29.4354 | U46: 29.8586 | V46: 30.2818 | W46: 30.705 | X46: 31.1454 | Y46: 31.5858 | Z46: 32.0262 | AA46: 32.4666 | AB46: 32.907 | AC46: 33.3626 | AD46: 33.8182 | AE46: 34.2738 | AF46: 34.7294 | AG46: 35.185 | AH46: 35.6546 | AI46: 36.1242 | AJ46: 36.5938 | AK46: 37.0634 | AL46: 37.533 | AM46: 38.02
A47: WB | B47: Urban population (% of total) | C47: SP.URB.TOTL.IN.ZS | D47: Uganda | E47: UGA | F47: Upper LIC | G47: 32 | H47: 7.534 | I47: 7.8576 | J47: 8.1812 | K47: 8.5048 | L47: 8.8284 | M47: 9.152 | N47: 9.5368 | O47: 9.9216 | P47: 10.3064 | Q47: 10.6912 | R47: 11.076 | S47: 11.1934 | T47: 11.3108 | U47: 11.4282 | V47: 11.5456 | W47: 11.663 | X47: 11.7468 | Y47: 11.8306 | Z47: 11.9144 | AA47: 11.9982 | AB47: 12.082 | AC47: 12.3152 | AD47: 12.5484 | AE47: 12.7816 | AF47: 13.0148 | AG47: 13.248 | AH47: 13.63 | AI47: 14.012 | AJ47: 14.394 | AK47: 14.776 | AL47: 15.158 | AM47: 15.579
A48: WB | B48: Urban population (% of total) | C48: SP.URB.TOTL.IN.ZS | D48: Uzbekistan | E48: UZB | F48: Upper LIC | G48: 32 | H48: 40.782 | I48: 40.77 | J48: 40.758 | K48: 40.746 | L48: 40.734 | M48: 40.722 | N48: 40.612 | O48: 40.502 | P48: 40.392 | Q48: 40.282 | R48: 40.172 | S48: 39.8256 | T48: 39.4792 | U48: 39.1328 | V48: 38.7864 | W48: 38.44 | X48: 38.2378 | Y48: 38.0356 | Z48: 37.8334 | AA48: 37.6312 | AB48: 37.429 | AC48: 37.2784 | AD48: 37.1278 | AE48: 36.9772 | AF48: 36.8266 | AG48: 36.676 | AH48: 36.5816 | AI48: 36.4872 | AJ48: 36.3928 | AK48: 36.2984 | AL48: 36.204 | AM48: 36.248
A49: WB | B49: Urban population (% of total) | C49: SP.URB.TOTL.IN.ZS | D49: Zimbabwe | E49: ZWE | F49: Upper LIC | G49: 32 | H49: 22.371 | I49: 22.9796 | J49: 23.5882 | K49: 24.1968 | L49: 24.8054 | M49: 25.414 | N49: 26.1288 | O49: 26.8436 | P49: 27.5584 | Q49: 28.2732 | R49: 28.988 | S49: 29.5368 | T49: 30.0856 | U49: 30.6344 | V49: 31.1832 | W49: 31.732 | X49: 32.1372 | Y49: 32.5424 | Z49: 32.9476 | AA49: 33.3528 | AB49: 33.758 | AC49: 34.1784 | AD49: 34.5988 | AE49: 35.0192 | AF49: 35.4396 | AG49: 35.86 | AH49: 36.314 | AI49: 36.768 | AJ49: 37.222 | AK49: 37.676 | AL49: 38.13 | AM49: 38.6206

Sheet Rural%
A1: Rural population (% of total population)
A3: Source | B3: Indicator Name | C3: Indicator Code | D3: Country Name | E3: Country Code | F3: Comparator group | G3: # years data available | H3: 1980 | I3: 1981 | J3: 1982 | K3: 1983 | L3: 1984 | M3: 1985 | N3: 1986 | O3: 1987 | P3: 1988 | Q3: 1989 | R3: 1990 | S3: 1991 | T3: 1992 | U3: 1993 | V3: 1994 | W3: 1995 | X3: 1996 | Y3: 1997 | Z3: 1998 | AA3: 1999 | AB3: 2000 | AC3: 2001 | AD3: 2002 | AE3: 2003 | AF3: 2004 | AG3: 2005 | AH3: 2006 | AI3: 2007 | AJ3: 2008 | AK3: 2009 | AL3: 2010 | AM3: 2011 | AN3: 2012
F4: Averages:
F5: Comparable LMIC | H5: =AVERAGEIF($F$9:$F$1475,$F5,H$9:H$1475) -> 67.51275 | I5: 67.17075 | J5: 66.82875 | K5: 66.48675 | L5: 66.14475 | M5: 65.80275 | N5: 65.44495 | O5: 65.08715 | P5: 64.72935 | Q5: 64.37155 | R5: =AVERAGEIF($F$9:$F$1475,$F5,R$9:R$1475) -> 64.01375 | S5: 63.694925 | T5: 63.3761 | U5: 63.057275 | V5: 62.73845 | W5: 62.419625 | X5: 62.088975 | Y5: 61.758325 | Z5: 61.427675 | AA5: 61.097025 | AB5: =AVERAGEIF($F$9:$F$1475,$F5,AB$9:AB$1475) -> 60.766375 | AC5: 60.264375 | AD5: 59.762375 | AE5: 59.260375 | AF5: 58.758375 | AG5: 58.256375 | AH5: 57.734875 | AI5: 57.213375 | AJ5: 56.691875 | AK5: 56.170375 | AL5: 55.648875 | AM5: 55.124175
F6: Aspirational MIC | H6: 66.783125 | I6: 66.044625 | J6: 65.306125 | K6: 64.567625 | L6: 63.829125 | M6: 63.090625 | N6: 62.1777 | O6: 61.264775 | P6: 60.35185 | Q6: 59.438925 | R6: 58.526 | S6: 57.736575 | T6: 56.94715 | U6: 56.157725 | V6: 55.3683 | W6: 54.578875 | X6: 53.79625 | Y6: 53.013625 | Z6: 52.231 | AA6: 51.448375 | AB6: 50.66575 | AC6: 49.9644 | AD6: 49.26305 | AE6: 48.5617 | AF6: 47.86035 | AG6: 47.159 | AH6: 46.48815 | AI6: 45.8173 | AJ6: 45.14645 | AK6: 44.4756 | AL6: 43.80475 | AM6: 43.177925
F7: Upper LIC | H7: 79.54116667 | I7: 79.1626 | J7: 78.78403333 | K7: 78.40546667 | L7: 78.0269 | M7: 77.64833333 | N7: 77.334425 | O7: 77.02051667 | P7: 76.70660833 | Q7: 76.3927 | R7: 76.07879167 | S7: 75.809625 | T7: 75.54045833 | U7: 75.27129167 | V7: 75.002125 | W7: 74.73295833 | X7: 74.453175 | Y7: 74.17339167 | Z7: 73.89360833 | AA7: 73.613825 | AB7: 73.33404167 | AC7: 73.02190833 | AD7: 72.709775 | AE7: 72.39764167 | AF7: 72.08550833 | AG7: 71.773375 | AH7: 71.446025 | AI7: 71.118675 | AJ7: 70.791325 | AK7: 70.463975 | AL7: 70.136625 | AM7: 69.76895833
A9: WB | B9: Rural population (% of total population) | C9: SP.RUR.TOTL.ZS | D9: Ghana | E9: GHA | F9: (Ghana) | G9: =COUNT(H9:AN9) -> 32 | H9: 68.833 | I9: 68.4872 | J9: 68.1414 | K9: 67.7956 | L9: 67.4498 | M9: 67.104 | N9: 66.395 | O9: 65.686 | P9: 64.977 | Q9: 64.268 | R9: 63.559 | S9: 62.8194 | T9: 62.0798 | U9: 61.3402 | V9: 60.6006 | W9: 59.861 | X9: 59.098 | Y9: 58.335 | Z9: 57.572 | AA9: 56.809 | AB9: 56.046 | AC9: 55.298 | AD9: 54.55 | AE9: 53.802 | AF9: 53.054 | AG9: 52.306 | AH9: 51.6018 | AI9: 50.8976 | AJ9: 50.1934 | AK9: 49.4892 | AL9: 48.785 | AM9: 48.1316
A10: WB | B10: Rural population (% of total population) | C10: SP.RUR.TOTL.ZS | D10: Botswana | E10: BWA | F10: Aspirational MIC | G10: 32 | H10: 83.521 | I10: 81.472 | J10: 79.423 | K10: 77.374 | L10: 75.325 | M10: 73.276 | N10: 70.2342 | O10: 67.1924 | P10: 64.1506 | Q10: 61.1088 | R10: 58.067 | S10: 56.6574 | T10: 55.2478 | U10: 53.8382 | V10: 52.4286 | W10: 51.019 | X10: 50.1714 | Y10: 49.3238 | Z10: 48.4762 | AA10: 47.6286 | AB10: 46.781 | AC10: 45.9608 | AD10: 45.1406 | AE10: 44.3204 | AF10: 43.5002 | AG10: 42.68 | AH10: 41.9486 | AI10: 41.2172 | AJ10: 40.4858 | AK10: 39.7544 | AL10: 39.023 | AM10: 38.3852
A11: WB | B11: Rural population (% of total population) | C11: SP.RUR.TOTL.ZS | D11: Brazil | E11: BRA | F11: Aspirational MIC | G11: 32 | H11: 34.532 | I11: 33.6532 | J11: 32.7744 | K11: 31.8956 | L11: 31.0168 | M11: 30.138 | N11: 29.326 | O11: 28.514 | P11: 27.702 | Q11: 26.89 | R11: 26.078 | S11: 25.3404 | T11: 24.6028 | U11: 23.8652 | V11: 23.1276 | W11: 22.39 | X11: 21.6736 | Y11: 20.9572 | Z11: 20.2408 | AA11: 19.5244 | AB11: 18.808 | AC11: 18.4796 | AD11: 18.1512 | AE11: 17.8228 | AF11: 17.4944 | AG11: 17.166 | AH11: 16.8658 | AI11: 16.5656 | AJ11: 16.2654 | AK11: 15.9652 | AL11: 15.665 | AM11: 15.3968
A12: WB | B12: Rural population (% of total population) | C12: SP.RUR.TOTL.ZS | D12: China | E12: CHN | F12: Aspirational MIC | G12: 32 | H12: 80.642 | I12: 79.9388 | J12: 79.2356 | K12: 78.5324 | L12: 77.8292 | M12: 77.126 | N12: 76.4124 | O12: 75.6988 | P12: 74.9852 | Q12: 74.2716 | R12: 73.558 | S12: 72.6542 | T12: 71.7504 | U12: 70.8466 | V12: 69.9428 | W12: 69.039 | X12: 68.0558 | Y12: 67.0726 | Z12: 66.0894 | AA12: 65.1062 | AB12: 64.123 | AC12: 62.794 | AD12: 61.465 | AE12: 60.136 | AF12: 58.807 | AG12: 57.478 | AH12: 56.1372 | AI12: 54.7964 | AJ12: 53.4556 | AK12: 52.1148 | AL12: 50.774 | AM12: 49.4992
A13: WB | B13: Rural population (% of total population) | C13: SP.RUR.TOTL.ZS | D13: Indonesia | E13: IDN | F13: Aspirational MIC | G13: 32 | H13: 77.896 | I13: 77.099 | J13: 76.302 | K13: 75.505 | L13: 74.708 | M13: 73.911 | N13: 73.012 | O13: 72.113 | P13: 71.214 | Q13: 70.315 | R13: 69.416 | S13: 68.422 | T13: 67.428 | U13: 66.434 | V13: 65.44 | W13: 64.446 | X13: 63.1564 | Y13: 61.8668 | Z13: 60.5772 | AA13: 59.2876 | AB13: 57.998 | AC13: 57.211 | AD13: 56.424 | AE13: 55.637 | AF13: 54.85 | AG13: 54.063 | AH13: 53.2656 | AI13: 52.4682 | AJ13: 51.6708 | AK13: 50.8734 | AL13: 50.076 | AM13: 49.3142
A14: WB | B14: Rural population (% of total population) | C14: SP.RUR.TOTL.ZS | D14: Malaysia | E14: MYS | F14: Aspirational MIC | G14: 32 | H14: 57.956 | I14: 57.1862 | J14: 56.4164 | K14: 55.6466 | L14: 54.8768 | M14: 54.107 | N14: 53.3268 | O14: 52.5466 | P14: 51.7664 | Q14: 50.9862 | R14: 50.206 | S14: 49.0272 | T14: 47.8484 | U14: 46.6696 | V14: 45.4908 | W14: 44.312 | X14: 43.0542 | Y14: 41.7964 | Z14: 40.5386 | AA14: 39.2808 | AB14: 38.023 | AC14: 36.9034 | AD14: 35.7838 | AE14: 34.6642 | AF14: 33.5446 | AG14: 32.425 | AH14: 31.5388 | AI14: 30.6526 | AJ14: 29.7664 | AK14: 28.8802 | AL14: 27.994 | AM14: 27.316
A15: WB | B15: Rural population (% of total population) | C15: SP.RUR.TOTL.ZS | D15: Namibia | E15: NAM | F15: Aspirational MIC | G15: 32 | H15: 74.934 | I15: 74.674 | J15: 74.414 | K15: 74.154 | L15: 73.894 | M15: 73.634 | N15: 73.376 | O15: 73.118 | P15: 72.86 | Q15: 72.602 | R15: 72.344 | S15: 71.9126 | T15: 71.4812 | U15: 71.0498 | V15: 70.6184 | W15: 70.187 | X15: 69.675 | Y15: 69.163 | Z15: 68.651 | AA15: 68.139 | AB15: 67.627 | AC15: 67.093 | AD15: 66.559 | AE15: 66.025 | AF15: 65.491 | AG15: 64.957 | AH15: 64.402 | AI15: 63.847 | AJ15: 63.292 | AK15: 62.737 | AL15: 62.182 | AM15: 61.6092
A16: WB | B16: Rural population (% of total population) | C16: SP.RUR.TOTL.ZS | D16: South Africa | E16: ZAF | F16: Aspirational MIC | G16: 32 | H16: 51.575 | I16: 51.3856 | J16: 51.1962 | K16: 51.0068 | L16: 50.8174 | M16: 50.628 | N16: 50.095 | O16: 49.562 | P16: 49.029 | Q16: 48.496 | R16: 47.963 | S16: 47.4732 | T16: 46.9834 | U16: 46.4936 | V16: 46.0038 | W16: 45.514 | X16: 45.033 | Y16: 44.552 | Z16: 44.071 | AA16: 43.59 | AB16: 43.109 | AC16: 42.636 | AD16: 42.163 | AE16: 41.69 | AF16: 41.217 | AG16: 40.744 | AH16: 40.286 | AI16: 39.828 | AJ16: 39.37 | AK16: 38.912 | AL16: 38.454 | AM16: 38.0132
A17: WB | B17: Rural population (% of total population) | C17: SP.RUR.TOTL.ZS | D17: Thailand | E17: THA | F17: Aspirational MIC | G17: 32 | H17: 73.209 | I17: 72.9482 | J17: 72.6874 | K17: 72.4266 | L17: 72.1658 | M17: 71.905 | N17: 71.6392 | O17: 71.3734 | P17: 71.1076 | Q17: 70.8418 | R17: 70.576 | S17: 70.4056 | T17: 70.2352 | U17: 70.0648 | V17: 69.8944 | W17: 69.724 | X17: 69.5506 | Y17: 69.3772 | Z17: 69.2038 | AA17: 69.0304 | AB17: 68.857 | AC17: 68.6374 | AD17: 68.4178 | AE17: 68.1982 | AF17: 67.9786 | AG17: 67.759 | AH17: 67.4612 | AI17: 67.1634 | AJ17: 66.8656 | AK17: 66.5678 | AL17: 66.27 | AM17: 65.8896
A18: WB | B18: Rural population (% of total population) | C18: SP.RUR.TOTL.ZS | D18: Cote d'Ivoire | E18: CIV | F18: Comparable LMIC | G18: 32 | H18: 63.171 | I18: 62.9548 | J18: 62.7386 | K18: 62.5224 | L18: 62.3062 | M18: 62.09 | N18: 61.803 | O18: 61.516 | P18: 61.229 | Q18: 60.942 | R18: 60.655 | S18: 60.282 | T18: 59.909 | U18: 59.536 | V18: 59.163 | W18: 58.79 | X18: 58.3238 | Y18: 57.8576 | Z18: 57.3914 | AA18: 56.9252 | AB18: 56.459 | AC18: 55.8 | AD18: 55.141 | AE18: 54.482 | AF18: 53.823 | AG18: 53.164 | AH18: 52.4198 | AI18: 51.6756 | AJ18: 50.9314 | AK18: 50.1872 | AL18: 49.443 | AM18: 48.7202
A19: WB | B19: Rural population (% of total population) | C19: SP.RUR.TOTL.ZS | D19: Honduras | E19: HND | F19: Comparable LMIC | G19: 32 | H19: 65.13 | I19: 64.557 | J19: 63.984 | K19: 63.411 | L19: 62.838 | M19: 62.265 | N19: 61.72 | O19: 61.175 | P19: 60.63 | Q19: 60.085 | R19: 59.54 | S19: 59.0438 | T19: 58.5476 | U19: 58.0514 | V19: 57.5552 | W19: 57.059 | X19: 56.5556 | Y19: 56.0522 | Z19: 55.5488 | AA19: 55.0454 | AB19: 54.542 | AC19: 53.9038 | AD19: 53.2656 | AE19: 52.6274 | AF19: 51.9892 | AG19: 51.351 | AH19: 50.7654 | AI19: 50.1798 | AJ19: 49.5942 | AK19: 49.0086 | AL19: 48.423 | AM19: 47.849
A20: WB | B20: Rural population (% of total population) | C20: SP.RUR.TOTL.ZS | D20: India | E20: IND | F20: Comparable LMIC | G20: 32 | H20: 76.902 | I20: 76.652 | J20: 76.402 | K20: 76.152 | L20: 75.902 | M20: 75.652 | N20: 75.4122 | O20: 75.1724 | P20: 74.9326 | Q20: 74.6928 | R20: 74.453 | S20: 74.241 | T20: 74.029 | U20: 73.817 | V20: 73.605 | W20: 73.393 | X20: 73.181 | Y20: 72.969 | Z20: 72.757 | AA20: 72.545 | AB20: 72.333 | AC20: 72.0194 | AD20: 71.7058 | AE20: 71.3922 | AF20: 71.0786 | AG20: 70.765 | AH20: 70.426 | AI20: 70.087 | AJ20: 69.748 | AK20: 69.409 | AL20: 69.07 | AM20: 68.705
A21: WB | B21: Rural population (% of total population) | C21: SP.RUR.TOTL.ZS | D21: Nigeria | E21: NGA | F21: Comparable LMIC | G21: 32 | H21: 71.418 | I21: 70.767 | J21: 70.116 | K21: 69.465 | L21: 68.814 | M21: 68.163 | N21: 67.474 | O21: 66.785 | P21: 66.096 | Q21: 65.407 | R21: 64.718 | S21: 64.0058 | T21: 63.2936 | U21: 62.5814 | V21: 61.8692 | W21: 61.157 | X21: 60.4554 | Y21: 59.7538 | Z21: 59.0522 | AA21: 58.3506 | AB21: 57.649 | AC21: 56.9692 | AD21: 56.2894 | AE21: 55.6096 | AF21: 54.9298 | AG21: 54.25 | AH21: 53.5998 | AI21: 52.9496 | AJ21: 52.2994 | AK21: 51.6492 | AL21: 50.999 | AM21: 50.3848
A22: WB | B22: Rural population (% of total population) | C22: SP.RUR.TOTL.ZS | D22: Paraguay | E22: PRY | F22: Comparable LMIC | G22: 32 | H22: 58.312 | I22: 57.653 | J22: 56.994 | K22: 56.335 | L22: 55.676 | M22: 55.017 | N22: 54.2748 | O22: 53.5326 | P22: 52.7904 | Q22: 52.0482 | R22: 51.306 | S22: 50.6186 | T22: 49.9312 | U22: 49.2438 | V22: 48.5564 | W22: 47.869 | X22: 47.229 | Y22: 46.589 | Z22: 45.949 | AA22: 45.309 | AB22: 44.669 | AC22: 44.0422 | AD22: 43.4154 | AE22: 42.7886 | AF22: 42.1618 | AG22: 41.535 | AH22: 40.9532 | AI22: 40.3714 | AJ22: 39.7896 | AK22: 39.2078 | AL22: 38.626 | AM22: 38.0952
A23: WB | B23: Rural population (% of total population) | C23: SP.RUR.TOTL.ZS | D23: Senegal | E23: SEN | F23: Comparable LMIC | G23: 32 | H23: 64.231 | I23: 63.875 | J23: 63.519 | K23: 63.163 | L23: 62.807 | M23: 62.451 | N23: 62.1808 | O23: 61.9106 | P23: 61.6404 | Q23: 61.3702 | R23: 61.1 | S23: 60.956 | T23: 60.812 | U23: 60.668 | V23: 60.524 | W23: 60.38 | X23: 60.235 | Y23: 60.09 | Z23: 59.945 | AA23: 59.8 | AB23: 59.655 | AC23: 59.4998 | AD23: 59.3446 | AE23: 59.1894 | AF23: 59.0342 | AG23: 58.879 | AH23: 58.6528 | AI23: 58.4266 | AJ23: 58.2004 | AK23: 57.9742 | AL23: 57.748 | AM23: 57.4402
A24: WB | B24: Rural population (% of total population) | C24: SP.RUR.TOTL.ZS | D24: Vietnam | E24: VNM | F24: Comparable LMIC | G24: 32 | H24: 80.753 | I24: 80.6902 | J24: 80.6274 | K24: 80.5646 | L24: 80.5018 | M24: 80.439 | N24: 80.3002 | O24: 80.1614 | P24: 80.0226 | Q24: 79.8838 | R24: 79.745 | S24: 79.3586 | T24: 78.9722 | U24: 78.5858 | V24: 78.1994 | W24: 77.813 | X24: 77.3756 | Y24: 76.9382 | Z24: 76.5008 | AA24: 76.0634 | AB24: 75.626 | AC24: 75.0446 | AD24: 74.4632 | AE24: 73.8818 | AF24: 73.3004 | AG24: 72.719 | AH24: 72.0966 | AI24: 71.4742 | AJ24: 70.8518 | AK24: 70.2294 | AL24: 69.607 | AM24: 68.9644
A25: WB | B25: Rural population (% of total population) | C25: SP.RUR.TOTL.ZS | D25: Zambia | E25: ZMB | F25: Comparable LMIC | G25: 32 | H25: 60.185 | I25: 60.217 | J25: 60.249 | K25: 60.281 | L25: 60.313 | M25: 60.345 | N25: 60.3946 | O25: 60.4442 | P25: 60.4938 | Q25: 60.5434 | R25: 60.593 | S25: 61.0536 | T25: 61.5142 | U25: 61.9748 | V25: 62.4354 | W25: 62.896 | X25: 63.3564 | Y25: 63.8168 | Z25: 64.2772 | AA25: 64.7376 | AB25: 65.198 | AC25: 64.836 | AD25: 64.474 | AE25: 64.112 | AF25: 63.75 | AG25: 63.388 | AH25: 62.9654 | AI25: 62.5428 | AJ25: 62.1202 | AK25: 61.6976 | AL25: 61.275 | AM25: 60.8346
A26: WB | B26: Rural population (% of total population) | C26: SP.RUR.TOTL.ZS | D26: Angola | E26: AGO | F26: Upper LIC | G26: 32 | H26: 75.702 | I26: 74.494 | J26: 73.286 | K26: 72.078 | L26: 70.87 | M26: 69.662 | N26: 68.3008 | O26: 66.9396 | P26: 65.5784 | Q26: 64.2172 | R26: 62.856 | S26: 61.4872 | T26: 60.1184 | U26: 58.7496 | V26: 57.3808 | W26: 56.012 | X26: 55.0122 | Y26: 54.0124 | Z26: 53.0126 | AA26: 52.0128 | AB26: 51.013 | AC26: 50.0218 | AD26: 49.0306 | AE26: 48.0394 | AF26: 47.0482 | AG26: 46.057 | AH26: 45.1698 | AI26: 44.2826 | AJ26: 43.3954 | AK26: 42.5082 | AL26: 41.621 | AM26: 40.8574
A27: WB | B27: Rural population (% of total population) | C27: SP.RUR.TOTL.ZS | D27: Bangladesh | E27: BGD | F27: Upper LIC | G27: 32 | H27: 85.149 | I27: 84.62 | J27: 84.091 | K27: 83.562 | L27: 83.033 | M27: 82.504 | N27: 82.041 | O27: 81.578 | P27: 81.115 | Q27: 80.652 | R27: 80.189 | S27: 79.8126 | T27: 79.4362 | U27: 79.0598 | V27: 78.6834 | W27: 78.307 | X27: 77.9276 | Y27: 77.5482 | Z27: 77.1688 | AA27: 76.7894 | AB27: 76.41 | AC27: 76.0008 | AD27: 75.5916 | AE27: 75.1824 | AF27: 74.7732 | AG27: 74.364 | AH27: 73.9124 | AI27: 73.4608 | AJ27: 73.0092 | AK27: 72.5576 | AL27: 72.106 | AM27: 71.6098
A28: WB | B28: Rural population (% of total population) | C28: SP.RUR.TOTL.ZS | D28: Benin | E28: BEN | F28: Upper LIC | G28: 32 | H28: 72.661 | I28: 71.9696 | J28: 71.2782 | K28: 70.5868 | L28: 69.8954 | M28: 69.204 | N28: 68.4662 | O28: 67.7284 | P28: 66.9906 | Q28: 66.2528 | R28: 65.515 | S28: 65.0604 | T28: 64.6058 | U28: 64.1512 | V28: 63.6966 | W28: 63.242 | X28: 62.927 | Y28: 62.612 | Z28: 62.297 | AA28: 61.982 | AB28: 61.667 | AC28: 61.133 | AD28: 60.599 | AE28: 60.065 | AF28: 59.531 | AG28: 58.997 | AH28: 58.346 | AI28: 57.695 | AJ28: 57.044 | AK28: 56.393 | AL28: 55.742 | AM28: 55.0914
A29: WB | B29: Rural population (% of total population) | C29: SP.RUR.TOTL.ZS | D29: Burkina Faso | E29: BFA | F29: Upper LIC | G29: 32 | H29: 91.195 | I29: 90.4892 | J29: 89.7834 | K29: 89.0776 | L29: 88.3718 | M29: 87.666 | N29: 87.3698 | O29: 87.0736 | P29: 86.7774 | Q29: 86.4812 | R29: 86.185 | S29: 85.9218 | T29: 85.6586 | U29: 85.3954 | V29: 85.1322 | W29: 84.869 | X29: 84.3264 | Y29: 83.7838 | Z29: 83.2412 | AA29: 82.6986 | AB29: 82.156 | AC29: 81.4174 | AD29: 80.6788 | AE29: 79.9402 | AF29: 79.2016 | AG29: 78.463 | AH29: 77.637 | AI29: 76.811 | AJ29: 75.985 | AK29: 75.159 | AL29: 74.333 | AM29: 73.491
A30: WB | B30: Rural population (% of total population) | C30: SP.RUR.TOTL.ZS | D30: Burundi | E30: BDI | F30: Upper LIC | G30: 32 | H30: 95.661 | I30: 95.4846 | J30: 95.3082 | K30: 95.1318 | L30: 94.9554 | M30: 94.779 | N30: 94.569 | O30: 94.359 | P30: 94.149 | Q30: 93.939 | R30: 93.729 | S30: 93.541 | T30: 93.353 | U30: 93.165 | V30: 92.977 | W30: 92.789 | X30: 92.582 | Y30: 92.375 | Z30: 92.168 | AA30: 91.961 | AB30: 91.754 | AC30: 91.5282 | AD30: 91.3024 | AE30: 91.0766 | AF30: 90.8508 | AG30: 90.625 | AH30: 90.3716 | AI30: 90.1182 | AJ30: 89.8648 | AK30: 89.6114 | AL30: 89.358 | AM30: 89.072
A31: WB | B31: Rural population (% of total population) | C31: SP.RUR.TOTL.ZS | D31: Cambodia | E31: KHM | F31: Upper LIC | G31: 32 | H31: 91.028 | I31: 90.0362 | J31: 89.0444 | K31: 88.0526 | L31: 87.0608 | M31: 86.069 | N31: 85.746 | O31: 85.423 | P31: 85.1 | Q31: 84.777 | R31: 84.454 | S31: 84.101 | T31: 83.748 | U31: 83.395 | V31: 83.042 | W31: 82.689 | X31: 82.434 | Y31: 82.179 | Z31: 81.924 | AA31: 81.669 | AB31: 81.414 | AC31: 81.2964 | AD31: 81.1788 | AE31: 81.0612 | AF31: 80.9436 | AG31: 80.826 | AH31: 80.698 | AI31: 80.57 | AJ31: 80.442 | AK31: 80.314 | AL31: 80.186 | AM31: 79.997
A32: WB | B32: Rural population (% of total population) | C32: SP.RUR.TOTL.ZS | D32: Chad | E32: TCD | F32: Upper LIC | G32: 32 | H32: 81.213 | I32: 81.0146 | J32: 80.8162 | K32: 80.6178 | L32: 80.4194 | M32: 80.221 | N32: 80.0146 | O32: 79.8082 | P32: 79.6018 | Q32: 79.3954 | R32: 79.189 | S32: 79.063 | T32: 78.937 | U32: 78.811 | V32: 78.685 | W32: 78.559 | X32: 78.5404 | Y32: 78.5218 | Z32: 78.5032 | AA32: 78.4846 | AB32: 78.466 | AC32: 78.4474 | AD32: 78.4288 | AE32: 78.4102 | AF32: 78.3916 | AG32: 78.373 | AH32: 78.3506 | AI32: 78.3282 | AJ32: 78.3058 | AK32: 78.2834 | AL32: 78.261 | AM32: 78.1706
A33: WB | B33: Rural population (% of total population) | C33: SP.RUR.TOTL.ZS | D33: Ethiopia | E33: ETH | F33: Upper LIC | G33: 32 | H33: 89.59 | I33: 89.3814 | J33: 89.1728 | K33: 88.9642 | L33: 88.7556 | M33: 88.547 | N33: 88.3134 | O33: 88.0798 | P33: 87.8462 | Q33: 87.6126 | R33: 87.379 | S33: 87.1378 | T33: 86.8966 | U33: 86.6554 | V33: 86.4142 | W33: 86.173 | X33: 85.9906 | Y33: 85.8082 | Z33: 85.6258 | AA33: 85.4434 | AB33: 85.261 | AC33: 85.0688 | AD33: 84.8766 | AE33: 84.6844 | AF33: 84.4922 | AG33: 84.3 | AH33: 84.0886 | AI33: 83.8772 | AJ33: 83.6658 | AK33: 83.4544 | AL33: 83.243 | AM33: 82.9816
A34: WB | B34: Rural population (% of total population) | C34: SP.RUR.TOTL.ZS | D34: Georgia | E34: GEO | F34: Upper LIC | G34: 32 | H34: 47.503 | I34: 47.1636 | J34: 46.8242 | K34: 46.4848 | L34: 46.1454 | M34: 45.806 | N34: 45.6372 | O34: 45.4684 | P34: 45.2996 | Q34: 45.1308 | R34: 44.962 | S34: 45.2014 | T34: 45.4408 | U34: 45.6802 | V34: 45.9196 | W34: 46.159 | X34: 46.3996 | Y34: 46.6402 | Z34: 46.8808 | AA34: 47.1214 | AB34: 47.362 | AC34: 47.3956 | AD34: 47.4292 | AE34: 47.4628 | AF34: 47.4964 | AG34: 47.53 | AH34: 47.4756 | AI34: 47.4212 | AJ34: 47.3668 | AK34: 47.3124 | AL34: 47.258 | AM34: 47.1392
A35: WB | B35: Rural population (% of total population) | C35: SP.RUR.TOTL.ZS | D35: Kenya | E35: KEN | F35: Upper LIC | G35: 32 | H35: 84.417 | I35: 84.3178 | J35: 84.2186 | K35: 84.1194 | L35: 84.0202 | M35: 83.921 | N35: 83.7872 | O35: 83.6534 | P35: 83.5196 | Q35: 83.3858 | R35: 83.252 | S35: 82.949 | T35: 82.646 | U35: 82.343 | V35: 82.04 | W35: 81.737 | X35: 81.4112 | Y35: 81.0854 | Z35: 80.7596 | AA35: 80.4338 | AB35: 80.108 | AC35: 79.7514 | AD35: 79.3948 | AE35: 79.0382 | AF35: 78.6816 | AG35: 78.325 | AH35: 77.9458 | AI35: 77.5666 | AJ35: 77.1874 | AK35: 76.8082 | AL35: 76.429 | AM35: 76.0158
A36: WB | B36: Rural population (% of total population) | C36: SP.RUR.TOTL.ZS | D36: Kyrgyz Republic | E36: KGZ | F36: Upper LIC | G36: 32 | H36: 61.373 | I36: 61.423 | J36: 61.473 | K36: 61.523 | L36: 61.573 | M36: 61.623 | N36: 61.743 | O36: 61.863 | P36: 61.983 | Q36: 62.103 | R36: 62.223 | S36: 62.5086 | T36: 62.7942 | U36: 63.0798 | V36: 63.3654 | W36: 63.651 | X36: 63.8612 | Y36: 64.0714 | Z36: 64.2816 | AA36: 64.4918 | AB36: 64.702 | AC36: 64.7036 | AD36: 64.7052 | AE36: 64.7068 | AF36: 64.7084 | AG36: 64.71 | AH36: 64.7072 | AI36: 64.7044 | AJ36: 64.7016 | AK36: 64.6988 | AL36: 64.696 | AM36: 64.6104
A37: WB | B37: Rural population (% of total population) | C37: SP.RUR.TOTL.ZS | D37: Lao PDR | E37: LAO | F37: Upper LIC | G37: 32 | H37: 87.623 | I37: 87.3376 | J37: 87.0522 | K37: 86.7668 | L37: 86.4814 | M37: 86.196 | N37: 85.8694 | O37: 85.5428 | P37: 85.2162 | Q37: 84.8896 | R37: 84.563 | S37: 84.1748 | T37: 83.7866 | U37: 83.3984 | V37: 83.0102 | W37: 82.622 | X37: 81.7022 | Y37: 80.7824 | Z37: 79.8626 | AA37: 78.9428 | AB37: 78.023 | AC37: 76.9412 | AD37: 75.8594 | AE37: 74.7776 | AF37: 73.6958 | AG37: 72.614 | AH37: 71.467 | AI37: 70.32 | AJ37: 69.173 | AK37: 68.026 | AL37: 66.879 | AM37: 65.7776
A38: WB | B38: Rural population (% of total population) | C38: SP.RUR.TOTL.ZS | D38: Liberia | E38: LBR | F38: Upper LIC | G38: 32 | H38: 64.833 | I38: 64.013 | J38: 63.193 | K38: 62.373 | L38: 61.553 | M38: 60.733 | N38: 60.3994 | O38: 60.0658 | P38: 59.7322 | Q38: 59.3986 | R38: 59.065 | S38: 58.7272 | T38: 58.3894 | U38: 58.0516 | V38: 57.7138 | W38: 57.376 | X38: 57.0346 | Y38: 56.6932 | Z38: 56.3518 | AA38: 56.0104 | AB38: 55.669 | AC38: 55.325 | AD38: 54.981 | AE38: 54.637 | AF38: 54.293 | AG38: 53.949 | AH38: 53.599 | AI38: 53.249 | AJ38: 52.899 | AK38: 52.549 | AL38: 52.199 | AM38: 51.8178
A39: WB | B39: Rural population (% of total population) | C39: SP.RUR.TOTL.ZS | D39: Malawi | E39: MWI | F39: Upper LIC | G39: 32 | H39: 90.95 | I39: 90.7274 | J39: 90.5048 | K39: 90.2822 | L39: 90.0596 | M39: 89.837 | N39: 89.5576 | O39: 89.2782 | P39: 88.9988 | Q39: 88.7194 | R39: 88.44 | S39: 88.0994 | T39: 87.7588 | U39: 87.4182 | V39: 87.0776 | W39: 86.737 | X39: 86.4676 | Y39: 86.1982 | Z39: 85.9288 | AA39: 85.6594 | AB39: 85.39 | AC39: 85.3012 | AD39: 85.2124 | AE39: 85.1236 | AF39: 85.0348 | AG39: 84.946 | AH39: 84.8482 | AI39: 84.7504 | AJ39: 84.6526 | AK39: 84.5548 | AL39: 84.457 | AM39: 84.3044
A40: WB | B40: Rural population (% of total population) | C40: SP.RUR.TOTL.ZS | D40: Mozambique | E40: MOZ | F40: Upper LIC | G40: 32 | H40: 86.889 | I40: 86.162 | J40: 85.435 | K40: 84.708 | L40: 83.981 | M40: 83.254 | N40: 82.384 | O40: 81.514 | P40: 80.644 | Q40: 79.774 | R40: 78.904 | S40: 77.879 | T40: 76.854 | U40: 75.829 | V40: 74.804 | W40: 73.779 | X40: 73.2036 | Y40: 72.6282 | Z40: 72.0528 | AA40: 71.4774 | AB40: 70.902 | AC40: 70.7218 | AD40: 70.5416 | AE40: 70.3614 | AF40: 70.1812 | AG40: 70.001 | AH40: 69.8092 | AI40: 69.6174 | AJ40: 69.4256 | AK40: 69.2338 | AL40: 69.042 | AM40: 68.7844
A41: WB | B41: Rural population (% of total population) | C41: SP.RUR.TOTL.ZS | D41: Rwanda | E41: RWA | F41: Upper LIC | G41: 32 | H41: 95.279 | I41: 95.2118 | J41: 95.1446 | K41: 95.0774 | L41: 95.0102 | M41: 94.943 | N41: 94.8712 | O41: 94.7994 | P41: 94.7276 | Q41: 94.6558 | R41: 94.584 | S41: 94.0084 | T41: 93.4328 | U41: 92.8572 | V41: 92.2816 | W41: 91.706 | X41: 90.6104 | Y41: 89.5148 | Z41: 88.4192 | AA41: 87.3236 | AB41: 86.228 | AC41: 85.4746 | AD41: 84.7212 | AE41: 83.9678 | AF41: 83.2144 | AG41: 82.461 | AH41: 82.2068 | AI41: 81.9526 | AJ41: 81.6984 | AK41: 81.4442 | AL41: 81.19 | AM41: 80.8808
A42: WB | B42: Rural population (% of total population) | C42: SP.RUR.TOTL.ZS | D42: Sierra Leone | E42: SLE | F42: Upper LIC | G42: 32 | H42: 70.895 | I42: 70.4022 | J42: 69.9094 | K42: 69.4166 | L42: 68.9238 | M42: 68.431 | N42: 68.1384 | O42: 67.8458 | P42: 67.5532 | Q42: 67.2606 | R42: 66.968 | S42: 66.6912 | T42: 66.4144 | U42: 66.1376 | V42: 65.8608 | W42: 65.584 | X42: 65.3018 | Y42: 65.0196 | Z42: 64.7374 | AA42: 64.4552 | AB42: 64.173 | AC42: 63.8858 | AD42: 63.5986 | AE42: 63.3114 | AF42: 63.0242 | AG42: 62.737 | AH42: 62.4144 | AI42: 62.0918 | AJ42: 61.7692 | AK42: 61.4466 | AL42: 61.124 | AM42: 60.7442
A43: WB | B43: Rural population (% of total population) | C43: SP.RUR.TOTL.ZS | D43: Sri Lanka | E43: LKA | F43: Upper LIC | G43: 32 | H43: 81.221 | I43: 81.38 | J43: 81.539 | K43: 81.698 | L43: 81.857 | M43: 82.016 | N43: 82.173 | O43: 82.33 | P43: 82.487 | Q43: 82.644 | R43: 82.801 | S43: 82.9528 | T43: 83.1046 | U43: 83.2564 | V43: 83.4082 | W43: 83.56 | X43: 83.7062 | Y43: 83.8524 | Z43: 83.9986 | AA43: 84.1448 | AB43: 84.291 | AC43: 84.4074 | AD43: 84.5238 | AE43: 84.6402 | AF43: 84.7566 | AG43: 84.873 | AH43: 84.8902 | AI43: 84.9074 | AJ43: 84.9246 | AK43: 84.9418 | AL43: 84.959 | AM43: 84.8736
A44: WB | B44: Rural population (% of total population) | C44: SP.RUR.TOTL.ZS | D44: Tajikistan | E44: TJK | F44: Upper LIC | G44: 32 | H44: 65.711 | I44: 65.9218 | J44: 66.1326 | K44: 66.3434 | L44: 66.5542 | M44: 66.765 | N44: 67.0804 | O44: 67.3958 | P44: 67.7112 | Q44: 68.0266 | R44: 68.342 | S44: 68.8982 | T44: 69.4544 | U44: 70.0106 | V44: 70.5668 | W44: 71.123 | X44: 71.601 | Y44: 72.079 | Z44: 72.557 | AA44: 73.035 | AB44: 73.513 | AC44: 73.5246 | AD44: 73.5362 | AE44: 73.5478 | AF44: 73.5594 | AG44: 73.571 | AH44: 73.5568 | AI44: 73.5426 | AJ44: 73.5284 | AK44: 73.5142 | AL44: 73.5 | AM44: 73.446
A45: WB | B45: Rural population (% of total population) | C45: SP.RUR.TOTL.ZS | D45: Tanzania | E45: TZA | F45: Upper LIC | G45: 32 | H45: 85.445 | I45: 85.0026 | J45: 84.5602 | K45: 84.1178 | L45: 83.6754 | M45: 83.233 | N45: 82.8096 | O45: 82.3862 | P45: 81.9628 | Q45: 81.5394 | R45: 81.116 | S45: 80.7842 | T45: 80.4524 | U45: 80.1206 | V45: 79.7888 | W45: 79.457 | X45: 79.1038 | Y45: 78.7506 | Z45: 78.3974 | AA45: 78.0442 | AB45: 77.691 | AC45: 77.3144 | AD45: 76.9378 | AE45: 76.5612 | AF45: 76.1846 | AG45: 75.808 | AH45: 75.3906 | AI45: 74.9732 | AJ45: 74.5558 | AK45: 74.1384 | AL45: 73.721 | AM45: 73.2576
A46: WB | B46: Rural population (% of total population) | C46: SP.RUR.TOTL.ZS | D46: Togo | E46: TGO | F46: Upper LIC | G46: 32 | H46: 75.337 | I46: 74.9572 | J46: 74.5774 | K46: 74.1976 | L46: 73.8178 | M46: 73.438 | N46: 73.0326 | O46: 72.6272 | P46: 72.2218 | Q46: 71.8164 | R46: 71.411 | S46: 70.9878 | T46: 70.5646 | U46: 70.1414 | V46: 69.7182 | W46: 69.295 | X46: 68.8546 | Y46: 68.4142 | Z46: 67.9738 | AA46: 67.5334 | AB46: 67.093 | AC46: 66.6374 | AD46: 66.1818 | AE46: 65.7262 | AF46: 65.2706 | AG46: 64.815 | AH46: 64.3454 | AI46: 63.8758 | AJ46: 63.4062 | AK46: 62.9366 | AL46: 62.467 | AM46: 61.98
A47: WB | B47: Rural population (% of total population) | C47: SP.RUR.TOTL.ZS | D47: Uganda | E47: UGA | F47: Upper LIC | G47: 32 | H47: 92.466 | I47: 92.1424 | J47: 91.8188 | K47: 91.4952 | L47: 91.1716 | M47: 90.848 | N47: 90.4632 | O47: 90.0784 | P47: 89.6936 | Q47: 89.3088 | R47: 88.924 | S47: 88.8066 | T47: 88.6892 | U47: 88.5718 | V47: 88.4544 | W47: 88.337 | X47: 88.2532 | Y47: 88.1694 | Z47: 88.0856 | AA47: 88.0018 | AB47: 87.918 | AC47: 87.6848 | AD47: 87.4516 | AE47: 87.2184 | AF47: 86.9852 | AG47: 86.752 | AH47: 86.37 | AI47: 85.988 | AJ47: 85.606 | AK47: 85.224 | AL47: 84.842 | AM47: 84.421
A48: WB | B48: Rural population (% of total population) | C48: SP.RUR.TOTL.ZS | D48: Uzbekistan | E48: UZB | F48: Upper LIC | G48: 32 | H48: 59.218 | I48: 59.23 | J48: 59.242 | K48: 59.254 | L48: 59.266 | M48: 59.278 | N48: 59.388 | O48: 59.498 | P48: 59.608 | Q48: 59.718 | R48: 59.828 | S48: 60.1744 | T48: 60.5208 | U48: 60.8672 | V48: 61.2136 | W48: 61.56 | X48: 61.7622 | Y48: 61.9644 | Z48: 62.1666 | AA48: 62.3688 | AB48: 62.571 | AC48: 62.7216 | AD48: 62.8722 | AE48: 63.0228 | AF48: 63.1734 | AG48: 63.324 | AH48: 63.4184 | AI48: 63.5128 | AJ48: 63.6072 | AK48: 63.7016 | AL48: 63.796 | AM48: 63.752
A49: WB | B49: Rural population (% of total population) | C49: SP.RUR.TOTL.ZS | D49: Zimbabwe | E49: ZWE | F49: Upper LIC | G49: 32 | H49: 77.629 | I49: 77.0204 | J49: 76.4118 | K49: 75.8032 | L49: 75.1946 | M49: 74.586 | N49: 73.8712 | O49: 73.1564 | P49: 72.4416 | Q49: 71.7268 | R49: 71.012 | S49: 70.4632 | T49: 69.9144 | U49: 69.3656 | V49: 68.8168 | W49: 68.268 | X49: 67.8628 | Y49: 67.4576 | Z49: 67.0524 | AA49: 66.6472 | AB49: 66.242 | AC49: 65.8216 | AD49: 65.4012 | AE49: 64.9808 | AF49: 64.5604 | AG49: 64.14 | AH49: 63.686 | AI49: 63.232 | AJ49: 62.778 | AK49: 62.324 | AL49: 61.87 | AM49: 61.3794

Sheet Life expectancy
A1: Life expectancy at birth, total (years)
A3: Source | B3: Indicator Name | C3: Indicator Code | D3: Country Name | E3: Country Code | F3: Comparator group | G3: # years data available | H3: 1980 | I3: 1981 | J3: 1982 | K3: 1983 | L3: 1984 | M3: 1985 | N3: 1986 | O3: 1987 | P3: 1988 | Q3: 1989 | R3: 1990 | S3: 1991 | T3: 1992 | U3: 1993 | V3: 1994 | W3: 1995 | X3: 1996 | Y3: 1997 | Z3: 1998 | AA3: 1999 | AB3: 2000 | AC3: 2001 | AD3: 2002 | AE3: 2003 | AF3: 2004 | AG3: 2005 | AH3: 2006 | AI3: 2007 | AJ3: 2008 | AK3: 2009 | AL3: 2010 | AM3: 2011 | AN3: 2012
F4: Averages:
F5: Comparable LMIC | H5: =AVERAGEIF($F$9:$F$1475,$F5,H$9:H$1475) -> 54.17579573 | I5: 54.68072561 | J5: 55.14419512 | K5: 55.56172561 | L5: 55.9291128 | M5: 56.24209451 | N5: 56.50042073 | O5: 56.71129878 | P5: 56.88386585 | Q5: 57.02627134 | R5: =AVERAGEIF($F$9:$F$1475,$F5,R$9:R$1475) -> 57.14421037 | S5: 57.24240549 | T5: 57.3279878 | U5: 57.40926524 | V5: 57.49666463 | W5: 57.59948476 | X5: 57.72452134 | Y5: 57.87479878 | Z5: 58.05290549 | AA5: 58.26343598 | AB5: =AVERAGEIF($F$9:$F$1475,$F5,AB$9:AB$1475) -> 58.51111585 | AC5: 58.79896341 | AD5: 59.12334756 | AE5: 59.47816159 | AF5: 59.85872866 | AG5: 60.25905793 | AH5: 60.67374695 | AI5: 61.09520732 | AJ5: 61.51629268 | AK5: 61.92957927 | AL5: 62.32795732 | AM5: 62.706625
F6: Aspirational MIC | H6: 61.90178659 | I6: 62.39071037 | J6: 62.88117988 | K6: 63.36451524 | L6: 63.8319878 | M6: 64.27546037 | N6: 64.68702744 | O6: 65.05914634 | P6: 65.3833628 | Q6: 65.65037805 | R6: 65.84810061 | S6: 65.96569207 | T6: 66.00420732 | U6: 65.96906098 | V6: 65.86789634 | W6: 65.70170427 | X6: 65.4723872 | Y6: 65.19629878 | Z6: 64.89850915 | AA6: 64.60646341 | AB6: 64.36044817 | AC6: 64.1996128 | AD6: 64.14276829 | AE6: 64.19758232 | AF6: 64.36327439 | AG6: 64.62520732 | AH6: 64.95721951 | AI6: 65.3191189 | AJ6: 65.67652744 | AK6: 66.01094512 | AL6: 66.30945122 | AM6: 66.56972866
F7: Upper LIC | H7: 51.26227846 | I7: 51.69477541 | J7: 52.08937398 | K7: 52.43333638 | L7: 52.71403963 | M7: 52.91012907 | N7: 53.00263618 | O7: 52.9963374 | P7: 52.9073689 | Q7: 52.83689126 | R7: 52.66857215 | S7: 52.50431098 | T7: 52.35372866 | U7: 52.25372256 | V7: 52.22933537 | W7: 52.33394919 | X7: 52.56422256 | Y7: 52.83689126 | Z7: 53.1400437 | AA7: 53.46520224 | AB7: 53.88511382 | AC7: 54.27588313 | AD7: 54.66733435 | AE7: 55.12003455 | AF7: 55.58583435 | AG7: 56.06437703 | AH7: 56.55027541 | AI7: 57.05652541 | AJ7: 57.57740142 | AK7: 58.08864126 | AL7: 58.5629878 | AM7: 58.38947296
A9: WB | B9: Life expectancy at birth, total (years) | C9: SP.DYN.LE00.IN | D9: Ghana | E9: GHA | F9: (Ghana) | G9: =COUNT(H9:AN9) -> 32 | H9: 53.11043902 | I9: 53.40907317 | J9: 53.68946341 | K9: 53.96465854 | L9: 54.24553659 | M9: 54.55541463 | N9: 54.92056098 | O9: 55.34585366 | P9: 55.82468293 | Q9: 56.33804878 | R9: 56.84302439 | S9: 57.28629268 | T9: 57.63004878 | U9: 57.85595122 | V9: 57.96907317 | W9: 57.99292683 | X9: 57.9684878 | Y9: 57.95512195 | Z9: 58.0012439 | AA9: 58.13480488 | AB9: 58.3822439 | AC9: 58.75553659 | AD9: 59.23219512 | AE9: 59.78573171 | AF9: 60.39660976 | AG9: 61.03831707 | AH9: 61.68136585 | AI9: 62.3002439 | AJ9: 62.8735122 | AK9: 63.38817073 | AL9: 63.83726829 | AM9: 64.22431707
A10: WB | B10: Life expectancy at birth, total (years) | C10: SP.DYN.LE00.IN | D10: Botswana | E10: BWA | F10: Aspirational MIC | G10: 32 | H10: 60.45921951 | I10: 60.96595122 | J10: 61.46926829 | K10: 61.96665854 | L10: 62.44563415 | M10: 62.90014634 | N10: 63.32419512 | O10: 63.69178049 | P10: 63.96297561 | Q10: 64.09639024 | R10: 64.01717073 | S10: 63.648 | T10: 62.966 | U10: 61.97670732 | V10: 60.71163415 | W10: 59.19780488 | X10: 57.47765854 | Y10: 55.65153659 | Z10: 53.84170732 | AA10: 52.15895122 | AB10: 50.7654878 | AC10: 49.81156098 | AD10: 49.33753659 | AE10: 49.32734146 | AF10: 49.7374878 | AG10: 50.44656098 | AH10: 51.28431707 | AI10: 52.06895122 | AJ10: 52.66368293 | AK10: 53.01153659 | AL10: 53.1095122 | AM10: 53.0184878
A11: WB | B11: Life expectancy at birth, total (years) | C11: SP.DYN.LE00.IN | D11: Brazil | E11: BRA | F11: Aspirational MIC | G11: 32 | H11: 62.49658537 | I11: 62.89443902 | J11: 63.28790244 | K11: 63.67629268 | L11: 64.0597561 | M11: 64.43934146 | N11: 64.8164878 | O11: 65.19346341 | P11: 65.57260976 | Q11: 65.95436585 | R11: 66.34073171 | S11: 66.7342439 | T11: 67.13341463 | U11: 67.53680488 | V11: 67.94087805 | W11: 68.34063415 | X11: 68.73156098 | Y11: 69.10909756 | Z11: 69.4712439 | AA11: 69.81446341 | AB11: 70.13826829 | AC11: 70.43963415 | AD11: 70.72409756 | AE11: 70.99614634 | AF11: 71.26178049 | AG11: 71.52953659 | AH11: 71.81092683 | AI11: 72.10995122 | AJ11: 72.42709756 | AK11: 72.75980488 | AL11: 73.09953659 | AM11: 73.43521951
A12: WB | B12: Life expectancy at birth, total (years) | C12: SP.DYN.LE00.IN | D12: China | E12: CHN | F12: Aspirational MIC | G12: 32 | H12: 66.99380488 | I12: 67.26292683 | J12: 67.53490244 | K12: 67.79985366 | L12: 68.05926829 | M12: 68.31314634 | N12: 68.5594878 | O12: 68.79731707 | P12: 69.02712195 | Q12: 69.24692683 | R12: 69.45973171 | S12: 69.66402439 | T12: 69.86182927 | U12: 70.05463415 | V12: 70.24292683 | W12: 70.42473171 | X12: 70.59902439 | Y12: 70.76631707 | Z12: 70.92709756 | AA12: 71.08339024 | AB12: 71.24170732 | AC12: 71.40553659 | AD12: 71.57943902 | AE12: 71.76487805 | AF12: 71.96234146 | AG12: 72.17131707 | AH12: 72.38973171 | AI12: 72.61258537 | AJ12: 72.83534146 | AK12: 73.0565122 | AL12: 73.27309756 | AM12: 73.48563415
A13: WB | B13: Life expectancy at birth, total (years) | C13: SP.DYN.LE00.IN | D13: Indonesia | E13: IDN | F13: Aspirational MIC | G13: 32 | H13: 57.59112195 | I13: 58.09360976 | J13: 58.58409756 | K13: 59.06312195 | L13: 59.53063415 | M13: 59.98665854 | N13: 60.43119512 | O13: 60.86521951 | P13: 61.28826829 | Q13: 61.70080488 | R13: 62.10385366 | S13: 62.49690244 | T13: 62.88046341 | U13: 63.25453659 | V13: 63.62060976 | W13: 63.97770732 | X13: 64.32780488 | Y13: 64.66943902 | Z13: 65.00356098 | AA13: 65.33070732 | AB13: 65.64636585 | AC13: 65.94907317 | AD13: 66.23780488 | AE13: 66.51653659 | AF13: 66.7912439 | AG13: 67.07336585 | AH13: 67.37682927 | AI13: 67.70958537 | AJ13: 68.07514634 | AK13: 68.47097561 | AL13: 68.88965854 | AM13: 69.3192439
A14: WB | B14: Life expectancy at birth, total (years) | C14: SP.DYN.LE00.IN | D14: Malaysia | E14: MYS | F14: Aspirational MIC | G14: 32 | H14: 67.40285366 | I14: 67.70112195 | J14: 67.99139024 | K14: 68.27419512 | L14: 68.5505122 | M14: 68.81985366 | N14: 69.08270732 | O14: 69.33758537 | P14: 69.5864878 | Q14: 69.82941463 | R14: 70.06536585 | S14: 70.29582927 | T14: 70.52082927 | U14: 70.73985366 | V14: 70.95387805 | W14: 71.16343902 | X14: 71.3685122 | Y14: 71.56909756 | Z14: 71.76470732 | AA14: 71.95634146 | AB14: 72.1424878 | AC14: 72.32112195 | AD14: 72.49226829 | AE14: 72.65790244 | AF14: 72.82156098 | AG14: 72.98829268 | AH14: 73.16660976 | AI14: 73.35904878 | AJ14: 73.56812195 | AK14: 73.79080488 | AL14: 74.02456098 | AM14: 74.26085366
A15: WB | B15: Life expectancy at birth, total (years) | C15: SP.DYN.LE00.IN | D15: Namibia | E15: NAM | F15: Aspirational MIC | G15: 32 | H15: 57.80290244 | I15: 58.28717073 | J15: 58.7314878 | K15: 59.12836585 | L15: 59.47234146 | M15: 59.76941463 | N15: 60.02904878 | O15: 60.2602439 | P15: 60.466 | Q15: 60.64287805 | R15: 60.77741463 | S15: 60.85521951 | T15: 60.86131707 | U15: 60.7862439 | V15: 60.62802439 | W15: 60.36073171 | X15: 59.95790244 | Y15: 59.4344878 | Z15: 58.83185366 | AA15: 58.20585366 | AB15: 57.65773171 | AC15: 57.30121951 | AD15: 57.20165854 | AE15: 57.38895122 | AF15: 57.85358537 | AG15: 58.54412195 | AH15: 59.37426829 | AI15: 60.22326829 | AJ15: 60.98934146 | AK15: 61.61858537 | AL15: 62.07009756 | AM15: 62.33241463
A16: WB | B16: Life expectancy at birth, total (years) | C16: SP.DYN.LE00.IN | D16: South Africa | E16: ZAF | F16: Aspirational MIC | G16: 32 | H16: 56.97002439 | I16: 57.55960976 | J16: 58.1657561 | K16: 58.76792683 | L16: 59.34570732 | M16: 59.88507317 | N16: 60.37602439 | O16: 60.80714634 | P16: 61.1624878 | Q16: 61.41860976 | R16: 61.54960976 | S16: 61.53153659 | T16: 61.35692683 | U16: 61.02485366 | V16: 60.53882927 | W16: 59.88741463 | X16: 59.06270732 | Y16: 58.09112195 | Z16: 57.01760976 | AA16: 55.89253659 | AB16: 54.77631707 | AC16: 53.72731707 | AD16: 52.79241463 | AE16: 52.01343902 | AF16: 51.4252439 | AG16: 51.05968293 | AH16: 50.92965854 | AI16: 51.00365854 | AJ16: 51.24021951 | AK16: 51.61131707 | AL16: 52.0814878 | AM16: 52.61478049
A17: WB | B17: Life expectancy at birth, total (years) | C17: SP.DYN.LE00.IN | D17: Thailand | E17: THA | F17: Aspirational MIC | G17: 32 | H17: 65.49778049 | I17: 66.36085366 | J17: 67.28463415 | K17: 68.23970732 | L17: 69.19204878 | M17: 70.09004878 | N17: 70.87707317 | O17: 71.52041463 | P17: 72.00095122 | Q17: 72.31363415 | R17: 72.47092683 | S17: 72.49978049 | T17: 72.45287805 | U17: 72.37885366 | V17: 72.30639024 | W17: 72.26117073 | X17: 72.25392683 | Y17: 72.27929268 | Z17: 72.33029268 | AA17: 72.40946341 | AB17: 72.51521951 | AC17: 72.64143902 | AD17: 72.77692683 | AE17: 72.91546341 | AF17: 73.05295122 | AG17: 73.18878049 | AH17: 73.32541463 | AI17: 73.46590244 | AJ17: 73.61326829 | AK17: 73.76802439 | AL17: 73.92765854 | AM17: 74.09119512
A18: WB | B18: Life expectancy at birth, total (years) | C18: SP.DYN.LE00.IN | D18: Cote d'Ivoire | E18: CIV | F18: Comparable LMIC | G18: 32 | H18: 51.4042439 | I18: 51.92065854 | J18: 52.35209756 | K18: 52.69317073 | L18: 52.94041463 | M18: 53.08985366 | N18: 53.14397561 | O18: 53.11378049 | P18: 53.0142439 | Q18: 52.85585366 | R18: 52.64414634 | S18: 52.37963415 | T18: 52.07082927 | U18: 51.73219512 | V18: 51.38521951 | W18: 51.05136585 | X18: 50.74712195 | Y18: 50.48992683 | Z18: 50.29421951 | AA18: 50.17890244 | AB18: 50.16087805 | AC18: 50.25056098 | AD18: 50.44387805 | AE18: 50.73282927 | AF18: 51.11139024 | AG18: 51.57556098 | AH18: 52.11836585 | AI18: 52.72587805 | AJ18: 53.37770732 | AK18: 54.05590244 | AL18: 54.74156098 | AM18: 55.4212439
A19: WB | B19: Life expectancy at birth, total (years) | C19: SP.DYN.LE00.IN | D19: Honduras | E19: HND | F19: Comparable LMIC | G19: 32 | H19: 59.41868293 | I19: 60.2024878 | J19: 60.99934146 | K19: 61.80173171 | L19: 62.59814634 | M19: 63.36753659 | N19: 64.08839024 | O19: 64.74714634 | P19: 65.33831707 | Q19: 65.86439024 | R19: 66.33939024 | S19: 66.78585366 | T19: 67.22734146 | U19: 67.67836585 | V19: 68.14192683 | W19: 68.607 | X19: 69.05453659 | Y19: 69.464 | Z19: 69.82136585 | AA19: 70.12568293 | AB19: 70.38202439 | AC19: 70.60097561 | AD19: 70.80260976 | AE19: 71.00346341 | AF19: 71.21204878 | AG19: 71.43885366 | AH19: 71.68982927 | AI19: 71.95890244 | AJ19: 72.24097561 | AK19: 72.532 | AL19: 72.82592683 | AM19: 73.11321951
A20: WB | B20: Life expectancy at birth, total (years) | C20: SP.DYN.LE00.IN | D20: India | E20: IND | F20: Comparable LMIC | G20: 32 | H20: 55.34707317 | I20: 55.73758537 | J20: 56.09036585 | K20: 56.4197561 | L20: 56.73265854 | M20: 57.03192683 | N20: 57.31736585 | O20: 57.58843902 | P20: 57.84709756 | Q20: 58.09939024 | R20: 58.35285366 | S20: 58.61568293 | T20: 58.8925122 | U20: 59.1864878 | V20: 59.49917073 | W20: 59.83156098 | X20: 60.17860976 | Y20: 60.53573171 | Z20: 60.89534146 | AA20: 61.25587805 | AB20: 61.61387805 | AC20: 61.96878049 | AD20: 62.32112195 | AE20: 62.67095122 | AF20: 63.01931707 | AG20: 63.3672439 | AH20: 63.71680488 | AI20: 64.06853659 | AJ20: 64.42295122 | AK20: 64.77856098 | AL20: 65.13134146 | AM20: 65.47826829
A21: WB | B21: Life expectancy at birth, total (years) | C21: SP.DYN.LE00.IN | D21: Nigeria | E21: NGA | F21: Comparable LMIC | G21: 32 | H21: 45.48826829 | I21: 45.64390244 | J21: 45.7625122 | K21: 45.84404878 | L21: 45.89053659 | M21: 45.90402439 | N21: 45.88756098 | O21: 45.84668293 | P21: 45.78841463 | Q21: 45.71980488 | R21: 45.63734146 | S21: 45.53453659 | T21: 45.41536585 | U21: 45.29026829 | V21: 45.17973171 | W21: 45.11570732 | X21: 45.13321951 | Y21: 45.25370732 | Z21: 45.48614634 | AA21: 45.82953659 | AB21: 46.27231707 | AC21: 46.79146341 | AD21: 47.3504878 | AE21: 47.91636585 | AF21: 48.47260976 | AG21: 49.00470732 | AH21: 49.51065854 | AI21: 49.9994878 | AJ21: 50.47973171 | AK21: 50.94941463 | AL21: 51.41002439 | AM21: 51.86312195
A22: WB | B22: Life expectancy at birth, total (years) | C22: SP.DYN.LE00.IN | D22: Paraguay | E22: PRY | F22: Comparable LMIC | G22: 32 | H22: 66.72573171 | I22: 66.83407317 | J22: 66.93939024 | K22: 67.04219512 | L22: 67.14546341 | M22: 67.2522439 | N22: 67.36904878 | O22: 67.49887805 | P22: 67.6427561 | Q22: 67.80117073 | R22: 67.97260976 | S22: 68.15053659 | T22: 68.33146341 | U22: 68.51236585 | V22: 68.6937561 | W22: 68.88021951 | X22: 69.07980488 | Y22: 69.29556098 | Z22: 69.53097561 | AA22: 69.78253659 | AB22: 70.04519512 | AC22: 70.30934146 | AD22: 70.56639024 | AE22: 70.80980488 | AF22: 71.03856098 | AG22: 71.25265854 | AH22: 71.45717073 | AI22: 71.65865854 | AJ22: 71.86170732 | AK22: 72.06831707 | AL22: 72.277 | AM22: 72.48470732
A23: WB | B23: Life expectancy at birth, total (years) | C23: SP.DYN.LE00.IN | D23: Senegal | E23: SEN | F23: Comparable LMIC | G23: 32 | H23: 47.33326829 | I23: 48.13121951 | J23: 48.91468293 | K23: 49.67217073 | L23: 50.38919512 | M23: 51.04773171 | N23: 51.63326829 | O23: 52.14231707 | P23: 52.57782927 | Q23: 52.94385366 | R23: 53.24834146 | S23: 53.50180488 | T23: 53.7242439 | U23: 53.93268293 | V23: 54.14212195 | W23: 54.36307317 | X23: 54.60453659 | Y23: 54.86353659 | Z23: 55.13856098 | AA23: 55.43112195 | AB23: 55.7392439 | AC23: 56.05843902 | AD23: 56.38265854 | AE23: 56.70741463 | AF23: 57.02917073 | AG23: 57.34934146 | AH23: 57.66787805 | AI23: 57.98721951 | AJ23: 58.30936585 | AK23: 58.63231707 | AL23: 58.95407317 | AM23: 59.27219512
A24: WB | B24: Life expectancy at birth, total (years) | C24: SP.DYN.LE00.IN | D24: Vietnam | E24: VNM | F24: Comparable LMIC | G24: 32 | H24: 55.67107317 | I24: 56.93829268 | J24: 58.12002439 | K24: 59.20053659 | L24: 60.17168293 | M24: 61.05490244 | N24: 61.8932439 | O24: 62.73631707 | P24: 63.6157561 | Q24: 64.53609756 | R24: 65.47836585 | S24: 66.41109756 | T24: 67.2927561 | U24: 68.09334146 | V24: 68.80482927 | W24: 69.43168293 | X24: 69.98985366 | Y24: 70.50631707 | Z24: 71.00156098 | AA24: 71.48260976 | AB24: 71.9455122 | AC24: 72.38131707 | AD24: 72.77709756 | AE24: 73.12590244 | AF24: 73.43178049 | AG24: 73.69973171 | AH24: 73.9407561 | AI24: 74.16534146 | AJ24: 74.38546341 | AK24: 74.60558537 | AL24: 74.8282439 | AM24: 75.05141463
A25: WB | B25: Life expectancy at birth, total (years) | C25: SP.DYN.LE00.IN | D25: Zambia | E25: ZMB | F25: Comparable LMIC | G25: 32 | H25: 52.01802439 | I25: 52.03758537 | J25: 51.97514634 | K25: 51.82019512 | L25: 51.56480488 | M25: 51.18853659 | N25: 50.6705122 | O25: 50.01682927 | P25: 49.2465122 | Q25: 48.38960976 | R25: 47.48063415 | S25: 46.56009756 | T25: 45.66939024 | U25: 44.84841463 | V25: 44.12656098 | W25: 43.51526829 | X25: 43.0084878 | Y25: 42.58960976 | Z25: 42.25507317 | AA25: 42.02121951 | AB25: 41.92987805 | AC25: 42.03082927 | AD25: 42.34253659 | AE25: 42.85856098 | AF25: 43.55495122 | AG25: 44.38436585 | AH25: 45.2885122 | AI25: 46.19763415 | AJ25: 47.05243902 | AK25: 47.81453659 | AL25: 48.4554878 | AM25: 48.96882927
A26: WB | B26: Life expectancy at birth, total (years) | C26: SP.DYN.LE00.IN | D26: Angola | E26: AGO | F26: Upper LIC | G26: 32 | H26: 40.16180488 | I26: 40.29021951 | J26: 40.41004878 | K26: 40.52978049 | L26: 40.6554878 | M26: 40.78034146 | N26: 40.89056098 | O26: 40.97797561 | P26: 41.04180488 | Q26: 41.0912439 | R26: 41.14141463 | S26: 41.20887805 | T26: 41.31453659 | U26: 41.47819512 | V26: 41.71621951 | W26: 42.05092683 | X26: 42.50160976 | Y26: 43.06163415 | Z26: 43.71431707 | AA26: 44.43909756 | AB26: 45.20492683 | AC26: 45.97331707 | AD26: 46.71192683 | AE26: 47.39336585 | AF26: 48.00370732 | AG26: 48.53843902 | AH26: 49.00714634 | AI26: 49.43529268 | AJ26: 49.84741463 | AK26: 50.25102439 | AL26: 50.65365854 | AM26: 51.05931707
A27: WB | B27: Life expectancy at birth, total (years) | C27: SP.DYN.LE00.IN | D27: Bangladesh | E27: BGD | F27: Upper LIC | G27: 32 | H27: 55.23585366 | I27: 55.80892683 | J27: 56.08019512 | K27: 56.30812195 | L27: 56.58190244 | M27: 56.95241463 | N27: 57.42321951 | O27: 57.93636585 | P27: 58.44697561 | Q27: 58.95807317 | R27: 59.47114634 | S27: 59.98970732 | T27: 60.51473171 | U27: 61.04673171 | V27: 61.58321951 | W27: 62.12268293 | X27: 62.66212195 | Y27: 63.19656098 | Z27: 63.72197561 | AA27: 64.23390244 | AB27: 64.73034146 | AC27: 65.20831707 | AD27: 65.66831707 | AE27: 66.10985366 | AF27: 66.53136585 | AG27: 66.93229268 | AH27: 67.31007317 | AI27: 67.66665854 | AJ27: 68.00402439 | AK27: 68.32521951 | AL27: 68.63480488 | AM27: 68.93736585
A28: WB | B28: Life expectancy at birth, total (years) | C28: SP.DYN.LE00.IN | D28: Benin | E28: BEN | F28: Upper LIC | G28: 32 | H28: 45.24712195 | I28: 45.59226829 | J28: 45.90590244 | K28: 46.19646341 | L28: 46.47485366 | M28: 46.75797561 | N28: 47.06378049 | O28: 47.4027561 | P28: 47.7804878 | Q28: 48.19804878 | R28: 48.64853659 | S28: 49.12312195 | T28: 49.60339024 | U28: 50.07346341 | V28: 50.52241463 | W28: 50.94126829 | X28: 51.3245122 | Y28: 51.67407317 | Z28: 51.99582927 | AA28: 52.2917561 | AB28: 52.56534146 | AC28: 52.81909756 | AD28: 53.0615122 | AE28: 53.3014878 | AF28: 53.54895122 | AG28: 53.81373171 | AH28: 54.10668293 | AI28: 54.43073171 | AJ28: 54.78731707 | AK28: 55.17341463 | AL28: 55.58558537 | AM28: 56.01443902
A29: WB | B29: Life expectancy at birth, total (years) | C29: SP.DYN.LE00.IN | D29: Burkina Faso | E29: BFA | F29: Upper LIC | G29: 32 | H29: 46.33160976 | I29: 46.78504878 | J29: 47.17995122 | K29: 47.51134146 | L29: 47.77821951 | M29: 47.98158537 | N29: 48.12843902 | O29: 48.23382927 | P29: 48.31521951 | Q29: 48.38463415 | R29: 48.45304878 | S29: 48.52741463 | T29: 48.61173171 | U29: 48.71002439 | V29: 48.83082927 | W29: 48.9797561 | X29: 49.15943902 | Y29: 49.36997561 | Z29: 49.61034146 | AA29: 49.8854878 | AB29: 50.20129268 | AC29: 50.56556098 | AD29: 50.97763415 | AE29: 51.43236585 | AF29: 51.92221951 | AG29: 52.43519512 | AH29: 52.95790244 | AI29: 53.47695122 | AJ29: 53.9824878 | AK29: 54.46604878 | AL29: 54.92419512 | AM29: 55.35790244
A30: WB | B30: Life expectancy at birth, total (years) | C30: SP.DYN.LE00.IN | D30: Burundi | E30: BDI | F30: Upper LIC | G30: 32 | H30: 46.85931707 | I30: 47.2255122 | J30: 47.55980488 | K30: 47.84629268 | L30: 48.0625122 | M30: 48.16056098 | N30: 48.08695122 | O30: 47.83014634 | P30: 47.40612195 | Q30: 46.84980488 | R30: 46.22714634 | S30: 45.62153659 | T30: 45.11095122 | U30: 44.7537561 | V30: 44.57846341 | W30: 44.5885122 | X30: 44.75841463 | Y30: 45.02670732 | Z30: 45.33843902 | AA30: 45.67056098 | AB30: 46.00504878 | AC30: 46.33639024 | AD30: 46.67307317 | AE30: 47.02156098 | AF30: 47.38036585 | AG30: 47.75146341 | AH30: 48.13887805 | AI30: 48.54663415 | AJ30: 48.9757561 | AK30: 49.42126829 | AL30: 49.87721951 | AM30: 50.33709756
A31: WB | B31: Life expectancy at birth, total (years) | C31: SP.DYN.LE00.IN | D31: Cambodia | E31: KHM | F31: Upper LIC | G31: 32 | H31: 38.62407317 | I31: 41.94058537 | J31: 45.27673171 | K31: 48.25119512 | L31: 50.67160976 | M31: 52.43502439 | N31: 53.57090244 | O31: 54.29614634 | P31: 54.79963415 | Q31: 55.14785366 | R31: 55.39729268 | S31: 55.58146341 | T31: 55.71439024 | U31: 55.81604878 | V31: 55.92385366 | W31: 56.06526829 | X31: 56.25726829 | Y31: 56.49226829 | Z31: 56.76714634 | AA31: 57.08882927 | AB31: 57.46414634 | AC31: 57.89646341 | AD31: 58.37521951 | AE31: 58.88943902 | AF31: 59.42863415 | AG31: 59.97939024 | AH31: 60.52831707 | AI31: 61.06458537 | AJ31: 61.58085366 | AK31: 62.07219512 | AL31: 62.53621951 | AM31: 62.97741463
A32: WB | B32: Life expectancy at birth, total (years) | C32: SP.DYN.LE00.IN | D32: Chad | E32: TCD | F32: Upper LIC | G32: 32 | H32: 47.89668293 | I32: 48.3657561 | J32: 48.82280488 | K32: 49.25578049 | L32: 49.65019512 | M32: 49.99156098 | N32: 50.26841463 | O32: 50.47729268 | P32: 50.6157561 | Q32: 50.68380488 | R32: 50.67992683 | S32: 50.60709756 | T32: 50.47578049 | U32: 50.29895122 | V32: 50.08809756 | W32: 49.84973171 | X32: 49.58585366 | Y32: 49.3045122 | Z32: 49.01717073 | AA32: 48.73882927 | AB32: 48.48897561 | AC32: 48.28258537 | AD32: 48.12958537 | AE32: 48.03597561 | AF32: 48.0112439 | AG32: 48.05885366 | AH32: 48.18129268 | AI32: 48.36858537 | AJ32: 48.6057561 | AK32: 48.88531707 | AL32: 49.19482927 | AM32: 49.52326829
A33: WB | B33: Life expectancy at birth, total (years) | C33: SP.DYN.LE00.IN | D33: Ethiopia | E33: ETH | F33: Upper LIC | G33: 32 | H33: 43.9142439 | I33: 43.77846341 | J33: 43.74214634 | K33: 43.8422439 | L33: 44.09026829 | M33: 44.47521951 | N33: 44.96412195 | O33: 45.50153659 | P33: 46.03995122 | Q33: 46.55790244 | R33: 47.04539024 | S33: 47.50290244 | T33: 47.94895122 | U33: 48.398 | V33: 48.85304878 | W33: 49.31363415 | X33: 49.77526829 | Y33: 50.23895122 | Z33: 50.70868293 | AA33: 51.19292683 | AB33: 51.71012195 | AC33: 52.28221951 | AD33: 52.91868293 | AE33: 53.618 | AF33: 54.37065854 | AG33: 55.15665854 | AH33: 55.95156098 | AI33: 56.72392683 | AJ33: 57.45078049 | AK33: 58.11817073 | AL33: 58.71509756 | AM33: 59.24309756
A34: WB | B34: Life expectancy at birth, total (years) | C34: SP.DYN.LE00.IN | D34: Georgia | E34: GEO | F34: Upper LIC | G34: 31 | H34: 69.36278049 | I34: 69.38656098 | J34: 69.42436585 | K34: 69.49417073 | L34: 69.59992683 | M34: 69.73407317 | N34: 69.8805122 | O34: 70.01470732 | P34: 70.12170732 | Q34: 70.19856098 | R34: 70.24787805 | S34: 70.27682927 | T34: 70.30204878 | U34: 70.33860976 | V34: 70.3965122 | W34: 70.49026829 | X34: 70.62929268 | Y34: 70.81395122 | Z34: 71.03812195 | AA34: 71.29319512 | AB34: 71.56309756 | AC34: 71.82673171 | AD34: 72.06863415 | AE34: 72.27582927 | AF34: 72.44734146 | AG34: 72.58878049 | AH34: 72.7142439 | AI34: 72.84134146 | AJ34: 72.98463415 | AK34: 73.14714634 | AL34: 73.32734146
A35: WB | B35: Life expectancy at birth, total (years) | C35: SP.DYN.LE00.IN | D35: Kenya | E35: KEN | F35: Upper LIC | G35: 32 | H35: 57.74017073 | I35: 58.22865854 | J35: 58.6625122 | K35: 59.02726829 | L35: 59.31039024 | M35: 59.50992683 | N35: 59.63034146 | O35: 59.67873171 | P35: 59.65614634 | Q35: 59.55268293 | R35: 59.33995122 | S35: 58.97958537 | T35: 58.46312195 | U35: 57.79958537 | V35: 57.01746341 | W35: 56.14921951 | X35: 55.23631707 | Y35: 54.33712195 | Z35: 53.51197561 | AA35: 52.81321951 | AB35: 52.29963415 | AC35: 52.01807317 | AD35: 51.96595122 | AE35: 52.1272439 | AF35: 52.48392683 | AG35: 53.00956098 | AH35: 53.66219512 | AI35: 54.38602439 | AJ35: 55.12421951 | AK35: 55.83936585 | AL35: 56.49707317 | AM35: 57.08087805
A36: WB | B36: Life expectancy at birth, total (years) | C36: SP.DYN.LE00.IN | D36: Kyrgyz Republic | E36: KGZ | F36: Upper LIC | G36: 32 | H36: 62.8702439 | I36: 63.22904878 | J36: 63.62373171 | K36: 64.04226829 | L36: 64.46963415 | M36: 64.88212195 | N36: 65.2545122 | O36: 65.56760976 | P36: 65.80978049 | Q36: 67.90731707 | R36: 68.29756098 | S36: 68.55121951 | T36: 68.10243902 | U36: 67.19268293 | V36: 66.03902439 | W36: 65.7902439 | X36: 66.54390244 | Y36: 66.89268293 | Z36: 67.05121951 | AA36: 67.00243902 | AB36: 68.55853659 | AC36: 68.70731707 | AD36: 68.10731707 | AE36: 68.25609756 | AF36: 68.15365854 | AG36: 67.95609756 | AH36: 67.69512195 | AI36: 67.84634146 | AJ36: 68.45121951 | AK36: 69.10243902 | AL36: 69.3 | AM36: 69.60243902
A37: WB | B37: Life expectancy at birth, total (years) | C37: SP.DYN.LE00.IN | D37: Lao PDR | E37: LAO | F37: Upper LIC | G37: 32 | H37: 48.76221951 | I37: 49.12670732 | J37: 49.52268293 | K37: 49.95670732 | L37: 50.43278049 | M37: 50.95741463 | N37: 51.53656098 | O37: 52.16768293 | P37: 52.84426829 | Q37: 53.56026829 | R37: 54.30821951 | S37: 55.08060976 | T37: 55.8664878 | U37: 56.65436585 | V37: 57.4307561 | W37: 58.18214634 | X37: 58.89558537 | Y37: 59.56956098 | Z37: 60.20656098 | AA37: 60.81107317 | AB37: 61.39460976 | AC37: 61.97817073 | AD37: 62.5752439 | AE37: 63.19231707 | AF37: 63.82585366 | AG37: 64.46226829 | AH37: 65.0805122 | AI37: 65.65956098 | AJ37: 66.18439024 | AK37: 66.6515122 | AL37: 67.064 | AM37: 67.43236585
A38: WB | B38: Life expectancy at birth, total (years) | C38: SP.DYN.LE00.IN | D38: Liberia | E38: LBR | F38: Upper LIC | G38: 32 | H38: 43.84817073 | I38: 43.79653659 | J38: 43.6984878 | K38: 43.56956098 | L38: 43.4202439 | M38: 43.2535122 | N38: 43.06834146 | O38: 42.86565854 | P38: 42.65592683 | Q38: 42.45563415 | R38: 42.27680488 | S38: 42.12795122 | T38: 42.02360976 | U38: 41.98780488 | V38: 42.04858537 | W38: 42.247 | X38: 42.62707317 | Y38: 43.19934146 | Z38: 43.9587561 | AA38: 44.8887561 | AB38: 45.96431707 | AC38: 47.14882927 | AD38: 48.38721951 | AE38: 49.62592683 | AF38: 50.82336585 | AG38: 51.94302439 | AH38: 52.96282927 | AI38: 53.88885366 | AJ38: 54.72763415 | AK38: 55.47919512 | AL38: 56.14758537 | AM38: 56.74285366
A39: WB | B39: Life expectancy at birth, total (years) | C39: SP.DYN.LE00.IN | D39: Malawi | E39: MWI | F39: Upper LIC | G39: 32 | H39: 44.33619512 | I39: 44.71139024 | J39: 45.07756098 | K39: 45.42473171 | L39: 45.74643902 | M39: 46.04119512 | N39: 46.31102439 | O39: 46.55643902 | P39: 46.776 | Q39: 46.9612439 | R39: 47.09426829 | S39: 47.15014634 | T39: 47.12241463 | U39: 47.01758537 | V39: 46.85217073 | W39: 46.64268293 | X39: 46.41214634 | Y39: 46.19646341 | Z39: 46.03502439 | AA39: 45.96368293 | AB39: 46.02973171 | AC39: 46.2764878 | AD39: 46.70731707 | AE39: 47.30863415 | AF39: 48.06290244 | AG39: 48.93804878 | AH39: 49.88914634 | AI39: 50.86231707 | AJ39: 51.80473171 | AK39: 52.68095122 | AL39: 53.46263415 | AM39: 54.13636585
A40: WB | B40: Life expectancy at birth, total (years) | C40: SP.DYN.LE00.IN | D40: Mozambique | E40: MOZ | F40: Upper LIC | G40: 32 | H40: 42.80590244 | I40: 42.82673171 | J40: 42.79902439 | K40: 42.74870732 | L40: 42.69678049 | M40: 42.66273171 | N40: 42.66207317 | O40: 42.70282927 | P40: 42.79453659 | Q40: 42.94668293 | R40: 43.17626829 | S40: 43.49668293 | T40: 43.90046341 | U40: 44.36963415 | V40: 44.8847561 | W40: 45.41095122 | X40: 45.91082927 | Y40: 46.3554878 | Z40: 46.72753659 | AA40: 47.02097561 | AB40: 47.23785366 | AC40: 47.39565854 | AD40: 47.52678049 | AE40: 47.66212195 | AF40: 47.81960976 | AG40: 48.01714634 | AH40: 48.26514634 | AI40: 48.56058537 | AJ40: 48.89839024 | AK40: 49.27802439 | AL40: 49.69692683 | AM40: 50.15060976
A41: WB | B41: Life expectancy at birth, total (years) | C41: SP.DYN.LE00.IN | D41: Rwanda | E41: RWA | F41: Upper LIC | G41: 32 | H41: 48.20014634 | I41: 49.00209756 | J41: 49.65653659 | K41: 50.03197561 | L41: 50.00539024 | M41: 49.27965854 | N41: 47.53760976 | O41: 44.76619512 | P41: 41.14197561 | Q41: 36.96560976 | R41: 32.82697561 | S41: 29.44004878 | T41: 27.33458537 | U41: 26.81870732 | V41: 27.93634146 | W41: 30.47317073 | X41: 33.97580488 | Y41: 37.76419512 | Z41: 41.27392683 | AA41: 44.23480488 | AB41: 46.51021951 | AC41: 48.13670732 | AD41: 49.37758537 | AE41: 50.44909756 | AF41: 51.39641463 | AG41: 52.24763415 | AH41: 53.00639024 | AI41: 53.65973171 | AJ41: 54.20619512 | AK41: 54.66580488 | AL41: 55.05712195 | AM41: 55.39458537
A42: WB | B42: Life expectancy at birth, total (years) | C42: SP.DYN.LE00.IN | D42: Sierra Leone | E42: SLE | F42: Upper LIC | G42: 32 | H42: 43.04365854 | I42: 43.55982927 | J42: 43.80614634 | K42: 43.76641463 | L42: 43.44558537 | M42: 42.87207317 | N42: 42.09590244 | O42: 41.2107561 | P42: 40.31034146 | Q42: 39.46234146 | R42: 38.72146341 | S42: 38.12239024 | T42: 37.6632439 | U42: 37.34563415 | V42: 37.18760976 | W42: 37.20870732 | X42: 37.41887805 | Y42: 37.79902439 | Z42: 38.3254878 | AA42: 38.97468293 | AB42: 39.73158537 | AC42: 40.57768293 | AD42: 41.48943902 | AE42: 42.43078049 | AF42: 43.36860976 | AG42: 44.2602439 | AH42: 45.07302439 | AI42: 45.79587805 | AJ42: 46.42526829 | AK42: 46.95768293 | AL42: 47.40219512 | AM42: 47.77636585
A43: WB | B43: Life expectancy at birth, total (years) | C43: SP.DYN.LE00.IN | D43: Sri Lanka | E43: LKA | F43: Upper LIC | G43: 32 | H43: 68.22192683 | I43: 68.64512195 | J43: 68.972 | K43: 69.19482927 | L43: 69.31990244 | M43: 69.37273171 | N43: 69.39380488 | O43: 69.422 | P43: 69.48190244 | Q43: 69.57804878 | R43: 69.67868293 | S43: 69.73139024 | T43: 69.69912195 | U43: 69.57797561 | V43: 69.39526829 | W43: 69.22885366 | X43: 69.1782439 | Y43: 69.3162439 | Z43: 69.67714634 | AA43: 70.25170732 | AB43: 70.98429268 | AC43: 71.78380488 | AD43: 72.54390244 | AE43: 73.18156098 | AF43: 73.66514634 | AG43: 73.98934146 | AH43: 74.18263415 | AI43: 74.31207317 | AJ43: 74.43326829 | AK43: 74.56660976 | AL43: 74.72260976 | AM43: 74.90197561
A44: WB | B44: Life expectancy at birth, total (years) | C44: SP.DYN.LE00.IN | D44: Tajikistan | E44: TJK | F44: Upper LIC | G44: 32 | H44: 62.24426829 | I44: 62.45041463 | J44: 62.66931707 | K44: 62.89197561 | L44: 63.10678049 | M44: 63.27990244 | N44: 63.37487805 | O44: 63.37290244 | P44: 63.27339024 | Q44: 63.09041463 | R44: 62.85685366 | S44: 62.61763415 | T44: 62.41980488 | U44: 62.30326829 | V44: 62.28570732 | W44: 62.37460976 | X44: 62.56131707 | Y44: 62.81295122 | Z44: 63.10426829 | AA44: 63.42070732 | AB44: 63.75534146 | AC44: 64.10485366 | AD44: 64.46990244 | AE44: 64.8474878 | AF44: 65.22953659 | AG44: 65.60785366 | AH44: 65.97368293 | AI44: 66.32378049 | AJ44: 66.65597561 | AK44: 66.96768293 | AL44: 67.25990244 | AM44: 67.53573171
A45: WB | B45: Life expectancy at birth, total (years) | C45: SP.DYN.LE00.IN | D45: Tanzania | E45: TZA | F45: Upper LIC | G45: 32 | H45: 50.45343902 | I45: 50.64060976 | J45: 50.80368293 | K45: 50.95063415 | L45: 51.07697561 | M45: 51.1667561 | N45: 51.19556098 | O45: 51.14897561 | P45: 51.02607317 | Q45: 50.83643902 | R45: 50.59714634 | S45: 50.3292439 | T45: 50.06470732 | U45: 49.83597561 | V45: 49.66602439 | W45: 49.5737561 | X45: 49.56763415 | Y45: 49.64453659 | Z45: 49.80085366 | AA45: 50.04097561 | AB45: 50.37329268 | AC45: 50.80473171 | AD45: 51.32826829 | AE45: 51.93539024 | AF45: 52.61160976 | AG45: 53.34692683 | AH45: 54.12936585 | AI45: 54.9425122 | AJ45: 55.76943902 | AK45: 56.58973171 | AL45: 57.3874878 | AM45: 58.15121951
A46: WB | B46: Life expectancy at birth, total (years) | C46: SP.DYN.LE00.IN | D46: Togo | E46: TGO | F46: Upper LIC | G46: 32 | H46: 49.62268293 | I46: 49.99468293 | J46: 50.36419512 | K46: 50.72773171 | L46: 51.08478049 | M46: 51.43387805 | N46: 51.77295122 | O46: 52.10153659 | P46: 52.41514634 | Q46: 52.71326829 | R46: 52.99197561 | S46: 53.24680488 | T46: 53.47826829 | U46: 53.68787805 | V46: 53.87717073 | W46: 54.05009756 | X46: 54.21117073 | Y46: 54.36585366 | Z46: 54.51707317 | AA46: 54.66729268 | AB46: 54.8094878 | AC46: 54.93409756 | AD46: 55.03863415 | AE46: 55.12656098 | AF46: 55.20836585 | AG46: 55.304 | AH46: 55.43743902 | AI46: 55.62619512 | AJ46: 55.88031707 | AK46: 56.20280488 | AL46: 56.58870732 | AM46: 57.02658537
A47: WB | B47: Life expectancy at birth, total (years) | C47: SP.DYN.LE00.IN | D47: Uganda | E47: UGA | F47: Upper LIC | G47: 32 | H47: 50.07160976 | I47: 49.99221951 | J47: 49.9355122 | K47: 49.87202439 | L47: 49.78536585 | M47: 49.63863415 | N47: 49.39046341 | O47: 49.028 | P47: 48.55390244 | Q47: 47.9867561 | R47: 47.35673171 | S47: 46.70236585 | T47: 46.07914634 | U47: 45.5394878 | V47: 45.12236585 | W47: 44.86529268 | X47: 44.7917561 | Y47: 44.89019512 | Z47: 45.14487805 | AA47: 45.54814634 | AB47: 46.09168293 | AC47: 46.76673171 | AD47: 47.54312195 | AE47: 48.3852439 | AF47: 49.2575122 | AG47: 50.12392683 | AH47: 50.95307317 | AI47: 51.72968293 | AJ47: 52.43997561 | AK47: 53.07058537 | AL47: 53.61463415 | AM47: 54.0742439
A48: WB | B48: Life expectancy at birth, total (years) | C48: SP.DYN.LE00.IN | D48: Uzbekistan | E48: UZB | F48: Upper LIC | G48: 32 | H48: 65.2665122 | I48: 65.58673171 | J48: 65.9157561 | K48: 66.23707317 | L48: 66.53414634 | M48: 66.77639024 | N48: 66.93363415 | O48: 66.99426829 | P48: 66.96117073 | Q48: 66.84729268 | R48: 66.68212195 | S48: 66.50673171 | T48: 66.36021951 | U48: 66.27417073 | V48: 66.26012195 | W48: 66.31760976 | X48: 66.43263415 | Y48: 66.57419512 | Z48: 66.7147561 | AA48: 66.84431707 | AB48: 66.95087805 | AC48: 67.02892683 | AD48: 67.08597561 | AE48: 67.131 | AF48: 67.17204878 | AG48: 67.22258537 | AH48: 67.29817073 | AI48: 67.41129268 | AJ48: 67.56697561 | AK48: 67.76470732 | AL48: 68.001 | AM48: 68.26531707
A49: WB | B49: Life expectancy at birth, total (years) | C49: SP.DYN.LE00.IN | D49: Zimbabwe | E49: ZWE | F49: Upper LIC | G49: 32 | H49: 59.17404878 | I49: 59.7104878 | J49: 60.23587805 | K49: 60.72278049 | L49: 61.13678049 | M49: 61.44741463 | N49: 61.62870732 | O49: 61.6577561 | P49: 61.50863415 | Q49: 61.15146341 | R49: 60.52892683 | S49: 59.58170732 | T49: 58.31534146 | U49: 56.77080488 | V49: 55.00802439 | W49: 53.09839024 | X49: 51.12426829 | Y49: 49.18890244 | Z49: 47.39956098 | AA49: 45.8474878 | AB49: 44.61797561 | AC49: 43.76843902 | AD49: 43.28478049 | AE49: 43.1434878 | AF49: 43.33697561 | AG49: 43.86158537 | AH49: 44.70178049 | AI49: 45.79707317 | AJ49: 47.07060976 | AK49: 48.4504878 | AL49: 49.86087805 | AM49: 51.23643902

Sheet Dependency ratio
A1: Age dependency ratio (% of working-age population)
A3: Source | B3: Indicator Name | C3: Indicator Code | D3: Country Name | E3: Country Code | F3: Comparator group | G3: # years data available | H3: 1980 | I3: 1981 | J3: 1982 | K3: 1983 | L3: 1984 | M3: 1985 | N3: 1986 | O3: 1987 | P3: 1988 | Q3: 1989 | R3: 1990 | S3: 1991 | T3: 1992 | U3: 1993 | V3: 1994 | W3: 1995 | X3: 1996 | Y3: 1997 | Z3: 1998 | AA3: 1999 | AB3: 2000 | AC3: 2001 | AD3: 2002 | AE3: 2003 | AF3: 2004 | AG3: 2005 | AH3: 2006 | AI3: 2007 | AJ3: 2008 | AK3: 2009 | AL3: 2010 | AM3: 2011 | AN3: 2012
F4: Averages:
F5: Comparable LMIC | H5: =AVERAGEIF($F$9:$F$1475,$F5,H$9:H$1475) -> 90.87336477 | I5: 90.7118027 | J5: 90.51408859 | K5: 90.28397507 | L5: 90.02620821 | M5: 89.74070225 | N5: 89.42713837 | O5: 89.07888634 | P5: 88.68282565 | Q5: 88.2243304 | R5: =AVERAGEIF($F$9:$F$1475,$F5,R$9:R$1475) -> 87.69574691 | S5: 87.10320824 | T5: 86.45517408 | U5: 85.75142134 | V5: 84.99022909 | W5: 84.17374099 | X5: 83.30049822 | Y5: 82.38316321 | Z5: 81.452425 | AA5: 80.54498768 | AB5: =AVERAGEIF($F$9:$F$1475,$F5,AB$9:AB$1475) -> 79.68463713 | AC5: 78.88305046 | AD5: 78.133191 | AE5: 77.41690867 | AF5: 76.70744838 | AG5: 75.98773723 | AH5: 75.25342963 | AI5: 74.51643912 | AJ5: 73.79452278 | AK5: 73.1103931 | AL5: 72.47811613 | AM5: 71.89700354
